 Batch Number,Vendor Name,Invoice Number, Line,Line Amount,Account Description,Issue Date ,Total Amount Paid,Department,Proclass
270116C,VCG KESTREL LIMITED===========,0000002808,1,275.00,PRINTING,01/02/16,275.00,Communications,Facilities & Management S
270116C,VCG KESTREL LIMITED===========,0000002809,1,945.00,PRINTING,01/02/16,945.00,Communications,Facilities & Management S
260116G,MOOLANDS LTD,00000544,1,"8,624.00",STRATEGIC (NON CYCLICAL),01/02/16,"8,624.00",Technical and Service Support,"Works - Construction, R&M"
200116G,HEALTH MANAGEMENT LIMITED=====,0000142163,1,250.00,THIRD PARTY REPORTS,01/02/16,"2,275.80",HR Management,Healthcare
200116G,HEALTH MANAGEMENT LIMITED=====,0000142163,2,301.50,THIRD PARTY REPORTS,01/02/16,,HR Management,Healthcare
200116G,HEALTH MANAGEMENT LIMITED=====,0000142163,3,301.50,THIRD PARTY REPORTS,01/02/16,,HR Management,Healthcare
200116G,HEALTH MANAGEMENT LIMITED=====,0000142163,4,"1,422.80",THIRD PARTY REPORTS,01/02/16,,HR Management,Healthcare
140116G,HEALTH MANAGEMENT LIMITED=====,0000142199,1,557.35,OHS CONTRACT,01/02/16,557.35,HR Management,Healthcare
140116G,HEALTH MANAGEMENT LIMITED=====,0000142201,1,491.22,OHS CONTRACT,01/02/16,491.22,HR Management,Healthcare
270116C,SYNERGY HEALTH LAB SERVICE LTD,0000150594,1,130.00,DRUG & ALCOHOL TESTS,01/02/16,265.00,HR Management,Healthcare
270116C,SYNERGY HEALTH LAB SERVICE LTD,0000150594,2,135.00,DRUG & ALCOHOL TESTS,01/02/16,,HR Management,Healthcare
270116C,HAYS SPECIALIST RECRUITMENT,1006159898,1,801.85,FRS STAFF AGENCY,01/02/16,801.85,Procurement,Human Resources
270116C,HAYS SPECIALIST RECRUITMENT,1006160328,1,801.85,FRS STAFF AGENCY,01/02/16,801.85,Procurement,Human Resources
260116G,*SPRUE SAFETY PRODUCTS LTD====,1086358,1,494.40,FIRE DETECTORS,01/02/16,494.40,Operations Non Fire Stations,Health & Safety
220116G,*SPRUE SAFETY PRODUCTS LTD====,1087180,1,880.00,FIRE DETECTORS,01/02/16,880.00,Operations Non Fire Stations,Health & Safety
270116C,GEORGE JONES & SON LTD========,1092,1,"9,639.84",STRATEGIC (NON CYCLICAL),01/02/16,"9,639.84",Technical and Service Support,"Works - Construction, R&M"
270116C,BT GLOBAL SERVICES============,1135008,1,541.66,TELECOMMUNICATIONS,01/02/16,541.66,Information and Communication Technology,ICT
220116G,INSTITUTION OF FIRE ENGINEERS,12654,1,639.43,BOOKS & JOURNALS,01/02/16,639.43,Information Management,Education
260116G,PRICEWATERHOUSECOOPERS LLP====,1354470505,1,"7,499.98",CONSULTANTS,01/02/16,"7,499.98",Finance Services,Consultancy
270116C,DIAMOND BUILD PLC=============,14198,1,"19,159.14",DEVELOPMENT  EXPENSES-CONTRACT,01/02/16,"23,948.93",Technical and Service Support,"Works - Construction, R&M"
270116C,DIAMOND BUILD PLC=============,14198,2,"4,789.79",STRATEGIC (NON CYCLICAL),01/02/16,,Technical and Service Support,"Works - Construction, R&M"
260116G,DIAMOND BUILD PLC=============,14216,1,"43,703.55",DEVELOPMENT  EXPENSES-CONTRACT,01/02/16,"54,629.43",Technical and Service Support,"Works - Construction, R&M"
260116G,DIAMOND BUILD PLC=============,14216,2,"10,925.88",STRATEGIC (NON CYCLICAL),01/02/16,,Technical and Service Support,"Works - Construction, R&M"
270116C,SURREY BLIND & CURTAIN CO=====,14938,1,192.00,FIXTURES & FITTINGS,01/02/16,"3,521.00",Technical And Service Support,"Works - Construction, R&M"
270116C,SURREY BLIND & CURTAIN CO=====,14938,2,537.00,FIXTURES & FITTINGS,01/02/16,,Technical And Service Support,"Works - Construction, R&M"
270116C,SURREY BLIND & CURTAIN CO=====,14938,3,192.00,FIXTURES & FITTINGS,01/02/16,,Technical And Service Support,"Works - Construction, R&M"
270116C,SURREY BLIND & CURTAIN CO=====,14938,4,118.00,FIXTURES & FITTINGS,01/02/16,,Technical And Service Support,"Works - Construction, R&M"
270116C,SURREY BLIND & CURTAIN CO=====,14938,5,755.00,FIXTURES & FITTINGS,01/02/16,,Technical And Service Support,"Works - Construction, R&M"
270116C,SURREY BLIND & CURTAIN CO=====,14938,6,499.00,FIXTURES & FITTINGS,01/02/16,,Technical And Service Support,"Works - Construction, R&M"
270116C,SURREY BLIND & CURTAIN CO=====,14938,7,299.00,FIXTURES & FITTINGS,01/02/16,,Technical And Service Support,"Works - Construction, R&M"
270116C,SURREY BLIND & CURTAIN CO=====,14938,8,699.00,FIXTURES & FITTINGS,01/02/16,,Technical And Service Support,"Works - Construction, R&M"
270116C,SURREY BLIND & CURTAIN CO=====,14938,9,38.00,FIXTURES & FITTINGS,01/02/16,,Technical And Service Support,"Works - Construction, R&M"
270116C,SURREY BLIND & CURTAIN CO=====,14938,10,192.00,FIXTURES & FITTINGS,01/02/16,,Technical And Service Support,"Works - Construction, R&M"
141333,QBE INSURANCE (EUROPE) LTD====,15/16 (2),1,"400,000.00",INSURANCE CLAIMS,01/02/16,"400,000.00",Procurement,Vehicle Management
260116G,RESPIREX======================,154114,1,162.98,REPAIR & MAINTENANCE,01/02/16,610.28,Technical And Service Support,Clothing
260116G,RESPIREX======================,154114,2,155.98,REPAIR & MAINTENANCE,01/02/16,,Technical And Service Support,Clothing
260116G,RESPIREX======================,154114,3,66.67,REPAIR & MAINTENANCE,01/02/16,,Technical And Service Support,Clothing
260116G,RESPIREX======================,154114,4,57.67,REPAIR & MAINTENANCE,01/02/16,,Technical And Service Support,Clothing
260116G,RESPIREX======================,154114,5,166.98,REPAIR & MAINTENANCE,01/02/16,,Technical And Service Support,Clothing
800074913,REDFERN TRAVEL LTD,1665755,1,743.02,OVERSEAS TRAVEL,01/02/16,743.02,Operational Resilience,Human Resources
800074903,REDFERN TRAVEL LTD,1666722,1,258.45,TRAVEL BOOKINGS,01/02/16,258.45,Fire Safety Regulation,Human Resources
800074901,REDFERN TRAVEL LTD,1666769,1,273.55,TRAVEL BOOKINGS,01/02/16,273.55,Fire Safety Regulation,Human Resources
800074904,REDFERN TRAVEL LTD,1671167,1,"2,402.64",OVERSEAS TRAVEL,01/02/16,"2,402.64",Challenge Team,Human Resources
800074920,REDFERN TRAVEL LTD,1674275,1,367.80,ACCOMMODATION BOOKINGS,01/02/16,367.80,Information and Communication Technology,Human Resources
800074928,REDFERN TRAVEL LTD,1675881,1,279.31,TRAVEL BOOKINGS,01/02/16,279.31,National Operational Guidance Project,Human Resources
800074930,REDFERN TRAVEL LTD,1675895,1,279.31,TRAVEL BOOKINGS,01/02/16,279.31,National Operational Guidance Project,Human Resources
260116G,FAST COMPLIANCE LTD,18001580,1,"2,455.00",MAINTENANCE & SUPPORT,01/02/16,"2,455.00",Information and Communication Technology,ICT
260116G,BDG WORKFUTURES LTD===========,201402223,1,"1,040.00",PROFESSIONAL SERVICES,01/02/16,"1,040.00",Technical And Service Support,Consultancy
190116G,*LOCKHART CATERING EQUIPMENT,2604132,1,1.94,CATERING EQUIPMENT,01/02/16,252.55,Operations Fire Stations,Catering
190116G,*LOCKHART CATERING EQUIPMENT,2604132,2,3.87,CATERING EQUIPMENT,01/02/16,,Operations Fire Stations,Catering
190116G,*LOCKHART CATERING EQUIPMENT,2604132,3,7.19,CATERING EQUIPMENT,01/02/16,,Operations Fire Stations,Catering
190116G,*LOCKHART CATERING EQUIPMENT,2604132,4,10.34,CATERING EQUIPMENT,01/02/16,,Operations Fire Stations,Catering
190116G,*LOCKHART CATERING EQUIPMENT,2604132,5,3.14,CATERING EQUIPMENT,01/02/16,,Operations Fire Stations,Catering
190116G,*LOCKHART CATERING EQUIPMENT,2604132,6,3.46,CATERING EQUIPMENT,01/02/16,,Operations Fire Stations,Catering
190116G,*LOCKHART CATERING EQUIPMENT,2604132,7,1.94,CATERING EQUIPMENT,01/02/16,,Operations Fire Stations,Catering
190116G,*LOCKHART CATERING EQUIPMENT,2604132,8,33.84,CATERING EQUIPMENT,01/02/16,,Operations Fire Stations,Catering
190116G,*LOCKHART CATERING EQUIPMENT,2604132,9,6.20,CATERING EQUIPMENT,01/02/16,,Operations Fire Stations,Catering
190116G,*LOCKHART CATERING EQUIPMENT,2604132,10,6.20,CATERING EQUIPMENT,01/02/16,,Operations Fire Stations,Catering
190116G,*LOCKHART CATERING EQUIPMENT,2604132,11,6.20,CATERING EQUIPMENT,01/02/16,,Operations Fire Stations,Catering
190116G,*LOCKHART CATERING EQUIPMENT,2604132,12,6.20,CATERING EQUIPMENT,01/02/16,,Operations Fire Stations,Catering
190116G,*LOCKHART CATERING EQUIPMENT,2604132,13,6.20,CATERING EQUIPMENT,01/02/16,,Operations Fire Stations,Catering
190116G,*LOCKHART CATERING EQUIPMENT,2604132,14,6.20,CATERING EQUIPMENT,01/02/16,,Operations Fire Stations,Catering
190116G,*LOCKHART CATERING EQUIPMENT,2604132,15,2.86,CATERING EQUIPMENT,01/02/16,,Operations Fire Stations,Catering
190116G,*LOCKHART CATERING EQUIPMENT,2604132,16,6.74,CATERING EQUIPMENT,01/02/16,,Operations Fire Stations,Catering
190116G,*LOCKHART CATERING EQUIPMENT,2604132,17,6.39,CATERING EQUIPMENT,01/02/16,,Operations Fire Stations,Catering
190116G,*LOCKHART CATERING EQUIPMENT,2604132,18,17.09,CATERING EQUIPMENT,01/02/16,,Operations Fire Stations,Catering
190116G,*LOCKHART CATERING EQUIPMENT,2604132,19,33.75,CATERING EQUIPMENT,01/02/16,,Operations Fire Stations,Catering
190116G,*LOCKHART CATERING EQUIPMENT,2604132,20,7.60,CATERING EQUIPMENT,01/02/16,,Operations Fire Stations,Catering
190116G,*LOCKHART CATERING EQUIPMENT,2604132,21,38.20,CATERING EQUIPMENT,01/02/16,,Operations Fire Stations,Catering
190116G,*LOCKHART CATERING EQUIPMENT,2604132,22,23.06,CATERING EQUIPMENT,01/02/16,,Operations Fire Stations,Catering
190116G,*LOCKHART CATERING EQUIPMENT,2604132,23,13.94,CATERING EQUIPMENT,01/02/16,,Operations Fire Stations,Catering
260116G,MACE LIMITED,26915/0116546,1,528.69,PROF FEES-MISCELLANEOUS,01/02/16,528.69,Technical and Service Support,"Works - Construction, R&M"
800074882,ADECCO UK LIMITED=============,27097798,1,660.45,FRS STAFF AGENCY,01/02/16,660.45,Communications,Human Resources
800074896,ADECCO UK LIMITED=============,27245397,1,"1,970.70",FRS STAFF AGENCY,01/02/16,"1,970.70",National Operational Guidance Project,Human Resources
800074897,ADECCO UK LIMITED=============,27251508,1,"1,970.70",FRS STAFF AGENCY,01/02/16,"1,970.70",National Operational Guidance Project,Human Resources
800072927,ADECCO UK LIMITED=============,27292423A,1,"1,261.65",FRS STAFF AGENCY,01/02/16,"1,261.65",Legal & Democratic Services,Human Resources
800074891,ADECCO UK LIMITED=============,27329171,1,922.25,FRS STAFF AGENCY,01/02/16,922.25,Technical And Service Support,Human Resources
260116G,ARKAS LIMITED=================,28080,1,164.50,STRATEGIC (CYCLICAL),01/02/16,790.00,Technical And Service Support,"Works - Construction, R&M"
260116G,ARKAS LIMITED=================,28080,2,230.50,TACTICAL DAY TO DAY,01/02/16,,Technical And Service Support,"Works - Construction, R&M"
260116G,ARKAS LIMITED=================,28080,3,197.50,STRATEGIC (CYCLICAL),01/02/16,,Technical And Service Support,"Works - Construction, R&M"
260116G,ARKAS LIMITED=================,28080,4,197.50,STRATEGIC (CYCLICAL),01/02/16,,Technical And Service Support,"Works - Construction, R&M"
260116G,ARKAS LIMITED=================,28081,1,214.00,STRATEGIC (CYCLICAL),01/02/16,859.94,Technical And Service Support,"Works - Construction, R&M"
260116G,ARKAS LIMITED=================,28081,2,197.50,STRATEGIC (CYCLICAL),01/02/16,,Technical And Service Support,"Works - Construction, R&M"
260116G,ARKAS LIMITED=================,28081,3,250.94,STRATEGIC (CYCLICAL),01/02/16,,Technical And Service Support,"Works - Construction, R&M"
260116G,ARKAS LIMITED=================,28081,4,197.50,STRATEGIC (CYCLICAL),01/02/16,,Technical And Service Support,"Works - Construction, R&M"
260116G,ARKAS LIMITED=================,28082,1,214.00,STRATEGIC (CYCLICAL),01/02/16,"1,202.50",Technical And Service Support,"Works - Construction, R&M"
260116G,ARKAS LIMITED=================,28082,2,230.50,TACTICAL DAY TO DAY,01/02/16,,Technical And Service Support,"Works - Construction, R&M"
260116G,ARKAS LIMITED=================,28082,3,296.50,STRATEGIC (CYCLICAL),01/02/16,,Technical And Service Support,"Works - Construction, R&M"
260116G,ARKAS LIMITED=================,28082,4,461.50,STRATEGIC (CYCLICAL),01/02/16,,Technical And Service Support,"Works - Construction, R&M"
260116G,ARKAS LIMITED=================,28083,1,214.00,STRATEGIC (CYCLICAL),01/02/16,"1,113.88",Technical And Service Support,"Works - Construction, R&M"
260116G,ARKAS LIMITED=================,28083,2,197.50,STRATEGIC (CYCLICAL),01/02/16,,Technical And Service Support,"Works - Construction, R&M"
260116G,ARKAS LIMITED=================,28083,3,181.00,STRATEGIC (CYCLICAL),01/02/16,,Technical And Service Support,"Works - Construction, R&M"
260116G,ARKAS LIMITED=================,28083,4,521.38,STRATEGIC (CYCLICAL),01/02/16,,Technical And Service Support,"Works - Construction, R&M"
260116G,ARKAS LIMITED=================,28088,1,214.00,STRATEGIC (CYCLICAL),01/02/16,395.00,Technical And Service Support,"Works - Construction, R&M"
260116G,ARKAS LIMITED=================,28088,2,181.00,STRATEGIC (CYCLICAL),01/02/16,,Technical And Service Support,"Works - Construction, R&M"
260116G,ARKAS LIMITED=================,28300,1,512.00,STRATEGIC (CYCLICAL),01/02/16,512.00,Technical and Service Support,"Works - Construction, R&M"
260116G,ARKAS LIMITED=================,28316,1,967.00,STRATEGIC (CYCLICAL),01/02/16,967.00,Technical and Service Support,"Works - Construction, R&M"
270116C,ARKAS LIMITED=================,28407,1,497.00,STRATEGIC (CYCLICAL),01/02/16,497.00,Technical and Service Support,"Works - Construction, R&M"
270116C,R H SUPPLIES LIMITED==========,32411,1,"2,235.00",RADIO,01/02/16,"2,249.95",Information and Communication Technology,ICT
270116C,R H SUPPLIES LIMITED==========,32411,2,14.95,RADIO,01/02/16,,Information and Communication Technology,ICT
260116G,DELTOR COMMUNICATIONS LTD.===,32727,1,372.00,PRINTING,01/02/16,372.00,Communications,Facilities & Management S
270116C,APM===========================,357074,1,550.00,SUBSCRIPTIONS,01/02/16,550.00,Strategy & Inclusion,Financial Services
270116C,PULSE FITNESS LTD,38527,1,"1,605.10",GYM EQUIPMENT,01/02/16,"1,605.10",Technical And Service Support,Sports & Playground Equip
260116G,CARPETS & FLOOR COVERS DIRECT=,4348,1,"7,280.00",STRATEGIC (NON CYCLICAL),01/02/16,"7,280.00",Technical and Service Support,Building Constr Materials
260116G,PRESCO========================,475193,1,302.52,STATIONERY CONSUMABLES,01/02/16,302.52,Communications,Stationery
270116C,FOCUS & VISION TECHNOLOGY LTD,49979,1,609.30,MEDICAL EXPENSES CONTRACT,01/02/16,609.30,HR Management,Healthcare
260116G,*OCS GROUP UK LTD,5000152442,1,"3,278.55",CATERING,01/02/16,"4,382.67",Technical And Service Support,Catering
260116G,*OCS GROUP UK LTD,5000152442,2,188.90,CATERING,01/02/16,,Technical And Service Support,Catering
260116G,*OCS GROUP UK LTD,5000152442,3,687.72,CATERING,01/02/16,,Technical And Service Support,Catering
260116G,*OCS GROUP UK LTD,5000152442,4,227.50,CATERING,01/02/16,,Technical And Service Support,Catering
270116C,FOCUS & VISION TECHNOLOGY LTD,50024,1,308.10,MEDICAL EXPENSES CONTRACT,01/02/16,308.10,HR Management,Healthcare
260116G,FAHEY BUILDERS LTD============,5320,1,"1,950.00",STRATEGIC (NON CYCLICAL),01/02/16,"1,950.00",Technical and Service Support,"Works - Construction, R&M"
270116C,FAHEY BUILDERS LTD============,5323,1,"8,767.00",STRATEGIC (NON CYCLICAL),01/02/16,"8,767.00",Technical and Service Support,"Works - Construction, R&M"
902591,H M REVENUE & CUSTOMS=========,7943576177,2,"58,225.28",PENSION SANCTION CHARGES,01/02/16,"58,225.28",Central Finance,Statutory Bodies
141332,ALPHABET (GB) LIMITED,80056412,1,"1,594.49",LEASE CAR CHARGES,01/02/16,"5,454.04",Procurement,Vehicle Management
141332,ALPHABET (GB) LIMITED,80056412,2,"3,859.55",P/PAYMTS-CAR LEASG-RENTAL,01/02/16,,Finance Services,Vehicle Management
141332,ALPHABET (GB) LIMITED,80056412,3,-476.43,VAT CAR LEASING,01/02/16,,Finance Services,Vehicle Management
141332,ALPHABET (GB) LIMITED,80056412,4,476.43,LEASE CAR CHARGES,01/02/16,,Procurement,Vehicle Management
260116G,FIRE SERVICE COLLEGE LTD======,805470,1,"1,215.00",PROFESSIONAL DEVELOPMENT,01/02/16,"1,215.00",National Operational Guidance Project,Human Resources
260116G,FIRE SERVICE COLLEGE LTD======,805598,1,460.00,PROFESSIONAL DEVELOPMENT,01/02/16,460.00,National Operational Guidance Project,Human Resources
200116G,SHEILA PANTRY ASSOCIATES LTD==,842A/2016,1,825.00,BOOKS & JOURNALS,01/02/16,825.00,Information Management,Education
260116G,TWO SERVICES LTD==============,86029,1,700.50,CATERING EQUIPMENT,01/02/16,700.50,Operations Fire Stations,Catering
260116G,WESTON DIGITAL TECHNOLOGIES===,91539,1,"3,907.62",MAINTENANCE & SUPPORT,01/02/16,"3,907.62",Information and Communication Technology,ICT
260116G,ASIAN FIRE SERVICE ASSOCIATION,ANC2015-36,1,"1,180.00",PROFESSIONAL DEVELOPMENT,01/02/16,"1,580.00",Operations Non Fire Stations,Financial Services
260116G,ASIAN FIRE SERVICE ASSOCIATION,ANC2015-36,2,400.00,PROFESSIONAL DEVELOPMENT,01/02/16,,Operations Non Fire Stations,Financial Services
270116C,PITNEY BOWES PURCHASE POWER,BD347975,1,"4,755.88",POSTAL SERVICES,01/02/16,"4,755.88",Information Management,Mail Services
270116C,THAMES WATER UTILITIES LTD====,CBA1502044,1,"1,185.00",CURRENT HYDRANT COSTS,01/02/16,"1,185.00",Operational Resilience,Utilities
270116C,THAMES WATER UTILITIES LTD====,CBA1600490,1,"1,185.00",CURRENT HYDRANT COSTS,01/02/16,"1,185.00",Operational Resilience,Utilities
270116C,THAMES WATER UTILITIES LTD====,CBA1600491,1,"1,185.00",CURRENT HYDRANT COSTS,01/02/16,"1,185.00",Operational Resilience,Utilities
270116C,THAMES WATER UTILITIES LTD====,CBA1600492,1,"1,185.00",CURRENT HYDRANT COSTS,01/02/16,"1,185.00",Operational Resilience,Utilities
270116C,THAMES WATER UTILITIES LTD====,CBA1600494,1,459.00,CURRENT HYDRANT COSTS,01/02/16,459.00,Operational Resilience,Utilities
260116G,*GRAFTON MERCHANTING GB LTD,CRO/358992,1,198.00,OPERATIONAL EQUIP-PURCHASE,01/02/16,397.80,Operations Fire Stations,Building Constr Materials
260116G,*GRAFTON MERCHANTING GB LTD,CRO/358992,2,120.00,OPERATIONAL EQUIP-PURCHASE,01/02/16,,Operations Fire Stations,Building Constr Materials
260116G,*GRAFTON MERCHANTING GB LTD,CRO/358992,3,79.80,OPERATIONAL EQUIP-PURCHASE,01/02/16,,Operations Fire Stations,Building Constr Materials
260116G,KIER BUILDING SERV ENGINEERS==,F00056489/56604-6,1,117.57,STRATEGIC (CYCLICAL),01/02/16,"6,040.00",Technical and Service Support,"Works - Construction, R&M"
260116G,KIER BUILDING SERV ENGINEERS==,F00056489/56604-6,2,100.77,STRATEGIC (CYCLICAL),01/02/16,,Technical and Service Support,"Works - Construction, R&M"
260116G,KIER BUILDING SERV ENGINEERS==,F00056489/56604-6,3,805.24,STRATEGIC (CYCLICAL),01/02/16,,Technical And Service Support,"Works - Construction, R&M"
260116G,KIER BUILDING SERV ENGINEERS==,F00056489/56604-6,4,156.10,STRATEGIC (CYCLICAL),01/02/16,,Technical and Service Support,"Works - Construction, R&M"
260116G,KIER BUILDING SERV ENGINEERS==,F00056489/56604-6,5,104.50,STRATEGIC (CYCLICAL),01/02/16,,Technical and Service Support,"Works - Construction, R&M"
260116G,KIER BUILDING SERV ENGINEERS==,F00056489/56604-6,6,154.79,STRATEGIC (CYCLICAL),01/02/16,,Technical and Service Support,"Works - Construction, R&M"
260116G,KIER BUILDING SERV ENGINEERS==,F00056489/56604-6,7,83.98,STRATEGIC (CYCLICAL),01/02/16,,Technical and Service Support,"Works - Construction, R&M"
260116G,KIER BUILDING SERV ENGINEERS==,F00056489/56604-6,8,83.98,STRATEGIC (CYCLICAL),01/02/16,,Technical and Service Support,"Works - Construction, R&M"
260116G,KIER BUILDING SERV ENGINEERS==,F00056489/56604-6,9,58.78,STRATEGIC (CYCLICAL),01/02/16,,Technical and Service Support,"Works - Construction, R&M"
260116G,KIER BUILDING SERV ENGINEERS==,F00056489/56604-6,10,50.39,STRATEGIC (CYCLICAL),01/02/16,,Technical and Service Support,"Works - Construction, R&M"
260116G,KIER BUILDING SERV ENGINEERS==,F00056489/56604-6,11,88.00,STRATEGIC (CYCLICAL),01/02/16,,Technical and Service Support,"Works - Construction, R&M"
260116G,KIER BUILDING SERV ENGINEERS==,F00056489/56604-6,12,16.80,STRATEGIC (CYCLICAL),01/02/16,,Technical And Service Support,"Works - Construction, R&M"
260116G,KIER BUILDING SERV ENGINEERS==,F00056489/56604-6,13,733.49,STRATEGIC (CYCLICAL),01/02/16,,Technical and Service Support,"Works - Construction, R&M"
260116G,KIER BUILDING SERV ENGINEERS==,F00056489/56604-6,14,319.00,STRATEGIC (CYCLICAL),01/02/16,,Technical and Service Support,"Works - Construction, R&M"
260116G,KIER BUILDING SERV ENGINEERS==,F00056489/56604-6,15,88.00,STRATEGIC (CYCLICAL),01/02/16,,Technical and Service Support,"Works - Construction, R&M"
260116G,KIER BUILDING SERV ENGINEERS==,F00056489/56604-6,16,612.26,STRATEGIC (CYCLICAL),01/02/16,,Technical and Service Support,"Works - Construction, R&M"
260116G,KIER BUILDING SERV ENGINEERS==,F00056489/56604-6,17,273.90,STRATEGIC (CYCLICAL),01/02/16,,Technical and Service Support,"Works - Construction, R&M"
260116G,KIER BUILDING SERV ENGINEERS==,F00056489/56604-6,18,88.00,STRATEGIC (CYCLICAL),01/02/16,,Technical and Service Support,"Works - Construction, R&M"
260116G,KIER BUILDING SERV ENGINEERS==,F00056489/56604-6,19,41.99,STRATEGIC (CYCLICAL),01/02/16,,Technical and Service Support,"Works - Construction, R&M"
260116G,KIER BUILDING SERV ENGINEERS==,F00056489/56604-6,20,50.39,STRATEGIC (CYCLICAL),01/02/16,,Technical and Service Support,"Works - Construction, R&M"
260116G,KIER BUILDING SERV ENGINEERS==,F00056489/56604-6,22,33.59,STRATEGIC (CYCLICAL),01/02/16,,Technical and Service Support,"Works - Construction, R&M"
260116G,KIER BUILDING SERV ENGINEERS==,F00056489/56604-6,23,33.59,STRATEGIC (CYCLICAL),01/02/16,,Technical and Service Support,"Works - Construction, R&M"
260116G,KIER BUILDING SERV ENGINEERS==,F00056489/56604-6,24,33.59,STRATEGIC (CYCLICAL),01/02/16,,Technical and Service Support,"Works - Construction, R&M"
260116G,KIER BUILDING SERV ENGINEERS==,F00056489/56604-6,25,33.59,STRATEGIC (CYCLICAL),01/02/16,,Technical and Service Support,"Works - Construction, R&M"
260116G,KIER BUILDING SERV ENGINEERS==,F00056489/56604-6,26,72.00,STRATEGIC (CYCLICAL),01/02/16,,Technical and Service Support,"Works - Construction, R&M"
260116G,KIER BUILDING SERV ENGINEERS==,F00056489/56604-6,27,205.82,STRATEGIC (CYCLICAL),01/02/16,,Technical and Service Support,"Works - Construction, R&M"
260116G,KIER BUILDING SERV ENGINEERS==,F00056489/56604-6,28,348.04,STRATEGIC (CYCLICAL),01/02/16,,Technical and Service Support,"Works - Construction, R&M"
260116G,KIER BUILDING SERV ENGINEERS==,F00056489/56604-6,29,118.80,STRATEGIC (CYCLICAL),01/02/16,,Technical and Service Support,"Works - Construction, R&M"
260116G,KIER BUILDING SERV ENGINEERS==,F00056489/56604-6,30,208.32,STRATEGIC (CYCLICAL),01/02/16,,Technical and Service Support,"Works - Construction, R&M"
260116G,KIER BUILDING SERV ENGINEERS==,F00056489/56604-6,31,264.00,STRATEGIC (CYCLICAL),01/02/16,,Technical and Service Support,"Works - Construction, R&M"
260116G,KIER BUILDING SERV ENGINEERS==,F00056489/56604-6,32,82.50,STRATEGIC (CYCLICAL),01/02/16,,Technical and Service Support,"Works - Construction, R&M"
260116G,KIER BUILDING SERV ENGINEERS==,F00056489/56604-6,33,187.00,STRATEGIC (CYCLICAL),01/02/16,,Technical and Service Support,"Works - Construction, R&M"
260116G,KIER BUILDING SERV ENGINEERS==,F00056489/56604-6,34,240.19,STRATEGIC (CYCLICAL),01/02/16,,Technical and Service Support,"Works - Construction, R&M"
260116G,KIER BUILDING SERV ENGINEERS==,F00056489/56604-6,35,50.39,STRATEGIC (CYCLICAL),01/02/16,,Technical and Service Support,"Works - Construction, R&M"
260116G,KIER BUILDING SERV ENGINEERS==,F00056489/56604-6,36,100.65,STRATEGIC (CYCLICAL),01/02/16,,Technical and Service Support,"Works - Construction, R&M"
260116G,JACKSON LIFT GROUP============,JS439957R,1,"2,217.00",STRATEGIC (CYCLICAL),01/02/16,"2,217.00",Technical and Service Support,Facilities & Management S
141334,THE KITTLE PARTNERSHIP LTD====,K617,1,"2,588.00",MISCELLANEOUS DISBURSEMENTS,01/02/16,"2,588.00",Compensation Budgets,Legal Services
141334,THE KITTLE PARTNERSHIP LTD====,K618,1,287.50,OTHER EXPERTS FEES,01/02/16,287.50,Compensation Budgets,Legal Services
260116G,ENGIE,M136719,1,"1,106.22",STRATEGIC (NON CYCLICAL),01/02/16,"1,106.22",Technical and Service Support,"Works - Construction, R&M"
260116G,ENGIE,M136787,1,"1,971.92",STRATEGIC (NON CYCLICAL),01/02/16,"1,971.92",Technical and Service Support,"Works - Construction, R&M"
260116G,ENGIE,M137620,1,"1,946.62",STRATEGIC (NON CYCLICAL),01/02/16,"1,946.62",Technical and Service Support,"Works - Construction, R&M"
260116G,ENGIE,M139143,1,735.11,STRATEGIC (NON CYCLICAL),01/02/16,735.11,Technical and Service Support,"Works - Construction, R&M"
260116G,ENGIE,M139144,1,"1,322.02",STRATEGIC (NON CYCLICAL),01/02/16,"1,322.02",Technical and Service Support,"Works - Construction, R&M"
260116G,ENGIE,M139649,1,"1,761.82",STRATEGIC (NON CYCLICAL),01/02/16,"1,761.82",Technical and Service Support,"Works - Construction, R&M"
260116G,ENGIE,M139650,1,"1,166.53",STRATEGIC (NON CYCLICAL),01/02/16,"1,166.53",Technical and Service Support,"Works - Construction, R&M"
260116G,ENGIE,M139651,1,"4,058.07",STRATEGIC (NON CYCLICAL),01/02/16,"4,058.07",Technical and Service Support,"Works - Construction, R&M"
260116G,ENGIE,M139652,1,"3,169.82",STRATEGIC (NON CYCLICAL),01/02/16,"3,169.82",Technical and Service Support,"Works - Construction, R&M"
260116G,ENGIE,M139653,1,"2,864.02",STRATEGIC (NON CYCLICAL),01/02/16,"2,864.02",Technical and Service Support,"Works - Construction, R&M"
260116G,ENGIE,M139654,1,"2,518.42",STRATEGIC (NON CYCLICAL),01/02/16,"2,518.42",Technical and Service Support,"Works - Construction, R&M"
270116C,PHOENIX SOFTWARE LTD==========,OP/I769264,1,"1,309.39",MAINTENANCE & SUPPORT,01/02/16,"2,289.96",Information and Communication Technology,ICT
270116C,PHOENIX SOFTWARE LTD==========,OP/I769264,2,980.57,MAINTENANCE & SUPPORT,01/02/16,,Information and Communication Technology,ICT
260116G,HUNTER LODGE==================,S-016517,1,"1,750.00",ADVERTISING,01/02/16,"1,750.00",Community Safety Delivery,Facilities & Management S
260116G,SPIRE ASSOCIATES LTD==========,SA/3478,1,300.00,STRATEGIC (NON CYCLICAL),01/02/16,300.00,Technical and Service Support,"Works - Construction, R&M"
260116G,SPIRE ASSOCIATES LTD==========,SA/3479,1,275.00,STRATEGIC (NON CYCLICAL),01/02/16,650.00,Technical and Service Support,"Works - Construction, R&M"
260116G,SPIRE ASSOCIATES LTD==========,SA/3479,2,375.00,STRATEGIC (NON CYCLICAL),01/02/16,,Technical and Service Support,"Works - Construction, R&M"
260116G,LC ENERGY LTD,SIN004455,1,804.33,GAS,01/02/16,804.33,Technical And Service Support,Utilities
190116G,GROUND CONTROL LIMITED,SIN066574,1,800.00,GROUNDS MAINTENANCE,01/02/16,800.00,Technical And Service Support,"Works - Construction, R&M"
260116G,RELIANCE HIGH-TECH,SLINV00034336,1,563.48,STRATEGIC (CYCLICAL),01/02/16,563.48,Technical And Service Support,Facilities & Management S
180116G,ADVANCED FURNITURE============,0000078187,1,540.00,OFFICE FURNITURE,04/02/16,540.00,Operations Fire Stations,Furniture
260116G,ADVANCED FURNITURE============,0000078188,1,945.00,OFFICE FURNITURE,04/02/16,945.00,Operations Fire Stations,Furniture
280116G,CMS PLC=======================,0081529063,1,108.90,ACQUISITIONS,04/02/16,346.32,Information and Communication Technology,ICT
280116G,CMS PLC=======================,0081529063,2,103.50,ACQUISITIONS,04/02/16,,Information and Communication Technology,ICT
280116G,CMS PLC=======================,0081529063,3,42.76,ACQUISITIONS,04/02/16,,Information and Communication Technology,ICT
280116G,CMS PLC=======================,0081529063,4,38.52,ACQUISITIONS,04/02/16,,Information and Communication Technology,ICT
280116G,CMS PLC=======================,0081529063,5,52.64,ACQUISITIONS,04/02/16,,Information and Communication Technology,ICT
141347,THAMES WATER UTILITIES LTD====,0229569091A,1,740.02,WATER & SEWERAGE RATES,04/02/16,740.02,Technical And Service Support,Utilities
141336,CORONA ENERGY RETAIL 4 LTD,1077501161,1,88.84,GAS,04/02/16,"8,763.61",Technical And Service Support,Utilities
141336,CORONA ENERGY RETAIL 4 LTD,1077501161,2,584.52,GAS,04/02/16,,Technical And Service Support,Utilities
141336,CORONA ENERGY RETAIL 4 LTD,1077501161,3,2.89,GAS,04/02/16,,Technical And Service Support,Utilities
141336,CORONA ENERGY RETAIL 4 LTD,1077501161,4,17.98,GAS,04/02/16,,Technical And Service Support,Utilities
141336,CORONA ENERGY RETAIL 4 LTD,1077501161,5,9.35,GAS,04/02/16,,Technical And Service Support,Utilities
141336,CORONA ENERGY RETAIL 4 LTD,1077501161,6,269.12,GAS,04/02/16,,Technical And Service Support,Utilities
141336,CORONA ENERGY RETAIL 4 LTD,1077501161,7,633.71,GAS,04/02/16,,Technical And Service Support,Utilities
141336,CORONA ENERGY RETAIL 4 LTD,1077501161,8,6.99,GAS,04/02/16,,Technical And Service Support,Utilities
141336,CORONA ENERGY RETAIL 4 LTD,1077501161,9,77.64,GAS,04/02/16,,Technical And Service Support,Utilities
141336,CORONA ENERGY RETAIL 4 LTD,1077501161,10,22.94,GAS,04/02/16,,Technical And Service Support,Utilities
141336,CORONA ENERGY RETAIL 4 LTD,1077501161,11,58.46,GAS,04/02/16,,Technical And Service Support,Utilities
141336,CORONA ENERGY RETAIL 4 LTD,1077501161,12,516.07,GAS,04/02/16,,Technical And Service Support,Utilities
141336,CORONA ENERGY RETAIL 4 LTD,1077501161,13,183.03,GAS,04/02/16,,Technical And Service Support,Utilities
141336,CORONA ENERGY RETAIL 4 LTD,1077501161,14,230.99,GAS,04/02/16,,Technical And Service Support,Utilities
141336,CORONA ENERGY RETAIL 4 LTD,1077501161,15,452.94,GAS,04/02/16,,Technical And Service Support,Utilities
141336,CORONA ENERGY RETAIL 4 LTD,1077501161,16,781.05,GAS,04/02/16,,Technical And Service Support,Utilities
141336,CORONA ENERGY RETAIL 4 LTD,1077501161,17,738.30,GAS,04/02/16,,Technical And Service Support,Utilities
141336,CORONA ENERGY RETAIL 4 LTD,1077501161,18,797.65,GAS,04/02/16,,Technical And Service Support,Utilities
141336,CORONA ENERGY RETAIL 4 LTD,1077501161,19,846.15,GAS,04/02/16,,Technical And Service Support,Utilities
141336,CORONA ENERGY RETAIL 4 LTD,1077501161,20,116.38,GAS,04/02/16,,Technical And Service Support,Utilities
141336,CORONA ENERGY RETAIL 4 LTD,1077501161,21,276.50,GAS,04/02/16,,Technical And Service Support,Utilities
141336,CORONA ENERGY RETAIL 4 LTD,1077501161,22,11.68,GAS,04/02/16,,Technical And Service Support,Utilities
141336,CORONA ENERGY RETAIL 4 LTD,1077501161,23,36.19,GAS,04/02/16,,Technical And Service Support,Utilities
141336,CORONA ENERGY RETAIL 4 LTD,1077501161,24,11.07,GAS,04/02/16,,Technical And Service Support,Utilities
141336,CORONA ENERGY RETAIL 4 LTD,1077501161,25,335.51,GAS,04/02/16,,Technical And Service Support,Utilities
141336,CORONA ENERGY RETAIL 4 LTD,1077501161,26,94.24,GAS,04/02/16,,Operations Fire Stations (closed),Utilities
141336,CORONA ENERGY RETAIL 4 LTD,1077501161,27,11.92,GAS,04/02/16,,Operations Fire Stations (closed),Utilities
141336,CORONA ENERGY RETAIL 4 LTD,1077501161,28,21.48,GAS,04/02/16,,Technical And Service Support,Utilities
141336,CORONA ENERGY RETAIL 4 LTD,1077501161,29,603.13,GAS,04/02/16,,Technical And Service Support,Utilities
141336,CORONA ENERGY RETAIL 4 LTD,1077501161,30,144.85,GAS,04/02/16,,Technical And Service Support,Utilities
141336,CORONA ENERGY RETAIL 4 LTD,1077501161,31,283.92,GAS,04/02/16,,Technical And Service Support,Utilities
141336,CORONA ENERGY RETAIL 4 LTD,1077501161,32,254.12,GAS,04/02/16,,Technical And Service Support,Utilities
141336,CORONA ENERGY RETAIL 4 LTD,1077501161,33,244.00,GAS,04/02/16,,Technical And Service Support,Utilities
141345,CORONA ENERGY RETAIL 4 LTD,10775011610,1,27.09,GAS,04/02/16,"5,544.26",Technical And Service Support,Utilities
141345,CORONA ENERGY RETAIL 4 LTD,10775011610,2,122.12,GAS,04/02/16,,Technical And Service Support,Utilities
141345,CORONA ENERGY RETAIL 4 LTD,10775011610,3,29.88,GAS,04/02/16,,Technical And Service Support,Utilities
141345,CORONA ENERGY RETAIL 4 LTD,10775011610,4,246.56,GAS,04/02/16,,Technical And Service Support,Utilities
141345,CORONA ENERGY RETAIL 4 LTD,10775011610,5,55.88,GAS,04/02/16,,Technical And Service Support,Utilities
141345,CORONA ENERGY RETAIL 4 LTD,10775011610,6,468.44,GAS,04/02/16,,Technical And Service Support,Utilities
141345,CORONA ENERGY RETAIL 4 LTD,10775011610,7,154.24,GAS,04/02/16,,Technical And Service Support,Utilities
141345,CORONA ENERGY RETAIL 4 LTD,10775011610,8,648.17,GAS,04/02/16,,Technical And Service Support,Utilities
141345,CORONA ENERGY RETAIL 4 LTD,10775011610,9,458.44,GAS,04/02/16,,Technical And Service Support,Utilities
141345,CORONA ENERGY RETAIL 4 LTD,10775011610,10,29.07,GAS,04/02/16,,Technical And Service Support,Utilities
141345,CORONA ENERGY RETAIL 4 LTD,10775011610,11,17.90,GAS,04/02/16,,Technical And Service Support,Utilities
141345,CORONA ENERGY RETAIL 4 LTD,10775011610,12,509.67,GAS,04/02/16,,Technical And Service Support,Utilities
141345,CORONA ENERGY RETAIL 4 LTD,10775011610,13,68.88,GAS,04/02/16,,Technical And Service Support,Utilities
141345,CORONA ENERGY RETAIL 4 LTD,10775011610,14,603.91,GAS,04/02/16,,Technical And Service Support,Utilities
141345,CORONA ENERGY RETAIL 4 LTD,10775011610,15,230.50,GAS,04/02/16,,Technical And Service Support,Utilities
141345,CORONA ENERGY RETAIL 4 LTD,10775011610,16,653.13,GAS,04/02/16,,Technical And Service Support,Utilities
141345,CORONA ENERGY RETAIL 4 LTD,10775011610,17,32.69,GAS,04/02/16,,Technical And Service Support,Utilities
141345,CORONA ENERGY RETAIL 4 LTD,10775011610,18,604.73,GAS,04/02/16,,Technical And Service Support,Utilities
141345,CORONA ENERGY RETAIL 4 LTD,10775011610,19,19.06,GAS,04/02/16,,Technical And Service Support,Utilities
141345,CORONA ENERGY RETAIL 4 LTD,10775011610,20,563.90,GAS,04/02/16,,Technical And Service Support,Utilities
141337,CORONA ENERGY RETAIL 4 LTD,1077501162,1,179.82,GAS,04/02/16,"6,703.28",Technical And Service Support,Utilities
141337,CORONA ENERGY RETAIL 4 LTD,1077501162,2,149.33,GAS,04/02/16,,Technical And Service Support,Utilities
141337,CORONA ENERGY RETAIL 4 LTD,1077501162,3,124.56,GAS,04/02/16,,Technical And Service Support,Utilities
141337,CORONA ENERGY RETAIL 4 LTD,1077501162,4,119.40,GAS,04/02/16,,Technical And Service Support,Utilities
141337,CORONA ENERGY RETAIL 4 LTD,1077501162,5,118.56,GAS,04/02/16,,Technical And Service Support,Utilities
141337,CORONA ENERGY RETAIL 4 LTD,1077501162,6,134.14,GAS,04/02/16,,Technical And Service Support,Utilities
141337,CORONA ENERGY RETAIL 4 LTD,1077501162,7,194.01,GAS,04/02/16,,Technical And Service Support,Utilities
141337,CORONA ENERGY RETAIL 4 LTD,1077501162,8,242.05,GAS,04/02/16,,Technical And Service Support,Utilities
141337,CORONA ENERGY RETAIL 4 LTD,1077501162,9,52.45,GAS,04/02/16,,Technical And Service Support,Utilities
141337,CORONA ENERGY RETAIL 4 LTD,1077501162,10,228.96,GAS,04/02/16,,Technical And Service Support,Utilities
141337,CORONA ENERGY RETAIL 4 LTD,1077501162,11,96.97,GAS,04/02/16,,Technical And Service Support,Utilities
141337,CORONA ENERGY RETAIL 4 LTD,1077501162,12,92.42,GAS,04/02/16,,Technical And Service Support,Utilities
141337,CORONA ENERGY RETAIL 4 LTD,1077501162,13,151.12,GAS,04/02/16,,Technical And Service Support,Utilities
141337,CORONA ENERGY RETAIL 4 LTD,1077501162,14,143.32,GAS,04/02/16,,Technical And Service Support,Utilities
141337,CORONA ENERGY RETAIL 4 LTD,1077501162,15,542.47,GAS,04/02/16,,Technical And Service Support,Utilities
141337,CORONA ENERGY RETAIL 4 LTD,1077501162,16,237.14,GAS,04/02/16,,Technical And Service Support,Utilities
141337,CORONA ENERGY RETAIL 4 LTD,1077501162,17,645.11,GAS,04/02/16,,Technical And Service Support,Utilities
141337,CORONA ENERGY RETAIL 4 LTD,1077501162,18,1.38,GAS,04/02/16,,Technical And Service Support,Utilities
141337,CORONA ENERGY RETAIL 4 LTD,1077501162,19,51.09,GAS,04/02/16,,Technical And Service Support,Utilities
141337,CORONA ENERGY RETAIL 4 LTD,1077501162,20,17.09,GAS,04/02/16,,Technical And Service Support,Utilities
141337,CORONA ENERGY RETAIL 4 LTD,1077501162,21,482.45,GAS,04/02/16,,Technical And Service Support,Utilities
141337,CORONA ENERGY RETAIL 4 LTD,1077501162,22,54.82,GAS,04/02/16,,Technical And Service Support,Utilities
141337,CORONA ENERGY RETAIL 4 LTD,1077501162,23,161.84,GAS,04/02/16,,Technical And Service Support,Utilities
141337,CORONA ENERGY RETAIL 4 LTD,1077501162,24,425.63,GAS,04/02/16,,Technical And Service Support,Utilities
141337,CORONA ENERGY RETAIL 4 LTD,1077501162,25,18.38,GAS,04/02/16,,Technical And Service Support,Utilities
141337,CORONA ENERGY RETAIL 4 LTD,1077501162,26,61.87,GAS,04/02/16,,Technical And Service Support,Utilities
141337,CORONA ENERGY RETAIL 4 LTD,1077501162,27,26.20,GAS,04/02/16,,Technical And Service Support,Utilities
141337,CORONA ENERGY RETAIL 4 LTD,1077501162,28,25.90,GAS,04/02/16,,Technical And Service Support,Utilities
141337,CORONA ENERGY RETAIL 4 LTD,1077501162,29,"1,782.91",GAS,04/02/16,,Technical And Service Support,Utilities
141337,CORONA ENERGY RETAIL 4 LTD,1077501162,30,14.67,GAS,04/02/16,,Technical And Service Support,Utilities
141337,CORONA ENERGY RETAIL 4 LTD,1077501162,31,49.76,GAS,04/02/16,,Technical And Service Support,Utilities
141337,CORONA ENERGY RETAIL 4 LTD,1077501162,32,2.16,GAS,04/02/16,,Technical And Service Support,Utilities
141337,CORONA ENERGY RETAIL 4 LTD,1077501162,33,75.30,GAS,04/02/16,,Technical And Service Support,Utilities
141338,CORONA ENERGY RETAIL 4 LTD,1077501163,1,47.35,GAS,04/02/16,"5,835.06",Technical And Service Support,Utilities
141338,CORONA ENERGY RETAIL 4 LTD,1077501163,2,11.04,GAS,04/02/16,,Technical And Service Support,Utilities
141338,CORONA ENERGY RETAIL 4 LTD,1077501163,3,1.31,GAS,04/02/16,,Technical And Service Support,Utilities
141338,CORONA ENERGY RETAIL 4 LTD,1077501163,4,48.82,GAS,04/02/16,,Technical And Service Support,Utilities
141338,CORONA ENERGY RETAIL 4 LTD,1077501163,5,7.89,GAS,04/02/16,,Technical And Service Support,Utilities
141338,CORONA ENERGY RETAIL 4 LTD,1077501163,6,242.11,GAS,04/02/16,,Technical And Service Support,Utilities
141338,CORONA ENERGY RETAIL 4 LTD,1077501163,7,148.21,GAS,04/02/16,,Technical And Service Support,Utilities
141338,CORONA ENERGY RETAIL 4 LTD,1077501163,8,139.87,GAS,04/02/16,,Technical And Service Support,Utilities
141338,CORONA ENERGY RETAIL 4 LTD,1077501163,9,138.38,GAS,04/02/16,,Technical And Service Support,Utilities
141338,CORONA ENERGY RETAIL 4 LTD,1077501163,10,162.20,GAS,04/02/16,,Technical And Service Support,Utilities
141338,CORONA ENERGY RETAIL 4 LTD,1077501163,11,282.72,GAS,04/02/16,,Technical And Service Support,Utilities
141338,CORONA ENERGY RETAIL 4 LTD,1077501163,12,338.71,GAS,04/02/16,,Technical And Service Support,Utilities
141338,CORONA ENERGY RETAIL 4 LTD,1077501163,13,12.56,GAS,04/02/16,,Technical And Service Support,Utilities
141338,CORONA ENERGY RETAIL 4 LTD,1077501163,14,374.69,GAS,04/02/16,,Technical And Service Support,Utilities
141338,CORONA ENERGY RETAIL 4 LTD,1077501163,15,0.58,GAS,04/02/16,,Technical And Service Support,Utilities
141338,CORONA ENERGY RETAIL 4 LTD,1077501163,16,27.90,GAS,04/02/16,,Technical And Service Support,Utilities
141338,CORONA ENERGY RETAIL 4 LTD,1077501163,17,226.24,GAS,04/02/16,,Technical And Service Support,Utilities
141338,CORONA ENERGY RETAIL 4 LTD,1077501163,18,248.30,GAS,04/02/16,,Technical And Service Support,Utilities
141338,CORONA ENERGY RETAIL 4 LTD,1077501163,19,277.09,GAS,04/02/16,,Technical And Service Support,Utilities
141338,CORONA ENERGY RETAIL 4 LTD,1077501163,20,290.42,GAS,04/02/16,,Technical And Service Support,Utilities
141338,CORONA ENERGY RETAIL 4 LTD,1077501163,21,296.47,GAS,04/02/16,,Technical And Service Support,Utilities
141338,CORONA ENERGY RETAIL 4 LTD,1077501163,22,320.00,GAS,04/02/16,,Technical And Service Support,Utilities
141338,CORONA ENERGY RETAIL 4 LTD,1077501163,23,293.85,GAS,04/02/16,,Technical And Service Support,Utilities
141338,CORONA ENERGY RETAIL 4 LTD,1077501163,24,412.30,GAS,04/02/16,,Technical And Service Support,Utilities
141338,CORONA ENERGY RETAIL 4 LTD,1077501163,25,43.89,GAS,04/02/16,,Technical And Service Support,Utilities
141338,CORONA ENERGY RETAIL 4 LTD,1077501163,26,28.02,GAS,04/02/16,,Technical And Service Support,Utilities
141338,CORONA ENERGY RETAIL 4 LTD,1077501163,27,68.36,GAS,04/02/16,,Technical And Service Support,Utilities
141338,CORONA ENERGY RETAIL 4 LTD,1077501163,28,288.14,GAS,04/02/16,,Technical And Service Support,Utilities
141338,CORONA ENERGY RETAIL 4 LTD,1077501163,29,9.05,GAS,04/02/16,,Technical And Service Support,Utilities
141338,CORONA ENERGY RETAIL 4 LTD,1077501163,30,277.88,GAS,04/02/16,,Technical And Service Support,Utilities
141338,CORONA ENERGY RETAIL 4 LTD,1077501163,31,55.56,GAS,04/02/16,,Technical And Service Support,Utilities
141338,CORONA ENERGY RETAIL 4 LTD,1077501163,32,708.06,GAS,04/02/16,,Technical And Service Support,Utilities
141338,CORONA ENERGY RETAIL 4 LTD,1077501163,33,7.09,GAS,04/02/16,,Technical And Service Support,Utilities
141339,CORONA ENERGY RETAIL 4 LTD,1077501164,1,79.47,GAS,04/02/16,"6,529.55",Technical And Service Support,Utilities
141339,CORONA ENERGY RETAIL 4 LTD,1077501164,2,18.33,GAS,04/02/16,,Technical And Service Support,Utilities
141339,CORONA ENERGY RETAIL 4 LTD,1077501164,3,268.53,GAS,04/02/16,,Technical And Service Support,Utilities
141339,CORONA ENERGY RETAIL 4 LTD,1077501164,4,22.12,GAS,04/02/16,,Technical And Service Support,Utilities
141339,CORONA ENERGY RETAIL 4 LTD,1077501164,5,305.33,GAS,04/02/16,,Technical And Service Support,Utilities
141339,CORONA ENERGY RETAIL 4 LTD,1077501164,6,9.95,GAS,04/02/16,,Technical And Service Support,Utilities
141339,CORONA ENERGY RETAIL 4 LTD,1077501164,7,32.55,GAS,04/02/16,,Technical And Service Support,Utilities
141339,CORONA ENERGY RETAIL 4 LTD,1077501164,8,197.27,GAS,04/02/16,,Technical And Service Support,Utilities
141339,CORONA ENERGY RETAIL 4 LTD,1077501164,9,352.96,GAS,04/02/16,,Technical And Service Support,Utilities
141339,CORONA ENERGY RETAIL 4 LTD,1077501164,10,584.59,GAS,04/02/16,,Technical And Service Support,Utilities
141339,CORONA ENERGY RETAIL 4 LTD,1077501164,11,1.35,GAS,04/02/16,,Technical And Service Support,Utilities
141339,CORONA ENERGY RETAIL 4 LTD,1077501164,12,17.64,GAS,04/02/16,,Technical And Service Support,Utilities
141339,CORONA ENERGY RETAIL 4 LTD,1077501164,13,70.58,GAS,04/02/16,,Technical And Service Support,Utilities
141339,CORONA ENERGY RETAIL 4 LTD,1077501164,14,39.53,GAS,04/02/16,,Technical And Service Support,Utilities
141339,CORONA ENERGY RETAIL 4 LTD,1077501164,15,543.55,GAS,04/02/16,,Technical And Service Support,Utilities
141339,CORONA ENERGY RETAIL 4 LTD,1077501164,16,69.43,GAS,04/02/16,,Technical And Service Support,Utilities
141339,CORONA ENERGY RETAIL 4 LTD,1077501164,17,971.03,GAS,04/02/16,,Technical And Service Support,Utilities
141339,CORONA ENERGY RETAIL 4 LTD,1077501164,18,55.06,GAS,04/02/16,,Technical And Service Support,Utilities
141339,CORONA ENERGY RETAIL 4 LTD,1077501164,19,233.70,GAS,04/02/16,,Technical And Service Support,Utilities
141339,CORONA ENERGY RETAIL 4 LTD,1077501164,20,9.39,GAS,04/02/16,,Technical And Service Support,Utilities
141339,CORONA ENERGY RETAIL 4 LTD,1077501164,21,49.49,GAS,04/02/16,,Technical And Service Support,Utilities
141339,CORONA ENERGY RETAIL 4 LTD,1077501164,22,211.31,GAS,04/02/16,,Technical And Service Support,Utilities
141339,CORONA ENERGY RETAIL 4 LTD,1077501164,23,494.09,GAS,04/02/16,,Technical And Service Support,Utilities
141339,CORONA ENERGY RETAIL 4 LTD,1077501164,24,98.12,GAS,04/02/16,,Technical And Service Support,Utilities
141339,CORONA ENERGY RETAIL 4 LTD,1077501164,25,408.52,GAS,04/02/16,,Technical And Service Support,Utilities
141339,CORONA ENERGY RETAIL 4 LTD,1077501164,26,8.01,GAS,04/02/16,,Technical And Service Support,Utilities
141339,CORONA ENERGY RETAIL 4 LTD,1077501164,27,42.79,GAS,04/02/16,,Technical And Service Support,Utilities
141339,CORONA ENERGY RETAIL 4 LTD,1077501164,28,52.46,GAS,04/02/16,,Technical And Service Support,Utilities
141339,CORONA ENERGY RETAIL 4 LTD,1077501164,29,225.31,GAS,04/02/16,,Technical And Service Support,Utilities
141339,CORONA ENERGY RETAIL 4 LTD,1077501164,30,257.02,GAS,04/02/16,,Technical And Service Support,Utilities
141339,CORONA ENERGY RETAIL 4 LTD,1077501164,31,737.23,GAS,04/02/16,,Technical And Service Support,Utilities
141339,CORONA ENERGY RETAIL 4 LTD,1077501164,32,12.36,GAS,04/02/16,,Technical And Service Support,Utilities
141339,CORONA ENERGY RETAIL 4 LTD,1077501164,33,50.48,GAS,04/02/16,,Technical And Service Support,Utilities
141341,CORONA ENERGY RETAIL 4 LTD,1077501166,1,183.88,GAS,04/02/16,"10,970.68",Technical And Service Support,Utilities
141341,CORONA ENERGY RETAIL 4 LTD,1077501166,2,48.03,GAS,04/02/16,,Technical And Service Support,Utilities
141341,CORONA ENERGY RETAIL 4 LTD,1077501166,3,"2,524.57",GAS,04/02/16,,Technical And Service Support,Utilities
141341,CORONA ENERGY RETAIL 4 LTD,1077501166,4,7.68,GAS,04/02/16,,Technical And Service Support,Utilities
141341,CORONA ENERGY RETAIL 4 LTD,1077501166,5,9.92,GAS,04/02/16,,Technical And Service Support,Utilities
141341,CORONA ENERGY RETAIL 4 LTD,1077501166,6,9.60,GAS,04/02/16,,Technical And Service Support,Utilities
141341,CORONA ENERGY RETAIL 4 LTD,1077501166,7,9.92,GAS,04/02/16,,Technical And Service Support,Utilities
141341,CORONA ENERGY RETAIL 4 LTD,1077501166,8,410.99,GAS,04/02/16,,Technical And Service Support,Utilities
141341,CORONA ENERGY RETAIL 4 LTD,1077501166,9,26.57,GAS,04/02/16,,Technical And Service Support,Utilities
141341,CORONA ENERGY RETAIL 4 LTD,1077501166,10,100.72,GAS,04/02/16,,Technical And Service Support,Utilities
141341,CORONA ENERGY RETAIL 4 LTD,1077501166,11,267.85,GAS,04/02/16,,Technical And Service Support,Utilities
141341,CORONA ENERGY RETAIL 4 LTD,1077501166,12,189.96,GAS,04/02/16,,Technical And Service Support,Utilities
141341,CORONA ENERGY RETAIL 4 LTD,1077501166,13,784.56,GAS,04/02/16,,Technical And Service Support,Utilities
141341,CORONA ENERGY RETAIL 4 LTD,1077501166,14,20.23,GAS,04/02/16,,Technical And Service Support,Utilities
141341,CORONA ENERGY RETAIL 4 LTD,1077501166,15,572.80,GAS,04/02/16,,Technical And Service Support,Utilities
141341,CORONA ENERGY RETAIL 4 LTD,1077501166,16,"1,865.46",GAS,04/02/16,,Technical And Service Support,Utilities
141341,CORONA ENERGY RETAIL 4 LTD,1077501166,17,39.45,GAS,04/02/16,,Technical And Service Support,Utilities
141341,CORONA ENERGY RETAIL 4 LTD,1077501166,18,349.75,GAS,04/02/16,,Technical And Service Support,Utilities
141341,CORONA ENERGY RETAIL 4 LTD,1077501166,19,31.56,GAS,04/02/16,,Technical And Service Support,Utilities
141341,CORONA ENERGY RETAIL 4 LTD,1077501166,20,937.07,GAS,04/02/16,,Technical And Service Support,Utilities
141341,CORONA ENERGY RETAIL 4 LTD,1077501166,21,26.80,GAS,04/02/16,,Technical And Service Support,Utilities
141341,CORONA ENERGY RETAIL 4 LTD,1077501166,22,661.33,GAS,04/02/16,,Technical And Service Support,Utilities
141341,CORONA ENERGY RETAIL 4 LTD,1077501166,23,11.68,GAS,04/02/16,,Technical And Service Support,Utilities
141341,CORONA ENERGY RETAIL 4 LTD,1077501166,24,348.93,GAS,04/02/16,,Technical And Service Support,Utilities
141341,CORONA ENERGY RETAIL 4 LTD,1077501166,25,116.57,GAS,04/02/16,,Technical And Service Support,Utilities
141341,CORONA ENERGY RETAIL 4 LTD,1077501166,26,484.14,GAS,04/02/16,,Technical And Service Support,Utilities
141341,CORONA ENERGY RETAIL 4 LTD,1077501166,27,9.06,GAS,04/02/16,,Technical And Service Support,Utilities
141341,CORONA ENERGY RETAIL 4 LTD,1077501166,28,47.23,GAS,04/02/16,,Technical And Service Support,Utilities
141341,CORONA ENERGY RETAIL 4 LTD,1077501166,29,249.19,GAS,04/02/16,,Technical And Service Support,Utilities
141341,CORONA ENERGY RETAIL 4 LTD,1077501166,30,14.10,GAS,04/02/16,,Technical And Service Support,Utilities
141341,CORONA ENERGY RETAIL 4 LTD,1077501166,31,202.79,GAS,04/02/16,,Technical And Service Support,Utilities
141341,CORONA ENERGY RETAIL 4 LTD,1077501166,32,26.75,GAS,04/02/16,,Technical And Service Support,Utilities
141341,CORONA ENERGY RETAIL 4 LTD,1077501166,33,381.54,GAS,04/02/16,,Technical And Service Support,Utilities
141342,CORONA ENERGY RETAIL 4 LTD,1077501167,1,241.48,GAS,04/02/16,"8,448.62",Technical And Service Support,Utilities
141342,CORONA ENERGY RETAIL 4 LTD,1077501167,2,122.26,GAS,04/02/16,,Technical And Service Support,Utilities
141342,CORONA ENERGY RETAIL 4 LTD,1077501167,3,20.37,GAS,04/02/16,,Technical And Service Support,Utilities
141342,CORONA ENERGY RETAIL 4 LTD,1077501167,4,51.81,GAS,04/02/16,,Technical And Service Support,Utilities
141342,CORONA ENERGY RETAIL 4 LTD,1077501167,5,93.71,GAS,04/02/16,,Technical And Service Support,Utilities
141342,CORONA ENERGY RETAIL 4 LTD,1077501167,6,272.10,GAS,04/02/16,,Technical And Service Support,Utilities
141342,CORONA ENERGY RETAIL 4 LTD,1077501167,7,78.49,GAS,04/02/16,,Technical And Service Support,Utilities
141342,CORONA ENERGY RETAIL 4 LTD,1077501167,8,319.03,GAS,04/02/16,,Technical And Service Support,Utilities
141342,CORONA ENERGY RETAIL 4 LTD,1077501167,9,123.34,GAS,04/02/16,,Technical And Service Support,Utilities
141342,CORONA ENERGY RETAIL 4 LTD,1077501167,10,674.91,GAS,04/02/16,,Technical And Service Support,Utilities
141342,CORONA ENERGY RETAIL 4 LTD,1077501167,11,313.01,GAS,04/02/16,,Technical And Service Support,Utilities
141342,CORONA ENERGY RETAIL 4 LTD,1077501167,12,455.51,GAS,04/02/16,,Technical And Service Support,Utilities
141342,CORONA ENERGY RETAIL 4 LTD,1077501167,13,"1,303.41",GAS,04/02/16,,Technical And Service Support,Utilities
141342,CORONA ENERGY RETAIL 4 LTD,1077501167,14,27.18,GAS,04/02/16,,Technical And Service Support,Utilities
141342,CORONA ENERGY RETAIL 4 LTD,1077501167,15,395.72,GAS,04/02/16,,Technical And Service Support,Utilities
141342,CORONA ENERGY RETAIL 4 LTD,1077501167,16,67.69,GAS,04/02/16,,Technical And Service Support,Utilities
141342,CORONA ENERGY RETAIL 4 LTD,1077501167,17,610.30,GAS,04/02/16,,Technical And Service Support,Utilities
141342,CORONA ENERGY RETAIL 4 LTD,1077501167,18,66.19,GAS,04/02/16,,Technical And Service Support,Utilities
141342,CORONA ENERGY RETAIL 4 LTD,1077501167,19,"1,149.67",GAS,04/02/16,,Technical And Service Support,Utilities
141342,CORONA ENERGY RETAIL 4 LTD,1077501167,20,20.22,GAS,04/02/16,,Technical And Service Support,Utilities
141342,CORONA ENERGY RETAIL 4 LTD,1077501167,21,279.91,GAS,04/02/16,,Technical And Service Support,Utilities
141342,CORONA ENERGY RETAIL 4 LTD,1077501167,22,3.02,GAS,04/02/16,,Technical And Service Support,Utilities
141342,CORONA ENERGY RETAIL 4 LTD,1077501167,23,48.17,GAS,04/02/16,,Technical And Service Support,Utilities
141342,CORONA ENERGY RETAIL 4 LTD,1077501167,24,3.12,GAS,04/02/16,,Technical And Service Support,Utilities
141342,CORONA ENERGY RETAIL 4 LTD,1077501167,25,55.39,GAS,04/02/16,,Technical And Service Support,Utilities
141342,CORONA ENERGY RETAIL 4 LTD,1077501167,26,64.29,GAS,04/02/16,,Technical And Service Support,Utilities
141342,CORONA ENERGY RETAIL 4 LTD,1077501167,27,839.04,GAS,04/02/16,,Technical And Service Support,Utilities
141342,CORONA ENERGY RETAIL 4 LTD,1077501167,28,7.17,GAS,04/02/16,,Technical And Service Support,Utilities
141342,CORONA ENERGY RETAIL 4 LTD,1077501167,29,117.92,GAS,04/02/16,,Technical And Service Support,Utilities
141342,CORONA ENERGY RETAIL 4 LTD,1077501167,30,131.28,GAS,04/02/16,,Technical And Service Support,Utilities
141342,CORONA ENERGY RETAIL 4 LTD,1077501167,31,452.19,GAS,04/02/16,,Technical And Service Support,Utilities
141342,CORONA ENERGY RETAIL 4 LTD,1077501167,32,7.72,GAS,04/02/16,,Technical And Service Support,Utilities
141342,CORONA ENERGY RETAIL 4 LTD,1077501167,33,33.00,GAS,04/02/16,,Technical And Service Support,Utilities
141343,CORONA ENERGY RETAIL 4 LTD,1077501168,1,3.54,GAS,04/02/16,"6,999.88",Technical And Service Support,Utilities
141343,CORONA ENERGY RETAIL 4 LTD,1077501168,2,118.94,GAS,04/02/16,,Technical And Service Support,Utilities
141343,CORONA ENERGY RETAIL 4 LTD,1077501168,3,69.83,GAS,04/02/16,,Technical And Service Support,Utilities
141343,CORONA ENERGY RETAIL 4 LTD,1077501168,4,339.03,GAS,04/02/16,,Technical And Service Support,Utilities
141343,CORONA ENERGY RETAIL 4 LTD,1077501168,5,49.77,GAS,04/02/16,,Technical And Service Support,Utilities
141343,CORONA ENERGY RETAIL 4 LTD,1077501168,6,577.01,GAS,04/02/16,,Technical And Service Support,Utilities
141343,CORONA ENERGY RETAIL 4 LTD,1077501168,7,147.22,GAS,04/02/16,,Technical And Service Support,Utilities
141343,CORONA ENERGY RETAIL 4 LTD,1077501168,8,55.46,GAS,04/02/16,,Technical And Service Support,Utilities
141343,CORONA ENERGY RETAIL 4 LTD,1077501168,9,89.33,GAS,04/02/16,,Technical And Service Support,Utilities
141343,CORONA ENERGY RETAIL 4 LTD,1077501168,10,67.52,GAS,04/02/16,,Technical And Service Support,Utilities
141343,CORONA ENERGY RETAIL 4 LTD,1077501168,11,84.12,GAS,04/02/16,,Technical And Service Support,Utilities
141343,CORONA ENERGY RETAIL 4 LTD,1077501168,12,159.83,GAS,04/02/16,,Technical And Service Support,Utilities
141343,CORONA ENERGY RETAIL 4 LTD,1077501168,13,25.46,GAS,04/02/16,,Technical And Service Support,Utilities
141343,CORONA ENERGY RETAIL 4 LTD,1077501168,14,39.57,GAS,04/02/16,,Technical And Service Support,Utilities
141343,CORONA ENERGY RETAIL 4 LTD,1077501168,15,281.51,GAS,04/02/16,,Technical And Service Support,Utilities
141343,CORONA ENERGY RETAIL 4 LTD,1077501168,16,208.97,GAS,04/02/16,,Technical And Service Support,Utilities
141343,CORONA ENERGY RETAIL 4 LTD,1077501168,17,207.04,GAS,04/02/16,,Technical And Service Support,Utilities
141343,CORONA ENERGY RETAIL 4 LTD,1077501168,18,253.63,GAS,04/02/16,,Technical And Service Support,Utilities
141343,CORONA ENERGY RETAIL 4 LTD,1077501168,19,294.18,GAS,04/02/16,,Technical And Service Support,Utilities
141343,CORONA ENERGY RETAIL 4 LTD,1077501168,20,380.18,GAS,04/02/16,,Technical And Service Support,Utilities
141343,CORONA ENERGY RETAIL 4 LTD,1077501168,21,98.09,GAS,04/02/16,,Technical And Service Support,Utilities
141343,CORONA ENERGY RETAIL 4 LTD,1077501168,22,342.62,GAS,04/02/16,,Technical And Service Support,Utilities
141343,CORONA ENERGY RETAIL 4 LTD,1077501168,23,57.31,GAS,04/02/16,,Technical And Service Support,Utilities
141343,CORONA ENERGY RETAIL 4 LTD,1077501168,24,812.45,GAS,04/02/16,,Technical And Service Support,Utilities
141343,CORONA ENERGY RETAIL 4 LTD,1077501168,25,89.61,GAS,04/02/16,,Technical And Service Support,Utilities
141343,CORONA ENERGY RETAIL 4 LTD,1077501168,26,311.79,GAS,04/02/16,,Technical And Service Support,Utilities
141343,CORONA ENERGY RETAIL 4 LTD,1077501168,27,36.50,GAS,04/02/16,,Technical And Service Support,Utilities
141343,CORONA ENERGY RETAIL 4 LTD,1077501168,28,491.48,GAS,04/02/16,,Technical And Service Support,Utilities
141343,CORONA ENERGY RETAIL 4 LTD,1077501168,29,121.97,GAS,04/02/16,,Technical And Service Support,Utilities
141343,CORONA ENERGY RETAIL 4 LTD,1077501168,30,135.79,GAS,04/02/16,,Technical And Service Support,Utilities
141343,CORONA ENERGY RETAIL 4 LTD,1077501168,31,127.86,GAS,04/02/16,,Technical And Service Support,Utilities
141343,CORONA ENERGY RETAIL 4 LTD,1077501168,32,285.16,GAS,04/02/16,,Technical And Service Support,Utilities
141343,CORONA ENERGY RETAIL 4 LTD,1077501168,33,297.99,GAS,04/02/16,,Technical And Service Support,Utilities
141343,CORONA ENERGY RETAIL 4 LTD,1077501168,34,339.12,GAS,04/02/16,,Technical And Service Support,Utilities
141344,CORONA ENERGY RETAIL 4 LTD,1077501169,1,"2,204.39",GAS,04/02/16,"10,085.70",Technical And Service Support,Utilities
141344,CORONA ENERGY RETAIL 4 LTD,1077501169,2,549.00,GAS,04/02/16,,Technical And Service Support,Utilities
141344,CORONA ENERGY RETAIL 4 LTD,1077501169,3,78.43,GAS,04/02/16,,Technical And Service Support,Utilities
141344,CORONA ENERGY RETAIL 4 LTD,1077501169,4,157.89,GAS,04/02/16,,Technical And Service Support,Utilities
141344,CORONA ENERGY RETAIL 4 LTD,1077501169,5,542.36,GAS,04/02/16,,Technical And Service Support,Utilities
141344,CORONA ENERGY RETAIL 4 LTD,1077501169,6,25.29,GAS,04/02/16,,Technical And Service Support,Utilities
141344,CORONA ENERGY RETAIL 4 LTD,1077501169,7,355.52,GAS,04/02/16,,Technical And Service Support,Utilities
141344,CORONA ENERGY RETAIL 4 LTD,1077501169,8,48.10,GAS,04/02/16,,Technical And Service Support,Utilities
141344,CORONA ENERGY RETAIL 4 LTD,1077501169,9,"1,415.75",GAS,04/02/16,,Technical And Service Support,Utilities
141344,CORONA ENERGY RETAIL 4 LTD,1077501169,10,1.98,GAS,04/02/16,,Technical And Service Support,Utilities
141344,CORONA ENERGY RETAIL 4 LTD,1077501169,11,71.66,GAS,04/02/16,,Technical And Service Support,Utilities
141344,CORONA ENERGY RETAIL 4 LTD,1077501169,12,211.15,GAS,04/02/16,,Technical And Service Support,Utilities
141344,CORONA ENERGY RETAIL 4 LTD,1077501169,13,79.56,GAS,04/02/16,,Technical And Service Support,Utilities
141344,CORONA ENERGY RETAIL 4 LTD,1077501169,14,14.88,GAS,04/02/16,,Technical And Service Support,Utilities
141344,CORONA ENERGY RETAIL 4 LTD,1077501169,15,151.18,GAS,04/02/16,,Technical And Service Support,Utilities
141344,CORONA ENERGY RETAIL 4 LTD,1077501169,16,361.63,GAS,04/02/16,,Technical And Service Support,Utilities
141344,CORONA ENERGY RETAIL 4 LTD,1077501169,17,147.75,GAS,04/02/16,,Technical And Service Support,Utilities
141344,CORONA ENERGY RETAIL 4 LTD,1077501169,18,732.49,GAS,04/02/16,,Technical And Service Support,Utilities
141344,CORONA ENERGY RETAIL 4 LTD,1077501169,19,57.99,GAS,04/02/16,,Technical And Service Support,Utilities
141344,CORONA ENERGY RETAIL 4 LTD,1077501169,20,248.81,GAS,04/02/16,,Technical And Service Support,Utilities
141344,CORONA ENERGY RETAIL 4 LTD,1077501169,21,15.25,GAS,04/02/16,,Technical And Service Support,Utilities
141344,CORONA ENERGY RETAIL 4 LTD,1077501169,22,72.46,GAS,04/02/16,,Technical And Service Support,Utilities
141344,CORONA ENERGY RETAIL 4 LTD,1077501169,23,32.76,GAS,04/02/16,,Technical And Service Support,Utilities
141344,CORONA ENERGY RETAIL 4 LTD,1077501169,24,113.87,GAS,04/02/16,,Technical And Service Support,Utilities
141344,CORONA ENERGY RETAIL 4 LTD,1077501169,25,402.37,GAS,04/02/16,,Technical And Service Support,Utilities
141344,CORONA ENERGY RETAIL 4 LTD,1077501169,26,105.21,GAS,04/02/16,,Technical And Service Support,Utilities
141344,CORONA ENERGY RETAIL 4 LTD,1077501169,27,216.69,GAS,04/02/16,,Technical And Service Support,Utilities
141344,CORONA ENERGY RETAIL 4 LTD,1077501169,28,20.47,GAS,04/02/16,,Technical And Service Support,Utilities
141344,CORONA ENERGY RETAIL 4 LTD,1077501169,29,577.66,GAS,04/02/16,,Technical And Service Support,Utilities
141344,CORONA ENERGY RETAIL 4 LTD,1077501169,30,114.64,GAS,04/02/16,,Technical And Service Support,Utilities
141344,CORONA ENERGY RETAIL 4 LTD,1077501169,31,246.89,GAS,04/02/16,,Technical And Service Support,Utilities
141344,CORONA ENERGY RETAIL 4 LTD,1077501169,32,711.62,GAS,04/02/16,,Technical And Service Support,Utilities
280116G,*SPRUE SAFETY PRODUCTS LTD====,1086635,1,865.20,FIRE DETECTORS,04/02/16,865.20,Operations Non Fire Stations,Health & Safety
280116G,*SPRUE SAFETY PRODUCTS LTD====,1086639,1,988.80,FIRE DETECTORS,04/02/16,988.80,Operations Non Fire Stations,Health & Safety
280116G,*SPRUE SAFETY PRODUCTS LTD====,1087040,1,988.80,FIRE DETECTORS,04/02/16,988.80,Operations Non Fire Stations,Health & Safety
290116G,GEORGE JONES & SON LTD========,1091,1,"16,056.61",STRATEGIC (NON CYCLICAL),04/02/16,"16,056.61",Technical and Service Support,"Works - Construction, R&M"
280116G,GB3 LIMITED,12004,1,"9,000.00",MAINTENANCE & SUPPORT,04/02/16,"9,000.00",London Coordination Centre,ICT
010216G,EALING COUNCIL,13608720,1,"1,000.00",GENERAL,04/02/16,"1,000.00",Community Safety Delivery,Fire & Rescue
280116G,BLUE3 (LONDON) LTD OPERATING,15070002,1,"1,926.65",DAY TO DAY MINOR IMPS,04/02/16,"1,926.65",Property PFI,"Works - Construction, R&M"
010216G,GP CONTRACTS==================,15423,1,275.00,OFFICE FURNITURE,04/02/16,275.00,Operations Fire Stations,Furniture
800074744,*NPS (SHOES) LTD,15948,1,30.05,CLOTHING,04/02/16,"1,391.50",Operations Fire Stations,Clothing
800074744,*NPS (SHOES) LTD,15948,2,30.05,CLOTHING,04/02/16,,Fire Safety Regulation,Clothing
800074744,*NPS (SHOES) LTD,15948,3,30.05,CLOTHING,04/02/16,,Operations Fire Stations,Clothing
800074744,*NPS (SHOES) LTD,15948,4,30.05,CLOTHING,04/02/16,,Fire Safety Regulation,Clothing
800074744,*NPS (SHOES) LTD,15948,5,29.45,CLOTHING,04/02/16,,Operations Fire Stations,Clothing
800074744,*NPS (SHOES) LTD,15948,6,29.45,CLOTHING,04/02/16,,Operations Fire Stations,Clothing
800074744,*NPS (SHOES) LTD,15948,7,29.45,CLOTHING,04/02/16,,Operations Fire Stations,Clothing
800074744,*NPS (SHOES) LTD,15948,8,29.45,CLOTHING,04/02/16,,Operations Fire Stations,Clothing
800074744,*NPS (SHOES) LTD,15948,9,29.45,CLOTHING,04/02/16,,Operations Fire Stations,Clothing
800074744,*NPS (SHOES) LTD,15948,10,29.45,CLOTHING,04/02/16,,Operations Fire Stations,Clothing
800074744,*NPS (SHOES) LTD,15948,11,29.45,CLOTHING,04/02/16,,Operations Fire Stations,Clothing
800074744,*NPS (SHOES) LTD,15948,12,29.45,CLOTHING,04/02/16,,Operations Fire Stations,Clothing
800074744,*NPS (SHOES) LTD,15948,13,29.45,CLOTHING,04/02/16,,Operations Fire Stations,Clothing
800074744,*NPS (SHOES) LTD,15948,14,29.45,CLOTHING,04/02/16,,Operations Fire Stations,Clothing
800074744,*NPS (SHOES) LTD,15948,15,29.45,CLOTHING,04/02/16,,Operations Fire Stations,Clothing
800074744,*NPS (SHOES) LTD,15948,16,41.10,CLOTHING,04/02/16,,Fire Safety Regulation,Clothing
800074744,*NPS (SHOES) LTD,15948,17,41.10,CLOTHING,04/02/16,,Operations Fire Stations,Clothing
800074744,*NPS (SHOES) LTD,15948,18,30.05,CLOTHING,04/02/16,,Operations Fire Stations,Clothing
800074744,*NPS (SHOES) LTD,15948,19,30.05,CLOTHING,04/02/16,,Operations Fire Stations,Clothing
800074744,*NPS (SHOES) LTD,15948,20,35.00,CLOTHING,04/02/16,,Operations Fire Stations,Clothing
800074744,*NPS (SHOES) LTD,15948,21,30.05,CLOTHING,04/02/16,,LIFE - LFB Funded,Clothing
800074744,*NPS (SHOES) LTD,15948,22,29.45,CLOTHING,04/02/16,,Operations Fire Stations,Clothing
800074744,*NPS (SHOES) LTD,15948,23,29.45,CLOTHING,04/02/16,,Operations Fire Stations,Clothing
800074744,*NPS (SHOES) LTD,15948,24,29.45,CLOTHING,04/02/16,,Operations Fire Stations,Clothing
800074744,*NPS (SHOES) LTD,15948,25,29.45,CLOTHING,04/02/16,,Operations Fire Stations,Clothing
800074744,*NPS (SHOES) LTD,15948,26,29.45,CLOTHING,04/02/16,,Operations Fire Stations,Clothing
800074744,*NPS (SHOES) LTD,15948,27,29.45,CLOTHING,04/02/16,,Firefighter Trainees,Clothing
800074744,*NPS (SHOES) LTD,15948,28,29.45,CLOTHING,04/02/16,,Operations Fire Stations,Clothing
800074744,*NPS (SHOES) LTD,15948,29,29.45,CLOTHING,04/02/16,,Operations Fire Stations,Clothing
800074744,*NPS (SHOES) LTD,15948,30,29.45,CLOTHING,04/02/16,,Operations Fire Stations,Clothing
800074744,*NPS (SHOES) LTD,15948,31,29.45,CLOTHING,04/02/16,,Operations Fire Stations,Clothing
800074744,*NPS (SHOES) LTD,15948,32,29.45,CLOTHING,04/02/16,,Firefighter Trainees,Clothing
800074744,*NPS (SHOES) LTD,15948,33,29.45,CLOTHING,04/02/16,,Operations Fire Stations,Clothing
800074744,*NPS (SHOES) LTD,15948,34,29.45,CLOTHING,04/02/16,,Operations Fire Stations,Clothing
800074744,*NPS (SHOES) LTD,15948,35,58.90,CLOTHING,04/02/16,,Firefighter Trainees,Clothing
800074744,*NPS (SHOES) LTD,15948,36,29.45,CLOTHING,04/02/16,,Operations Fire Stations,Clothing
800074744,*NPS (SHOES) LTD,15948,37,29.45,CLOTHING,04/02/16,,Operations Fire Stations,Clothing
800074744,*NPS (SHOES) LTD,15948,38,29.45,CLOTHING,04/02/16,,Operations Fire Stations,Clothing
800074744,*NPS (SHOES) LTD,15948,39,29.45,CLOTHING,04/02/16,,Operations Fire Stations,Clothing
800074744,*NPS (SHOES) LTD,15948,40,29.45,CLOTHING,04/02/16,,Operations Fire Stations,Clothing
800074744,*NPS (SHOES) LTD,15948,41,34.40,CLOTHING,04/02/16,,Operations Fire Stations,Clothing
800074744,*NPS (SHOES) LTD,15948,42,34.40,CLOTHING,04/02/16,,Operations Fire Stations,Clothing
800074744,*NPS (SHOES) LTD,15948,43,41.10,CLOTHING,04/02/16,,Operational Resilience,Clothing
800074744,*NPS (SHOES) LTD,15948,44,41.10,CLOTHING,04/02/16,,Operational Policy,Clothing
800075078,*NPS (SHOES) LTD,15974,1,29.45,CLOTHING,04/02/16,834.50,Operations Fire Stations,Clothing
800075078,*NPS (SHOES) LTD,15974,2,58.90,CLOTHING,04/02/16,,Firefighter Trainees,Clothing
800075078,*NPS (SHOES) LTD,15974,3,58.90,CLOTHING,04/02/16,,Firefighter Trainees,Clothing
800075078,*NPS (SHOES) LTD,15974,4,29.45,CLOTHING,04/02/16,,Firefighter Trainees,Clothing
800075078,*NPS (SHOES) LTD,15974,5,29.45,CLOTHING,04/02/16,,Firefighter Trainees,Clothing
800075078,*NPS (SHOES) LTD,15974,6,29.45,CLOTHING,04/02/16,,Operations Fire Stations,Clothing
800075078,*NPS (SHOES) LTD,15974,7,58.90,CLOTHING,04/02/16,,Firefighter Trainees,Clothing
800075078,*NPS (SHOES) LTD,15974,8,58.90,CLOTHING,04/02/16,,Firefighter Trainees,Clothing
800075078,*NPS (SHOES) LTD,15974,9,58.90,CLOTHING,04/02/16,,Firefighter Trainees,Clothing
800075078,*NPS (SHOES) LTD,15974,10,58.90,CLOTHING,04/02/16,,Firefighter Trainees,Clothing
800075078,*NPS (SHOES) LTD,15974,11,29.45,CLOTHING,04/02/16,,Operations Fire Stations,Clothing
800075078,*NPS (SHOES) LTD,15974,12,58.90,CLOTHING,04/02/16,,Firefighter Trainees,Clothing
800075078,*NPS (SHOES) LTD,15974,13,58.90,CLOTHING,04/02/16,,Firefighter Trainees,Clothing
800075078,*NPS (SHOES) LTD,15974,14,29.45,CLOTHING,04/02/16,,Firefighter Trainees,Clothing
800075078,*NPS (SHOES) LTD,15974,15,58.90,CLOTHING,04/02/16,,Firefighter Trainees,Clothing
800075078,*NPS (SHOES) LTD,15974,16,29.45,CLOTHING,04/02/16,,Operations Fire Stations,Clothing
800075078,*NPS (SHOES) LTD,15974,17,29.45,CLOTHING,04/02/16,,Operations Fire Stations,Clothing
800075078,*NPS (SHOES) LTD,15974,18,68.80,CLOTHING,04/02/16,,Firefighter Trainees,Clothing
141350,AMAS LTD======================,1836989808,1,442.85,PREMIUMS,04/02/16,442.85,Central Finance,Facilities & Management S
180116G,DYSLEXIA ACTION,199846,1,525.00,LEARNING SUPPORT,04/02/16,525.00,Development and Training,Human Resources
010216G,BIGHAND LTD===================,20041146,1,127.20,MAINTENANCE & SUPPORT,04/02/16,"1,658.67",Information and Communication Technology,ICT
010216G,BIGHAND LTD===================,20041146,2,405.30,MAINTENANCE & SUPPORT,04/02/16,,Information and Communication Technology,ICT
010216G,BIGHAND LTD===================,20041146,3,240.69,MAINTENANCE & SUPPORT,04/02/16,,Information and Communication Technology,ICT
010216G,BIGHAND LTD===================,20041146,4,885.48,MAINTENANCE & SUPPORT,04/02/16,,Information and Communication Technology,ICT
010216G,STITCHTECH LIMITED============,219284,1,58.00,UNIFORMS - POMS,04/02/16,364.60,Procurement,Clothing
010216G,STITCHTECH LIMITED============,219284,2,105.00,UNIFORMS - POMS,04/02/16,,Procurement,Clothing
010216G,STITCHTECH LIMITED============,219284,3,78.00,UNIFORMS - POMS,04/02/16,,Procurement,Clothing
010216G,STITCHTECH LIMITED============,219284,4,123.60,UNIFORMS - POMS,04/02/16,,Procurement,Clothing
141350,NOMURA INTERNATIONAL PLC,27-301,1,"2,449.05",PREMIUMS,04/02/16,"5,877.72",Central Finance,Consultancy
141350,NOMURA INTERNATIONAL PLC,27-301,2,"3,428.67",PAYMENTS IN ADVANCE,04/02/16,,Do not include,Consultancy
141350,THAMES WATER UTILITIES LTD====,2796831119A,1,494.16,WATER & SEWERAGE RATES,04/02/16,494.16,Technical And Service Support,Utilities
010216G,ARKAS LIMITED=================,28084,1,341.52,STRATEGIC (CYCLICAL),04/02/16,"1,277.18",Technical And Service Support,"Works - Construction, R&M"
010216G,ARKAS LIMITED=================,28084,2,405.25,STRATEGIC (CYCLICAL),04/02/16,,Technical And Service Support,"Works - Construction, R&M"
010216G,ARKAS LIMITED=================,28084,3,229.97,STRATEGIC (CYCLICAL),04/02/16,,Technical And Service Support,"Works - Construction, R&M"
010216G,ARKAS LIMITED=================,28084,4,300.44,STRATEGIC (CYCLICAL),04/02/16,,Technical And Service Support,"Works - Construction, R&M"
290116G,ARKAS LIMITED=================,28085,1,"1,497.52",STRATEGIC (CYCLICAL),04/02/16,"2,277.37",Technical And Service Support,"Works - Construction, R&M"
290116G,ARKAS LIMITED=================,28085,2,230.50,STRATEGIC (CYCLICAL),04/02/16,,Technical And Service Support,"Works - Construction, R&M"
290116G,ARKAS LIMITED=================,28085,3,181.00,STRATEGIC (CYCLICAL),04/02/16,,Technical And Service Support,"Works - Construction, R&M"
290116G,ARKAS LIMITED=================,28085,4,368.35,STRATEGIC (CYCLICAL),04/02/16,,Technical And Service Support,"Works - Construction, R&M"
010216G,ARKAS LIMITED=================,28086,1,313.00,TACTICAL DAY TO DAY,04/02/16,"1,644.96",Technical And Service Support,"Works - Construction, R&M"
010216G,ARKAS LIMITED=================,28086,2,197.50,STRATEGIC (CYCLICAL),04/02/16,,Technical And Service Support,"Works - Construction, R&M"
010216G,ARKAS LIMITED=================,28086,3,214.00,STRATEGIC (CYCLICAL),04/02/16,,Technical And Service Support,"Works - Construction, R&M"
010216G,ARKAS LIMITED=================,28086,4,920.46,STRATEGIC (CYCLICAL),04/02/16,,Technical And Service Support,"Works - Construction, R&M"
010216G,ARKAS LIMITED=================,28087,1,544.00,STRATEGIC (CYCLICAL),04/02/16,"1,929.53",Technical And Service Support,"Works - Construction, R&M"
010216G,ARKAS LIMITED=================,28087,2,445.00,STRATEGIC (CYCLICAL),04/02/16,,Technical And Service Support,"Works - Construction, R&M"
010216G,ARKAS LIMITED=================,28087,3,940.53,STRATEGIC (CYCLICAL),04/02/16,,Technical And Service Support,"Works - Construction, R&M"
010216G,ARKAS LIMITED=================,28319,1,164.50,STRATEGIC (CYCLICAL),04/02/16,"1,295.58",Technical And Service Support,"Works - Construction, R&M"
010216G,ARKAS LIMITED=================,28319,2,289.23,STRATEGIC (CYCLICAL),04/02/16,,Technical And Service Support,"Works - Construction, R&M"
010216G,ARKAS LIMITED=================,28319,3,445.00,TACTICAL DAY TO DAY,04/02/16,,Technical And Service Support,"Works - Construction, R&M"
010216G,ARKAS LIMITED=================,28319,4,396.85,STRATEGIC (CYCLICAL),04/02/16,,Technical And Service Support,"Works - Construction, R&M"
010216G,ARKAS LIMITED=================,28320,1,270.58,STRATEGIC (CYCLICAL),04/02/16,830.08,Technical And Service Support,"Works - Construction, R&M"
010216G,ARKAS LIMITED=================,28320,2,181.00,STRATEGIC (CYCLICAL),04/02/16,,Technical And Service Support,"Works - Construction, R&M"
010216G,ARKAS LIMITED=================,28320,3,164.50,STRATEGIC (CYCLICAL),04/02/16,,Technical And Service Support,"Works - Construction, R&M"
010216G,ARKAS LIMITED=================,28320,4,214.00,STRATEGIC (CYCLICAL),04/02/16,,Technical And Service Support,"Works - Construction, R&M"
010216G,ARKAS LIMITED=================,28322,1,181.00,STRATEGIC (CYCLICAL),04/02/16,872.50,Technical And Service Support,"Works - Construction, R&M"
010216G,ARKAS LIMITED=================,28322,2,197.50,TACTICAL DAY TO DAY,04/02/16,,Technical And Service Support,"Works - Construction, R&M"
010216G,ARKAS LIMITED=================,28322,3,346.00,TACTICAL DAY TO DAY,04/02/16,,Technical And Service Support,"Works - Construction, R&M"
010216G,ARKAS LIMITED=================,28322,4,148.00,STRATEGIC (CYCLICAL),04/02/16,,Technical And Service Support,"Works - Construction, R&M"
010216G,ARKAS LIMITED=================,28324,1,131.50,TACTICAL DAY TO DAY,04/02/16,"2,118.85",Technical And Service Support,"Works - Construction, R&M"
010216G,ARKAS LIMITED=================,28324,2,227.95,TACTICAL DAY TO DAY,04/02/16,,Technical And Service Support,"Works - Construction, R&M"
010216G,ARKAS LIMITED=================,28324,3,"1,561.90",STRATEGIC (CYCLICAL),04/02/16,,Technical And Service Support,"Works - Construction, R&M"
010216G,ARKAS LIMITED=================,28324,4,197.50,STRATEGIC (CYCLICAL),04/02/16,,Technical And Service Support,"Works - Construction, R&M"
010216G,ARKAS LIMITED=================,28329,1,"1,530.75",TACTICAL DAY TO DAY,04/02/16,"2,436.23",Technical And Service Support,"Works - Construction, R&M"
010216G,ARKAS LIMITED=================,28329,2,625.48,STRATEGIC (CYCLICAL),04/02/16,,Technical And Service Support,"Works - Construction, R&M"
010216G,ARKAS LIMITED=================,28329,3,280.00,TACTICAL DAY TO DAY,04/02/16,,Technical And Service Support,"Works - Construction, R&M"
010216G,ARKAS LIMITED=================,28330,1,509.88,STRATEGIC (CYCLICAL),04/02/16,713.64,Technical And Service Support,"Works - Construction, R&M"
010216G,ARKAS LIMITED=================,28330,2,203.76,STRATEGIC (CYCLICAL),04/02/16,,Technical And Service Support,"Works - Construction, R&M"
280116G,DRAEGER SAFETY UK LIMITED=====,2910039440,1,693.50,PROTECTIVE EQUIPT - PARTS,04/02/16,693.50,Technical and Service Support,Fire & Rescue
010216G,DRAEGER SAFETY UK LIMITED=====,2910040110,1,717.50,PROTECTIVE EQUIPT - PARTS,04/02/16,"1,928.30",Technical and Service Support,Fire & Rescue
010216G,DRAEGER SAFETY UK LIMITED=====,2910040110,2,76.00,PROTECTIVE EQUIPT - PARTS,04/02/16,,Technical and Service Support,Fire & Rescue
010216G,DRAEGER SAFETY UK LIMITED=====,2910040110,3,"1,134.80",PROTECTIVE EQUIPT - PARTS,04/02/16,,Technical and Service Support,Fire & Rescue
010216G,DRAEGER SAFETY UK LIMITED=====,2910040111,1,636.50,PROTECTIVE EQUIPT - PARTS,04/02/16,"1,629.50",Technical and Service Support,Fire & Rescue
010216G,DRAEGER SAFETY UK LIMITED=====,2910040111,2,636.50,PROTECTIVE EQUIPT - PARTS,04/02/16,,Technical and Service Support,Fire & Rescue
010216G,DRAEGER SAFETY UK LIMITED=====,2910040111,3,356.50,PROTECTIVE EQUIPT - PARTS,04/02/16,,Technical and Service Support,Fire & Rescue
010216G,BRISTOL UNIFORMS LTD==========,3128087,1,27.70,CLOTHING,04/02/16,304.70,Technical And Service Support,Clothing
010216G,BRISTOL UNIFORMS LTD==========,3128087,2,193.90,CLOTHING,04/02/16,,Technical And Service Support,Clothing
010216G,BRISTOL UNIFORMS LTD==========,3128087,3,55.40,CLOTHING,04/02/16,,Technical And Service Support,Clothing
010216G,BRISTOL UNIFORMS LTD==========,3128087,4,27.70,CLOTHING,04/02/16,,Technical And Service Support,Clothing
010216G,L B OF SUTTON=================,3184224214,1,"1,000.00",GENERAL,04/02/16,"1,000.00",Community Safety Delivery,Statutory Bodies
290116G,BRISTOL UNIFORMS LTD==========,330582,1,772.51,CLOTHING,04/02/16,772.51,Procurement,Clothing
290116G,BRISTOL UNIFORMS LTD==========,330583,1,"4,060.01",CLOTHING,04/02/16,"4,060.01",Procurement,Clothing
290116G,BRISTOL UNIFORMS LTD==========,330584,1,"199,159.92",CLOTHING,04/02/16,"199,159.92",Procurement,Clothing
010216G,TEAM PURPLE LIMITED===========,3346,1,184.50,CLOTHING,04/02/16,319.50,Operations Fire Stations,Fire & Rescue
010216G,TEAM PURPLE LIMITED===========,3346,2,135.00,CLOTHING,04/02/16,,Operations Fire Stations,Fire & Rescue
141347,THAMES WATER UTILITIES LTD====,3921323509A,1,972.63,WATER & SEWERAGE RATES,04/02/16,972.63,Technical And Service Support,Utilities
200116G,UNDERSTANDING RECRUITMENT,4617,1,"5,950.00",FRS STAFF AGENCY,04/02/16,"5,950.00",Information and Communication Technology,Human Resources
800074679,*OCS GROUP UK LTD,500152443-54,1,534.00,REFRESHMENTS,04/02/16,534.00,Operations Non Fire Stations,Catering
280116G,COSTELLO & SONS LIMITED=======,50123,1,339.83,UNIFORMS - POMS,04/02/16,339.83,Procurement,Clothing
280116G,KNIGHTON CLEANING SERVICES LTD,50300,1,"1,963.25",GENERAL CLEANS,04/02/16,"73,606.23",Technical And Service Support,Cleaning & Janitorial
280116G,KNIGHTON CLEANING SERVICES LTD,50300,2,"2,007.08",GENERAL CLEANS,04/02/16,,Technical And Service Support,Cleaning & Janitorial
280116G,KNIGHTON CLEANING SERVICES LTD,50300,3,"1,410.62",GENERAL CLEANS,04/02/16,,Technical And Service Support,Cleaning & Janitorial
280116G,KNIGHTON CLEANING SERVICES LTD,50300,4,"1,126.58",GENERAL CLEANS,04/02/16,,Technical And Service Support,Cleaning & Janitorial
280116G,KNIGHTON CLEANING SERVICES LTD,50300,5,"1,145.26",GENERAL CLEANS,04/02/16,,Technical And Service Support,Cleaning & Janitorial
280116G,KNIGHTON CLEANING SERVICES LTD,50300,6,"1,029.43",GENERAL CLEANS,04/02/16,,Technical And Service Support,Cleaning & Janitorial
280116G,KNIGHTON CLEANING SERVICES LTD,50300,7,744.95,GENERAL CLEANS,04/02/16,,Technical And Service Support,Cleaning & Janitorial
280116G,KNIGHTON CLEANING SERVICES LTD,50300,8,"1,239.77",GENERAL CLEANS,04/02/16,,Technical And Service Support,Cleaning & Janitorial
280116G,KNIGHTON CLEANING SERVICES LTD,50300,9,"1,047.38",GENERAL CLEANS,04/02/16,,Technical And Service Support,Cleaning & Janitorial
280116G,KNIGHTON CLEANING SERVICES LTD,50300,10,"1,876.49",GENERAL CLEANS,04/02/16,,Technical And Service Support,Cleaning & Janitorial
280116G,KNIGHTON CLEANING SERVICES LTD,50300,11,"2,182.91",GENERAL CLEANS,04/02/16,,Technical And Service Support,Cleaning & Janitorial
280116G,KNIGHTON CLEANING SERVICES LTD,50300,12,757.27,GENERAL CLEANS,04/02/16,,Technical And Service Support,Cleaning & Janitorial
280116G,KNIGHTON CLEANING SERVICES LTD,50300,13,"1,430.83",GENERAL CLEANS,04/02/16,,Technical And Service Support,Cleaning & Janitorial
280116G,KNIGHTON CLEANING SERVICES LTD,50300,14,744.95,GENERAL CLEANS,04/02/16,,Technical And Service Support,Cleaning & Janitorial
280116G,KNIGHTON CLEANING SERVICES LTD,50300,15,"1,479.19",GENERAL CLEANS,04/02/16,,Technical And Service Support,Cleaning & Janitorial
280116G,KNIGHTON CLEANING SERVICES LTD,50300,16,"1,796.18",GENERAL CLEANS,04/02/16,,Technical And Service Support,Cleaning & Janitorial
280116G,KNIGHTON CLEANING SERVICES LTD,50300,17,506.94,GENERAL CLEANS,04/02/16,,Technical And Service Support,Cleaning & Janitorial
280116G,KNIGHTON CLEANING SERVICES LTD,50300,18,"2,357.76",GENERAL CLEANS,04/02/16,,Technical And Service Support,Cleaning & Janitorial
280116G,KNIGHTON CLEANING SERVICES LTD,50300,19,"1,834.22",GENERAL CLEANS,04/02/16,,Technical And Service Support,Cleaning & Janitorial
280116G,KNIGHTON CLEANING SERVICES LTD,50300,20,919.78,GENERAL CLEANS,04/02/16,,Technical And Service Support,Cleaning & Janitorial
280116G,KNIGHTON CLEANING SERVICES LTD,50300,21,915.89,GENERAL CLEANS,04/02/16,,Technical And Service Support,Cleaning & Janitorial
280116G,KNIGHTON CLEANING SERVICES LTD,50300,22,"1,052.40",GENERAL CLEANS,04/02/16,,Technical And Service Support,Cleaning & Janitorial
280116G,KNIGHTON CLEANING SERVICES LTD,50300,23,"1,662.54",GENERAL CLEANS,04/02/16,,Technical And Service Support,Cleaning & Janitorial
280116G,KNIGHTON CLEANING SERVICES LTD,50300,24,"1,054.58",GENERAL CLEANS,04/02/16,,Technical And Service Support,Cleaning & Janitorial
280116G,KNIGHTON CLEANING SERVICES LTD,50300,25,823.26,GENERAL CLEANS,04/02/16,,Technical And Service Support,Cleaning & Janitorial
280116G,KNIGHTON CLEANING SERVICES LTD,50300,26,960.21,GENERAL CLEANS,04/02/16,,Technical And Service Support,Cleaning & Janitorial
280116G,KNIGHTON CLEANING SERVICES LTD,50300,27,"1,352.97",GENERAL CLEANS,04/02/16,,Technical And Service Support,Cleaning & Janitorial
280116G,KNIGHTON CLEANING SERVICES LTD,50300,28,753.79,GENERAL CLEANS,04/02/16,,Technical And Service Support,Cleaning & Janitorial
280116G,KNIGHTON CLEANING SERVICES LTD,50300,29,"1,600.81",GENERAL CLEANS,04/02/16,,Technical And Service Support,Cleaning & Janitorial
280116G,KNIGHTON CLEANING SERVICES LTD,50300,30,"1,249.67",GENERAL CLEANS,04/02/16,,Technical And Service Support,Cleaning & Janitorial
280116G,KNIGHTON CLEANING SERVICES LTD,50300,31,"1,431.86",GENERAL CLEANS,04/02/16,,Technical And Service Support,Cleaning & Janitorial
280116G,KNIGHTON CLEANING SERVICES LTD,50300,32,766.41,GENERAL CLEANS,04/02/16,,Technical And Service Support,Cleaning & Janitorial
280116G,KNIGHTON CLEANING SERVICES LTD,50300,33,959.08,GENERAL CLEANS,04/02/16,,Technical And Service Support,Cleaning & Janitorial
280116G,KNIGHTON CLEANING SERVICES LTD,50300,34,591.84,GENERAL CLEANS,04/02/16,,Technical And Service Support,Cleaning & Janitorial
280116G,KNIGHTON CLEANING SERVICES LTD,50300,35,"1,475.68",GENERAL CLEANS,04/02/16,,Technical And Service Support,Cleaning & Janitorial
280116G,KNIGHTON CLEANING SERVICES LTD,50300,36,"1,359.99",GENERAL CLEANS,04/02/16,,Technical And Service Support,Cleaning & Janitorial
280116G,KNIGHTON CLEANING SERVICES LTD,50300,37,939.68,GENERAL CLEANS,04/02/16,,Technical And Service Support,Cleaning & Janitorial
280116G,KNIGHTON CLEANING SERVICES LTD,50300,38,"2,790.12",GENERAL CLEANS,04/02/16,,Technical And Service Support,Cleaning & Janitorial
280116G,KNIGHTON CLEANING SERVICES LTD,50300,39,"1,026.14",GENERAL CLEANS,04/02/16,,Technical And Service Support,Cleaning & Janitorial
280116G,KNIGHTON CLEANING SERVICES LTD,50300,40,"1,082.77",GENERAL CLEANS,04/02/16,,Technical And Service Support,Cleaning & Janitorial
280116G,KNIGHTON CLEANING SERVICES LTD,50300,41,"1,015.19",GENERAL CLEANS,04/02/16,,Technical And Service Support,Cleaning & Janitorial
280116G,KNIGHTON CLEANING SERVICES LTD,50300,42,938.11,GENERAL CLEANS,04/02/16,,Technical And Service Support,Cleaning & Janitorial
280116G,KNIGHTON CLEANING SERVICES LTD,50300,43,"2,221.88",GENERAL CLEANS,04/02/16,,Technical And Service Support,Cleaning & Janitorial
280116G,KNIGHTON CLEANING SERVICES LTD,50300,44,"1,832.24",GENERAL CLEANS,04/02/16,,Technical And Service Support,Cleaning & Janitorial
280116G,KNIGHTON CLEANING SERVICES LTD,50300,45,848.48,GENERAL CLEANS,04/02/16,,Technical And Service Support,Cleaning & Janitorial
280116G,KNIGHTON CLEANING SERVICES LTD,50300,46,667.96,GENERAL CLEANS,04/02/16,,Technical And Service Support,Cleaning & Janitorial
280116G,KNIGHTON CLEANING SERVICES LTD,50300,47,659.12,GENERAL CLEANS,04/02/16,,Technical And Service Support,Cleaning & Janitorial
280116G,KNIGHTON CLEANING SERVICES LTD,50300,48,773.38,GENERAL CLEANS,04/02/16,,Technical And Service Support,Cleaning & Janitorial
280116G,KNIGHTON CLEANING SERVICES LTD,50300,49,"2,311.80",GENERAL CLEANS,04/02/16,,Technical And Service Support,Cleaning & Janitorial
280116G,KNIGHTON CLEANING SERVICES LTD,50300,50,"1,037.55",GENERAL CLEANS,04/02/16,,Technical And Service Support,Cleaning & Janitorial
280116G,KNIGHTON CLEANING SERVICES LTD,50300,51,"1,556.86",GENERAL CLEANS,04/02/16,,Technical And Service Support,Cleaning & Janitorial
280116G,KNIGHTON CLEANING SERVICES LTD,50300,52,"2,646.68",GENERAL CLEANS,04/02/16,,Technical And Service Support,Cleaning & Janitorial
280116G,KNIGHTON CLEANING SERVICES LTD,50300,53,750.96,GENERAL CLEANS,04/02/16,,Technical And Service Support,Cleaning & Janitorial
280116G,KNIGHTON CLEANING SERVICES LTD,50300,54,768.31,GENERAL CLEANS,04/02/16,,Technical And Service Support,Cleaning & Janitorial
280116G,KNIGHTON CLEANING SERVICES LTD,50300,55,13.61,GENERAL CLEANS,04/02/16,,Technical And Service Support,Cleaning & Janitorial
280116G,KNIGHTON CLEANING SERVICES LTD,50300,56,"1,037.58",GENERAL CLEANS,04/02/16,,Technical And Service Support,Cleaning & Janitorial
280116G,KNIGHTON CLEANING SERVICES LTD,50300,57,838.60,GENERAL CLEANS,04/02/16,,Technical And Service Support,Cleaning & Janitorial
280116G,KNIGHTON CLEANING SERVICES LTD,50300,58,979.83,GENERAL CLEANS,04/02/16,,Technical And Service Support,Cleaning & Janitorial
280116G,KNIGHTON CLEANING SERVICES LTD,50300,59,"1,257.56",GENERAL CLEANS,04/02/16,,Technical And Service Support,Cleaning & Janitorial
280116G,KNIGHTON CLEANING SERVICES LTD,50878,1,970.23,GENERAL CLEANS,04/02/16,"63,403.54",Technical And Service Support,Cleaning & Janitorial
280116G,KNIGHTON CLEANING SERVICES LTD,50878,2,"1,067.50",GENERAL CLEANS,04/02/16,,Technical And Service Support,Cleaning & Janitorial
280116G,KNIGHTON CLEANING SERVICES LTD,50878,3,"1,018.79",GENERAL CLEANS,04/02/16,,Technical And Service Support,Cleaning & Janitorial
280116G,KNIGHTON CLEANING SERVICES LTD,50878,4,"1,214.15",GENERAL CLEANS,04/02/16,,Technical And Service Support,Cleaning & Janitorial
280116G,KNIGHTON CLEANING SERVICES LTD,50878,5,577.89,GENERAL CLEANS,04/02/16,,Technical And Service Support,Cleaning & Janitorial
280116G,KNIGHTON CLEANING SERVICES LTD,50878,6,"1,385.49",GENERAL CLEANS,04/02/16,,Technical And Service Support,Cleaning & Janitorial
280116G,KNIGHTON CLEANING SERVICES LTD,50878,7,"2,067.80",GENERAL CLEANS,04/02/16,,Technical And Service Support,Cleaning & Janitorial
280116G,KNIGHTON CLEANING SERVICES LTD,50878,8,"1,992.88",GENERAL CLEANS,04/02/16,,Technical And Service Support,Cleaning & Janitorial
280116G,KNIGHTON CLEANING SERVICES LTD,50878,9,"3,208.07",GENERAL CLEANS,04/02/16,,Technical And Service Support,Cleaning & Janitorial
280116G,KNIGHTON CLEANING SERVICES LTD,50878,10,"1,007.53",GENERAL CLEANS,04/02/16,,Technical And Service Support,Cleaning & Janitorial
280116G,KNIGHTON CLEANING SERVICES LTD,50878,12,"1,232.07",GENERAL CLEANS,04/02/16,,Technical And Service Support,Cleaning & Janitorial
280116G,KNIGHTON CLEANING SERVICES LTD,50878,13,"1,015.44",GENERAL CLEANS,04/02/16,,Technical And Service Support,Cleaning & Janitorial
280116G,KNIGHTON CLEANING SERVICES LTD,50878,14,"1,062.88",GENERAL CLEANS,04/02/16,,Technical And Service Support,Cleaning & Janitorial
280116G,KNIGHTON CLEANING SERVICES LTD,50878,15,"1,066.04",GENERAL CLEANS,04/02/16,,Technical And Service Support,Cleaning & Janitorial
280116G,KNIGHTON CLEANING SERVICES LTD,50878,16,"1,436.38",GENERAL CLEANS,04/02/16,,Technical And Service Support,Cleaning & Janitorial
280116G,KNIGHTON CLEANING SERVICES LTD,50878,17,"1,170.93",GENERAL CLEANS,04/02/16,,Technical And Service Support,Cleaning & Janitorial
280116G,KNIGHTON CLEANING SERVICES LTD,50878,18,610.67,GENERAL CLEANS,04/02/16,,Technical And Service Support,Cleaning & Janitorial
280116G,KNIGHTON CLEANING SERVICES LTD,50878,19,"11,571.08",GENERAL CLEANS,04/02/16,,Technical And Service Support,Cleaning & Janitorial
280116G,KNIGHTON CLEANING SERVICES LTD,50878,20,"1,145.81",GENERAL CLEANS,04/02/16,,Technical And Service Support,Cleaning & Janitorial
280116G,KNIGHTON CLEANING SERVICES LTD,50878,21,449.14,GENERAL CLEANS,04/02/16,,Technical And Service Support,Cleaning & Janitorial
280116G,KNIGHTON CLEANING SERVICES LTD,50878,22,"1,520.25",GENERAL CLEANS,04/02/16,,Technical And Service Support,Cleaning & Janitorial
280116G,KNIGHTON CLEANING SERVICES LTD,50878,23,"3,169.99",GENERAL CLEANS,04/02/16,,Technical And Service Support,Cleaning & Janitorial
280116G,KNIGHTON CLEANING SERVICES LTD,50878,24,"1,723.76",GENERAL CLEANS,04/02/16,,Technical And Service Support,Cleaning & Janitorial
280116G,KNIGHTON CLEANING SERVICES LTD,50878,25,839.78,GENERAL CLEANS,04/02/16,,Technical And Service Support,Cleaning & Janitorial
280116G,KNIGHTON CLEANING SERVICES LTD,50878,26,"1,283.56",GENERAL CLEANS,04/02/16,,Technical And Service Support,Cleaning & Janitorial
280116G,KNIGHTON CLEANING SERVICES LTD,50878,27,"1,951.17",GENERAL CLEANS,04/02/16,,Technical And Service Support,Cleaning & Janitorial
280116G,KNIGHTON CLEANING SERVICES LTD,50878,28,"1,242.31",GENERAL CLEANS,04/02/16,,Technical And Service Support,Cleaning & Janitorial
280116G,KNIGHTON CLEANING SERVICES LTD,50878,29,"1,053.73",GENERAL CLEANS,04/02/16,,Technical And Service Support,Cleaning & Janitorial
280116G,KNIGHTON CLEANING SERVICES LTD,50878,30,"1,259.73",GENERAL CLEANS,04/02/16,,Technical And Service Support,Cleaning & Janitorial
280116G,KNIGHTON CLEANING SERVICES LTD,50878,31,"2,522.22",GENERAL CLEANS,04/02/16,,Technical And Service Support,Cleaning & Janitorial
280116G,KNIGHTON CLEANING SERVICES LTD,50878,32,763.92,GENERAL CLEANS,04/02/16,,Technical And Service Support,Cleaning & Janitorial
280116G,KNIGHTON CLEANING SERVICES LTD,50878,33,963.75,GENERAL CLEANS,04/02/16,,Technical And Service Support,Cleaning & Janitorial
280116G,KNIGHTON CLEANING SERVICES LTD,50878,34,"1,880.32",GENERAL CLEANS,04/02/16,,Technical And Service Support,Cleaning & Janitorial
280116G,KNIGHTON CLEANING SERVICES LTD,50878,35,953.61,GENERAL CLEANS,04/02/16,,Technical And Service Support,Cleaning & Janitorial
280116G,KNIGHTON CLEANING SERVICES LTD,50878,36,847.79,GENERAL CLEANS,04/02/16,,Technical And Service Support,Cleaning & Janitorial
280116G,KNIGHTON CLEANING SERVICES LTD,50878,37,"1,585.93",GENERAL CLEANS,04/02/16,,Technical And Service Support,Cleaning & Janitorial
280116G,KNIGHTON CLEANING SERVICES LTD,50878,38,"1,595.49",GENERAL CLEANS,04/02/16,,Technical And Service Support,Cleaning & Janitorial
280116G,KNIGHTON CLEANING SERVICES LTD,50878,39,"1,289.84",GENERAL CLEANS,04/02/16,,Technical And Service Support,Cleaning & Janitorial
280116G,KNIGHTON CLEANING SERVICES LTD,50878,40,"1,211.12",GENERAL CLEANS,04/02/16,,Technical And Service Support,Cleaning & Janitorial
280116G,KNIGHTON CLEANING SERVICES LTD,50878,41,474.50,GENERAL CLEANS,04/02/16,,Technical And Service Support,Cleaning & Janitorial
280116G,UNIFY,549G 6000876408,1,770.00,TELECOMMUNICATIONS,04/02/16,770.00,Information and Communication Technology,ICT
800074966,*GREENHAM TRADING LTD=========,5708436,1,29.50,HYGIENE,04/02/16,253.78,Operations Fire Stations,Cleaning & Janitorial
800074966,*GREENHAM TRADING LTD=========,5708436,2,5.10,HYGIENE,04/02/16,,Operations Fire Stations,Cleaning & Janitorial
800074966,*GREENHAM TRADING LTD=========,5708436,3,14.56,HYGIENE,04/02/16,,Operations Fire Stations,Cleaning & Janitorial
800074966,*GREENHAM TRADING LTD=========,5708436,4,40.75,HYGIENE,04/02/16,,Operations Fire Stations,Cleaning & Janitorial
800074966,*GREENHAM TRADING LTD=========,5708436,5,15.50,HYGIENE,04/02/16,,Operations Fire Stations,Cleaning & Janitorial
800074966,*GREENHAM TRADING LTD=========,5708436,6,10.70,HYGIENE,04/02/16,,Operations Fire Stations,Cleaning & Janitorial
800074966,*GREENHAM TRADING LTD=========,5708436,7,10.79,HYGIENE,04/02/16,,Operations Fire Stations,Cleaning & Janitorial
800074966,*GREENHAM TRADING LTD=========,5708436,8,12.00,HYGIENE,04/02/16,,Operations Fire Stations,Cleaning & Janitorial
800074966,*GREENHAM TRADING LTD=========,5708436,9,19.76,HYGIENE,04/02/16,,Operations Fire Stations,Cleaning & Janitorial
800074966,*GREENHAM TRADING LTD=========,5708436,10,95.12,HYGIENE,04/02/16,,Operations Fire Stations,Cleaning & Janitorial
141347,THAMES WATER UTILITIES LTD====,5846539352A,1,296.82,WATER & SEWERAGE RATES,04/02/16,296.82,Technical And Service Support,Utilities
141347,THAMES WATER UTILITIES LTD====,7187839566A,1,763.12,WATER & SEWERAGE RATES,04/02/16,763.12,Technical And Service Support,Utilities
010216G,*SP SERVICES,798979,1,84.80,HYGIENE,04/02/16,291.36,Operations Fire Stations,Healthcare
010216G,*SP SERVICES,798979,2,4.50,HYGIENE,04/02/16,,Operations Fire Stations,Healthcare
010216G,*SP SERVICES,798979,3,21.00,HYGIENE,04/02/16,,Operations Fire Stations,Healthcare
010216G,*SP SERVICES,798979,4,49.50,HYGIENE,04/02/16,,Operations Fire Stations,Healthcare
010216G,*SP SERVICES,798979,5,1.40,HYGIENE,04/02/16,,Operations Fire Stations,Healthcare
010216G,*SP SERVICES,798979,6,1.96,HYGIENE,04/02/16,,Operations Fire Stations,Healthcare
010216G,*SP SERVICES,798979,7,4.65,HYGIENE,04/02/16,,Operations Fire Stations,Healthcare
010216G,*SP SERVICES,798979,8,3.50,HYGIENE,04/02/16,,Operations Fire Stations,Healthcare
010216G,*SP SERVICES,798979,9,10.50,HYGIENE,04/02/16,,Operations Fire Stations,Healthcare
010216G,*SP SERVICES,798979,10,24.75,HYGIENE,04/02/16,,Operations Fire Stations,Healthcare
010216G,*SP SERVICES,798979,11,84.80,HYGIENE,04/02/16,,Operations Fire Stations,Healthcare
141350,LONDON PENSIONS FUND AUTHORITY,870,1,"83,452.39",LOCAL GOVT PENSION SCHEME PAYM,04/02/16,"83,452.39",Central Finance,Financial Services
141333,HOLIDAY  INN TELFORD,877716,1,787.50,TRAVEL BOOKINGS,04/02/16,787.50,CAMS Project,Human Resources
290116G,G4S FIRE & SECURITY SYSTEMS UK,878837,1,277.50,TACTICAL DAY TO DAY,04/02/16,277.50,Technical And Service Support,Facilities & Management S
010216G,L B OF HAVERING===============,9160004663,1,"1,000.00",GENERAL,04/02/16,"1,000.00",Community Safety Delivery,Human Resources
800075057,*XMA LTD,AA94368,1,51.23,STATIONERY CONSUMABLES,04/02/16,267.57,Fire Safety Regulation,ICT
800075057,*XMA LTD,AA94368,2,54.55,STATIONERY CONSUMABLES,04/02/16,,Fire Safety Regulation,ICT
800075057,*XMA LTD,AA94368,3,51.23,STATIONERY CONSUMABLES,04/02/16,,Fire Safety Regulation,ICT
800075057,*XMA LTD,AA94368,4,55.28,STATIONERY CONSUMABLES,04/02/16,,Fire Safety Regulation,ICT
800075057,*XMA LTD,AA94368,5,55.28,STATIONERY CONSUMABLES,04/02/16,,Fire Safety Regulation,ICT
800075067,*XMA LTD,AA94890,1,54.55,STATIONERY CONSUMABLES,04/02/16,387.58,Operations Fire Stations,ICT
800075067,*XMA LTD,AA94890,2,51.23,STATIONERY CONSUMABLES,04/02/16,,Operations Fire Stations,ICT
800075067,*XMA LTD,AA94890,3,55.28,STATIONERY CONSUMABLES,04/02/16,,Operations Fire Stations,ICT
800075067,*XMA LTD,AA94890,4,55.28,STATIONERY CONSUMABLES,04/02/16,,Operations Fire Stations,ICT
800075067,*XMA LTD,AA94890,5,31.89,STATIONERY CONSUMABLES,04/02/16,,Operations Fire Stations,ICT
800075067,*XMA LTD,AA94890,6,46.45,STATIONERY CONSUMABLES,04/02/16,,Operations Fire Stations,ICT
800075067,*XMA LTD,AA94890,7,46.45,STATIONERY CONSUMABLES,04/02/16,,Operations Fire Stations,ICT
800075067,*XMA LTD,AA94890,8,46.45,STATIONERY CONSUMABLES,04/02/16,,Operations Fire Stations,ICT
010216G,THAMES WATER UTILITIES LTD====,CBA1501818,1,"1,111.00",CURRENT HYDRANT COSTS,04/02/16,"1,111.00",Operational Resilience,Utilities
010216G,THAMES WATER UTILITIES LTD====,CBA1502059,1,"1,111.00",CURRENT HYDRANT COSTS,04/02/16,"1,111.00",Operational Resilience,Utilities
010216G,THAMES WATER UTILITIES LTD====,CBA1511570,1,477.00,CURRENT HYDRANT COSTS,04/02/16,477.00,Operational Resilience,Utilities
010216G,THAMES WATER UTILITIES LTD====,CBA1511632,1,459.00,CURRENT HYDRANT COSTS,04/02/16,459.00,Operational Resilience,Utilities
010216G,THAMES WATER UTILITIES LTD====,CBA1511703,1,"1,111.00",CURRENT HYDRANT COSTS,04/02/16,"1,111.00",Operational Resilience,Utilities
010216G,THAMES WATER UTILITIES LTD====,CBA1511704,1,"1,185.00",CURRENT HYDRANT COSTS,04/02/16,"1,185.00",Operational Resilience,Utilities
010216G,THAMES WATER UTILITIES LTD====,CBA1511714,1,"1,185.00",CURRENT HYDRANT COSTS,04/02/16,"1,185.00",Operational Resilience,Utilities
010216G,THAMES WATER UTILITIES LTD====,CBA1600176,1,"1,185.00",CURRENT HYDRANT COSTS,04/02/16,"1,185.00",Operational Resilience,Utilities
010216G,THAMES WATER UTILITIES LTD====,CBA1600436,1,"1,185.00",CURRENT HYDRANT COSTS,04/02/16,"1,185.00",Operational Resilience,Utilities
010216G,THAMES WATER UTILITIES LTD====,CBA1600504,1,459.00,CURRENT HYDRANT COSTS,04/02/16,459.00,Operational Resilience,Utilities
010216G,THAMES WATER UTILITIES LTD====,CBA1600505,1,"1,185.00",CURRENT HYDRANT COSTS,04/02/16,"1,185.00",Operational Resilience,Utilities
190116G,*GRAFTON MERCHANTING GB LTD,CRO/360306,1,"1,650.00",OPERATIONAL EQUIP-PURCHASE,04/02/16,"2,670.00",Exercise Unified Response,Building Constr Materials
190116G,*GRAFTON MERCHANTING GB LTD,CRO/360306,2,348.00,OPERATIONAL EQUIP-PURCHASE,04/02/16,,Exercise Unified Response,Building Constr Materials
190116G,*GRAFTON MERCHANTING GB LTD,CRO/360306,3,672.00,OPERATIONAL EQUIP-PURCHASE,04/02/16,,Exercise Unified Response,Building Constr Materials
190116G,*GRAFTON MERCHANTING GB LTD,CRO/360504,1,348.00,OPERATIONAL EQUIP-PURCHASE,04/02/16,348.00,Exercise Unified Response,Building Constr Materials
800075082,ALLSTAR BUSINESS SOLUTIONS LTD,E2006046395,1,739.50,FUEL,04/02/16,"13,679.00",Central Operations,Vehicle Management
800075082,ALLSTAR BUSINESS SOLUTIONS LTD,E2006046395,2,490.98,FUEL,04/02/16,,Operations Fire Stations,Vehicle Management
800075082,ALLSTAR BUSINESS SOLUTIONS LTD,E2006046395,3,489.91,FUEL,04/02/16,,Procurement,Vehicle Management
800075082,ALLSTAR BUSINESS SOLUTIONS LTD,E2006046395,4,358.58,FUEL,04/02/16,,Operations Fire Stations,Vehicle Management
800075082,ALLSTAR BUSINESS SOLUTIONS LTD,E2006046395,5,342.00,FUEL,04/02/16,,Operations Fire Stations,Vehicle Management
800075082,ALLSTAR BUSINESS SOLUTIONS LTD,E2006046395,6,323.83,FUEL,04/02/16,,Operations Fire Stations,Vehicle Management
800075082,ALLSTAR BUSINESS SOLUTIONS LTD,E2006046395,7,316.67,FUEL,04/02/16,,Operations Fire Stations,Vehicle Management
800075082,ALLSTAR BUSINESS SOLUTIONS LTD,E2006046395,8,294.44,FUEL,04/02/16,,Operations Fire Stations,Vehicle Management
800075082,ALLSTAR BUSINESS SOLUTIONS LTD,E2006046395,9,282.26,FUEL,04/02/16,,Operations Fire Stations,Vehicle Management
800075082,ALLSTAR BUSINESS SOLUTIONS LTD,E2006046395,10,260.71,FUEL,04/02/16,,Operations Fire Stations,Vehicle Management
800075082,ALLSTAR BUSINESS SOLUTIONS LTD,E2006046395,11,255.74,FUEL,04/02/16,,Operations Fire Stations,Vehicle Management
800075082,ALLSTAR BUSINESS SOLUTIONS LTD,E2006046395,12,236.34,FUEL,04/02/16,,Operations Fire Stations,Vehicle Management
800075082,ALLSTAR BUSINESS SOLUTIONS LTD,E2006046395,13,231.70,FUEL,04/02/16,,Operations Fire Stations,Vehicle Management
800075082,ALLSTAR BUSINESS SOLUTIONS LTD,E2006046395,14,230.29,FUEL,04/02/16,,Operations Fire Stations,Vehicle Management
800075082,ALLSTAR BUSINESS SOLUTIONS LTD,E2006046395,15,201.97,FUEL,04/02/16,,Operations Fire Stations,Vehicle Management
800075082,ALLSTAR BUSINESS SOLUTIONS LTD,E2006046395,16,198.15,FUEL,04/02/16,,Operations Fire Stations,Vehicle Management
800075082,ALLSTAR BUSINESS SOLUTIONS LTD,E2006046395,17,194.87,FUEL,04/02/16,,Operations Fire Stations,Vehicle Management
800075082,ALLSTAR BUSINESS SOLUTIONS LTD,E2006046395,18,190.29,FUEL,04/02/16,,Operations Fire Stations,Vehicle Management
800075082,ALLSTAR BUSINESS SOLUTIONS LTD,E2006046395,19,187.30,FUEL,04/02/16,,Operations Fire Stations,Vehicle Management
800075082,ALLSTAR BUSINESS SOLUTIONS LTD,E2006046395,20,181.63,FUEL,04/02/16,,Operations Fire Stations,Vehicle Management
800075082,ALLSTAR BUSINESS SOLUTIONS LTD,E2006046395,21,176.91,FUEL,04/02/16,,Operations Fire Stations,Vehicle Management
800075082,ALLSTAR BUSINESS SOLUTIONS LTD,E2006046395,22,170.38,FUEL,04/02/16,,Operations Fire Stations,Vehicle Management
800075082,ALLSTAR BUSINESS SOLUTIONS LTD,E2006046395,23,163.25,FUEL,04/02/16,,Operations Fire Stations,Vehicle Management
800075082,ALLSTAR BUSINESS SOLUTIONS LTD,E2006046395,24,163.22,FUEL,04/02/16,,Operations Fire Stations,Vehicle Management
800075082,ALLSTAR BUSINESS SOLUTIONS LTD,E2006046395,25,163.01,FUEL,04/02/16,,Operations Fire Stations,Vehicle Management
800075082,ALLSTAR BUSINESS SOLUTIONS LTD,E2006046395,26,162.60,FUEL,04/02/16,,Operations Fire Stations,Vehicle Management
800075082,ALLSTAR BUSINESS SOLUTIONS LTD,E2006046395,27,161.65,FUEL,04/02/16,,Operations Fire Stations,Vehicle Management
800075082,ALLSTAR BUSINESS SOLUTIONS LTD,E2006046395,28,160.67,FUEL,04/02/16,,Operations Fire Stations,Vehicle Management
800075082,ALLSTAR BUSINESS SOLUTIONS LTD,E2006046395,29,156.60,FUEL,04/02/16,,Operations Fire Stations,Vehicle Management
800075082,ALLSTAR BUSINESS SOLUTIONS LTD,E2006046395,30,152.75,FUEL,04/02/16,,Operations Fire Stations,Vehicle Management
800075082,ALLSTAR BUSINESS SOLUTIONS LTD,E2006046395,31,152.69,FUEL,04/02/16,,Operations Fire Stations,Vehicle Management
800075082,ALLSTAR BUSINESS SOLUTIONS LTD,E2006046395,32,151.19,FUEL,04/02/16,,Operations Fire Stations,Vehicle Management
800075082,ALLSTAR BUSINESS SOLUTIONS LTD,E2006046395,33,146.22,FUEL,04/02/16,,Operations Fire Stations,Vehicle Management
800075082,ALLSTAR BUSINESS SOLUTIONS LTD,E2006046395,34,142.65,FUEL,04/02/16,,Operations Fire Stations,Vehicle Management
800075082,ALLSTAR BUSINESS SOLUTIONS LTD,E2006046395,35,139.44,FUEL,04/02/16,,Operations Fire Stations,Vehicle Management
800075082,ALLSTAR BUSINESS SOLUTIONS LTD,E2006046395,36,138.64,FUEL,04/02/16,,Operations Fire Stations,Vehicle Management
800075082,ALLSTAR BUSINESS SOLUTIONS LTD,E2006046395,37,137.12,FUEL,04/02/16,,Operations Fire Stations,Vehicle Management
800075082,ALLSTAR BUSINESS SOLUTIONS LTD,E2006046395,38,134.66,FUEL,04/02/16,,Operations Fire Stations,Vehicle Management
800075082,ALLSTAR BUSINESS SOLUTIONS LTD,E2006046395,39,132.04,FUEL,04/02/16,,Operations Fire Stations,Vehicle Management
800075082,ALLSTAR BUSINESS SOLUTIONS LTD,E2006046395,40,131.82,FUEL,04/02/16,,Operations Fire Stations,Vehicle Management
800075082,ALLSTAR BUSINESS SOLUTIONS LTD,E2006046395,41,130.77,FUEL,04/02/16,,Operations Fire Stations,Vehicle Management
800075082,ALLSTAR BUSINESS SOLUTIONS LTD,E2006046395,42,129.81,FUEL,04/02/16,,Operations Fire Stations,Vehicle Management
800075082,ALLSTAR BUSINESS SOLUTIONS LTD,E2006046395,43,128.76,FUEL,04/02/16,,Operations Fire Stations,Vehicle Management
800075082,ALLSTAR BUSINESS SOLUTIONS LTD,E2006046395,44,128.63,FUEL,04/02/16,,Operations Fire Stations,Vehicle Management
800075082,ALLSTAR BUSINESS SOLUTIONS LTD,E2006046395,45,125.76,FUEL,04/02/16,,Operations Fire Stations,Vehicle Management
800075082,ALLSTAR BUSINESS SOLUTIONS LTD,E2006046395,46,124.35,FUEL,04/02/16,,Operations Fire Stations,Vehicle Management
800075082,ALLSTAR BUSINESS SOLUTIONS LTD,E2006046395,47,123.29,FUEL,04/02/16,,Operations Fire Stations,Vehicle Management
800075082,ALLSTAR BUSINESS SOLUTIONS LTD,E2006046395,48,119.46,FUEL,04/02/16,,Operations Fire Stations,Vehicle Management
800075082,ALLSTAR BUSINESS SOLUTIONS LTD,E2006046395,49,118.22,FUEL,04/02/16,,Operations Fire Stations,Vehicle Management
800075082,ALLSTAR BUSINESS SOLUTIONS LTD,E2006046395,50,116.49,FUEL,04/02/16,,Operations Fire Stations,Vehicle Management
800075082,ALLSTAR BUSINESS SOLUTIONS LTD,E2006046395,51,114.33,FUEL,04/02/16,,Operations Fire Stations,Vehicle Management
800075082,ALLSTAR BUSINESS SOLUTIONS LTD,E2006046395,52,113.63,FUEL,04/02/16,,Operations Fire Stations,Vehicle Management
800075082,ALLSTAR BUSINESS SOLUTIONS LTD,E2006046395,53,112.12,FUEL,04/02/16,,Operations Fire Stations,Vehicle Management
800075082,ALLSTAR BUSINESS SOLUTIONS LTD,E2006046395,54,111.34,FUEL,04/02/16,,Operations Fire Stations,Vehicle Management
800075082,ALLSTAR BUSINESS SOLUTIONS LTD,E2006046395,55,109.34,FUEL,04/02/16,,Operations Fire Stations,Vehicle Management
800075082,ALLSTAR BUSINESS SOLUTIONS LTD,E2006046395,56,108.98,FUEL,04/02/16,,Operations Fire Stations,Vehicle Management
800075082,ALLSTAR BUSINESS SOLUTIONS LTD,E2006046395,57,108.22,FUEL,04/02/16,,Operations Non Fire Stations,Vehicle Management
800075082,ALLSTAR BUSINESS SOLUTIONS LTD,E2006046395,58,107.63,FUEL,04/02/16,,Operations Fire Stations,Vehicle Management
800075082,ALLSTAR BUSINESS SOLUTIONS LTD,E2006046395,59,105.53,FUEL,04/02/16,,Operations Fire Stations,Vehicle Management
800075082,ALLSTAR BUSINESS SOLUTIONS LTD,E2006046395,60,104.78,FUEL,04/02/16,,Technical And Service Support,Vehicle Management
800075082,ALLSTAR BUSINESS SOLUTIONS LTD,E2006046395,61,103.66,FUEL,04/02/16,,Operations Fire Stations,Vehicle Management
800075082,ALLSTAR BUSINESS SOLUTIONS LTD,E2006046395,62,95.60,FUEL,04/02/16,,LIFE - LFB Funded,Vehicle Management
800075082,ALLSTAR BUSINESS SOLUTIONS LTD,E2006046395,63,93.72,FUEL,04/02/16,,Fire Safety Regulation,Vehicle Management
800075082,ALLSTAR BUSINESS SOLUTIONS LTD,E2006046395,64,92.68,FUEL,04/02/16,,Operations Fire Stations,Vehicle Management
800075082,ALLSTAR BUSINESS SOLUTIONS LTD,E2006046395,65,89.81,FUEL,04/02/16,,Operations Fire Stations,Vehicle Management
800075082,ALLSTAR BUSINESS SOLUTIONS LTD,E2006046395,66,86.89,FUEL,04/02/16,,Operations Fire Stations,Vehicle Management
800075082,ALLSTAR BUSINESS SOLUTIONS LTD,E2006046395,67,85.98,FUEL,04/02/16,,Operations Fire Stations,Vehicle Management
800075082,ALLSTAR BUSINESS SOLUTIONS LTD,E2006046395,68,82.47,FUEL,04/02/16,,Operations Fire Stations,Vehicle Management
800075082,ALLSTAR BUSINESS SOLUTIONS LTD,E2006046395,69,81.37,FUEL,04/02/16,,Operations Fire Stations,Vehicle Management
800075082,ALLSTAR BUSINESS SOLUTIONS LTD,E2006046395,70,81.03,FUEL,04/02/16,,Operations Fire Stations,Vehicle Management
800075082,ALLSTAR BUSINESS SOLUTIONS LTD,E2006046395,71,78.36,FUEL,04/02/16,,Operations Fire Stations,Vehicle Management
800075082,ALLSTAR BUSINESS SOLUTIONS LTD,E2006046395,72,78.10,FUEL,04/02/16,,Operations Fire Stations,Vehicle Management
800075082,ALLSTAR BUSINESS SOLUTIONS LTD,E2006046395,73,77.22,FUEL,04/02/16,,Operations Fire Stations,Vehicle Management
800075082,ALLSTAR BUSINESS SOLUTIONS LTD,E2006046395,74,76.64,FUEL,04/02/16,,Operations Fire Stations,Vehicle Management
800075082,ALLSTAR BUSINESS SOLUTIONS LTD,E2006046395,75,76.08,FUEL,04/02/16,,Command Units,Vehicle Management
800075082,ALLSTAR BUSINESS SOLUTIONS LTD,E2006046395,76,75.77,FUEL,04/02/16,,Operations Fire Stations,Vehicle Management
800075082,ALLSTAR BUSINESS SOLUTIONS LTD,E2006046395,77,74.26,FUEL,04/02/16,,Technical And Service Support,Vehicle Management
800075082,ALLSTAR BUSINESS SOLUTIONS LTD,E2006046395,78,72.87,FUEL,04/02/16,,Command Units,Vehicle Management
800075082,ALLSTAR BUSINESS SOLUTIONS LTD,E2006046395,79,68.06,FUEL,04/02/16,,Operations Fire Stations,Vehicle Management
800075082,ALLSTAR BUSINESS SOLUTIONS LTD,E2006046395,80,67.79,FUEL,04/02/16,,Information and Communication Technology,Vehicle Management
800075082,ALLSTAR BUSINESS SOLUTIONS LTD,E2006046395,81,66.31,FUEL,04/02/16,,Operations Fire Stations,Vehicle Management
800075082,ALLSTAR BUSINESS SOLUTIONS LTD,E2006046395,82,58.84,FUEL,04/02/16,,Operations Fire Stations,Vehicle Management
800075082,ALLSTAR BUSINESS SOLUTIONS LTD,E2006046395,83,58.38,FUEL,04/02/16,,Command Units,Vehicle Management
800075082,ALLSTAR BUSINESS SOLUTIONS LTD,E2006046395,84,58.24,FUEL,04/02/16,,Operations Fire Stations,Vehicle Management
800075082,ALLSTAR BUSINESS SOLUTIONS LTD,E2006046395,85,50.45,FUEL,04/02/16,,Operations Fire Stations,Vehicle Management
800075082,ALLSTAR BUSINESS SOLUTIONS LTD,E2006046395,86,49.49,FUEL,04/02/16,,Operations Fire Stations,Vehicle Management
800075082,ALLSTAR BUSINESS SOLUTIONS LTD,E2006046395,87,47.81,FUEL,04/02/16,,Operations Fire Stations,Vehicle Management
800075082,ALLSTAR BUSINESS SOLUTIONS LTD,E2006046395,88,46.54,FUEL,04/02/16,,Command Units,Vehicle Management
800075082,ALLSTAR BUSINESS SOLUTIONS LTD,E2006046395,89,45.45,FUEL,04/02/16,,Operations Fire Stations,Vehicle Management
800075082,ALLSTAR BUSINESS SOLUTIONS LTD,E2006046395,90,31.48,FUEL,04/02/16,,Command Units,Vehicle Management
800075082,ALLSTAR BUSINESS SOLUTIONS LTD,E2006046395,91,29.28,FUEL,04/02/16,,Operations Fire Stations,Vehicle Management
800075082,ALLSTAR BUSINESS SOLUTIONS LTD,E2006046395,92,22.86,FUEL,04/02/16,,Operations Fire Stations,Vehicle Management
800075082,ALLSTAR BUSINESS SOLUTIONS LTD,E2006046395,93,22.28,FUEL,04/02/16,,Operations Fire Stations,Vehicle Management
800075082,ALLSTAR BUSINESS SOLUTIONS LTD,E2006046395,94,15.49,FUEL,04/02/16,,Operations Fire Stations,Vehicle Management
800075082,ALLSTAR BUSINESS SOLUTIONS LTD,E2006046395,95,15.25,FUEL,04/02/16,,CBRN RRT,Vehicle Management
800075082,ALLSTAR BUSINESS SOLUTIONS LTD,E2006046395,96,12.78,FUEL,04/02/16,,Operations Fire Stations,Vehicle Management
800075082,ALLSTAR BUSINESS SOLUTIONS LTD,E2006046395,97,7.92,FUEL,04/02/16,,Operations Fire Stations,Vehicle Management
800075082,ALLSTAR BUSINESS SOLUTIONS LTD,E2006046395,98,7.89,FUEL,04/02/16,,Operations Fire Stations,Vehicle Management
800075082,ALLSTAR BUSINESS SOLUTIONS LTD,E2006046395,99,7.79,FUEL,04/02/16,,Operations Fire Stations,Vehicle Management
280116G,NCC SERVICES LTD==============,E923853,1,885.00,MAINTENANCE & SUPPORT,04/02/16,885.00,Information and Communication Technology,ICT
280116G,KIER BUILDING SERV ENGINEERS==,F00056592,1,"1,244.74",STRATEGIC (NON CYCLICAL),04/02/16,"1,244.74",Technical and Service Support,"Works - Construction, R&M"
141340,CORONA ENERGY RETAIL 4 LTD,1077501165,1,105.65,1077501165,04/02/16,"7,328.20",Technical And Service Support,Utilities
141340,CORONA ENERGY RETAIL 4 LTD,1077501165,2,340.96,1077501165,04/02/16,,Technical And Service Support,Utilities
141340,CORONA ENERGY RETAIL 4 LTD,1077501165,3,29.88,1077501165,04/02/16,,Technical And Service Support,Utilities
141340,CORONA ENERGY RETAIL 4 LTD,1077501165,4,397.00,1077501165,04/02/16,,Technical And Service Support,Utilities
141340,CORONA ENERGY RETAIL 4 LTD,1077501165,5,232.08,1077501165,04/02/16,,Technical And Service Support,Utilities
141340,CORONA ENERGY RETAIL 4 LTD,1077501165,6,78.52,1077501165,04/02/16,,Technical And Service Support,Utilities
141340,CORONA ENERGY RETAIL 4 LTD,1077501165,7,274.45,1077501165,04/02/16,,Technical And Service Support,Utilities
141340,CORONA ENERGY RETAIL 4 LTD,1077501165,8,43.32,1077501165,04/02/16,,Technical And Service Support,Utilities
141340,CORONA ENERGY RETAIL 4 LTD,1077501165,9,386.03,1077501165,04/02/16,,Technical And Service Support,Utilities
141340,CORONA ENERGY RETAIL 4 LTD,1077501165,10,151.02,1077501165,04/02/16,,Technical And Service Support,Utilities
141340,CORONA ENERGY RETAIL 4 LTD,1077501165,11,542.97,1077501165,04/02/16,,Technical And Service Support,Utilities
141340,CORONA ENERGY RETAIL 4 LTD,1077501165,12,80.32,1077501165,04/02/16,,Technical And Service Support,Utilities
141340,CORONA ENERGY RETAIL 4 LTD,1077501165,13,55.78,1077501165,04/02/16,,Technical And Service Support,Utilities
141340,CORONA ENERGY RETAIL 4 LTD,1077501165,14,87.06,1077501165,04/02/16,,Technical And Service Support,Utilities
141340,CORONA ENERGY RETAIL 4 LTD,1077501165,15,303.40,1077501165,04/02/16,,Technical And Service Support,Utilities
141340,CORONA ENERGY RETAIL 4 LTD,1077501165,16,21.72,1077501165,04/02/16,,Technical And Service Support,Utilities
141340,CORONA ENERGY RETAIL 4 LTD,1077501165,17,305.42,1077501165,04/02/16,,Technical And Service Support,Utilities
141340,CORONA ENERGY RETAIL 4 LTD,1077501165,18,10.67,1077501165,04/02/16,,Technical And Service Support,Utilities
141340,CORONA ENERGY RETAIL 4 LTD,1077501165,19,309.93,1077501165,04/02/16,,Technical And Service Support,Utilities
141340,CORONA ENERGY RETAIL 4 LTD,1077501165,20,460.70,1077501165,04/02/16,,Technical And Service Support,Utilities
141340,CORONA ENERGY RETAIL 4 LTD,1077501165,21,32.63,1077501165,04/02/16,,Technical And Service Support,Utilities
141340,CORONA ENERGY RETAIL 4 LTD,1077501165,22,500.33,1077501165,04/02/16,,Technical And Service Support,Utilities
141340,CORONA ENERGY RETAIL 4 LTD,1077501165,23,89.15,1077501165,04/02/16,,Technical And Service Support,Utilities
141340,CORONA ENERGY RETAIL 4 LTD,1077501165,24,376.78,1077501165,04/02/16,,Technical And Service Support,Utilities
141340,CORONA ENERGY RETAIL 4 LTD,1077501165,25,569.95,1077501165,04/02/16,,Technical And Service Support,Utilities
141340,CORONA ENERGY RETAIL 4 LTD,1077501165,26,40.81,1077501165,04/02/16,,Technical And Service Support,Utilities
141340,CORONA ENERGY RETAIL 4 LTD,1077501165,27,574.00,1077501165,04/02/16,,Technical And Service Support,Utilities
141340,CORONA ENERGY RETAIL 4 LTD,1077501165,28,38.12,1077501165,04/02/16,,Technical And Service Support,Utilities
141340,CORONA ENERGY RETAIL 4 LTD,1077501165,29,388.69,1077501165,04/02/16,,Technical And Service Support,Utilities
141340,CORONA ENERGY RETAIL 4 LTD,1077501165,30,4.70,1077501165,04/02/16,,Technical And Service Support,Utilities
141340,CORONA ENERGY RETAIL 4 LTD,1077501165,31,54.84,1077501165,04/02/16,,Technical And Service Support,Utilities
141340,CORONA ENERGY RETAIL 4 LTD,1077501165,33,153.18,1077501165,04/02/16,,Technical And Service Support,Utilities
141340,CORONA ENERGY RETAIL 4 LTD,1077501165,32,288.14,1077501165,04/02/16,,Technical And Service Support,Utilities
180116K,ROCOM,I2771990,1,360.00,PURCHASES-IT COMMUNICATIONS,04/02/16,392.50,Property PFI,ICT
180116K,ROCOM,I2771990,2,25.00,PURCHASES-IT COMMUNICATIONS,04/02/16,,Property PFI,ICT
180116K,ROCOM,I2771990,3,7.50,PURCHASES-IT COMMUNICATIONS,04/02/16,,Property PFI,ICT
200116G,INTUITIVE SYSTEMS AND NETWORKS,ISN00012863,1,"2,904.00",ACQUISITIONS,04/02/16,"7,526.89",Exercise Unified Response,Consultancy
200116G,INTUITIVE SYSTEMS AND NETWORKS,ISN00012863,2,742.89,ACQUISITIONS,04/02/16,,Exercise Unified Response,Consultancy
200116G,INTUITIVE SYSTEMS AND NETWORKS,ISN00012863,4,120.00,ACQUISITIONS,04/02/16,,Exercise Unified Response,Consultancy
200116G,INTUITIVE SYSTEMS AND NETWORKS,ISN00012863,5,360.00,ACQUISITIONS,04/02/16,,Exercise Unified Response,Consultancy
200116G,INTUITIVE SYSTEMS AND NETWORKS,ISN00012863,6,250.00,ACQUISITIONS,04/02/16,,Exercise Unified Response,Consultancy
200116G,INTUITIVE SYSTEMS AND NETWORKS,ISN00012863,7,750.00,ACQUISITIONS,04/02/16,,Exercise Unified Response,Consultancy
200116G,INTUITIVE SYSTEMS AND NETWORKS,ISN00012863,8,"1,200.00",ACQUISITIONS,04/02/16,,Exercise Unified Response,Consultancy
200116G,INTUITIVE SYSTEMS AND NETWORKS,ISN00012863,9,"1,200.00",ACQUISITIONS,04/02/16,,Exercise Unified Response,Consultancy
010216G,BTC BIRNIE TRAINING CONSULTANC,LFB0066,1,"1,417.00",GENERAL,04/02/16,"1,417.00",Cadets,Human Resources
141350,NPOWER LTD,LGUWRDQJ,1,842.95,ELECTRICITY,04/02/16,842.95,Technical And Service Support,Utilities
141350,NPOWER LTD,LGUWRDQK,1,886.62,ELECTRICITY,04/02/16,886.62,Technical And Service Support,Utilities
141350,NPOWER LTD,LGUWRDQL,1,977.42,ELECTRICITY,04/02/16,977.42,Technical And Service Support,Utilities
141350,NPOWER LTD,LGUWRDQM,1,764.95,ELECTRICITY,04/02/16,764.95,Technical And Service Support,Utilities
141350,NPOWER LTD,LGUWRDQN,1,557.15,ELECTRICITY,04/02/16,557.15,Technical And Service Support,Utilities
010216G,BOTTOMLINE TECHNOLOGIES LTD,MINV195959,1,381.92,MAINTENANCE & SUPPORT,04/02/16,381.92,Information and Communication Technology,ICT
141347,LEX AUTOLEASE,MRI3886235,1,741.17,LEASE CAR CHARGES,04/02/16,"4,375.32",Procurement,Vehicle Management
141347,LEX AUTOLEASE,MRI3886235,2,"3,634.15",P/PAYMTS-CAR LEASG-RENTAL,04/02/16,,Finance Services,Vehicle Management
141347,LEX AUTOLEASE,MRI3886235,3,-381.50,VAT CAR LEASING,04/02/16,,Finance Services,Vehicle Management
141347,LEX AUTOLEASE,MRI3886235,4,381.50,LEASE CAR CHARGES,04/02/16,,Procurement,Vehicle Management
010216G,ESTEEM SYSTEMS LTD============,OP/I088816,1,"1,400.00",ACQUISITIONS,04/02/16,"14,000.00",Information and Communication Technology,ICT
010216G,ESTEEM SYSTEMS LTD============,OP/I088816,2,"1,400.00",ACQUISITIONS,04/02/16,,Information and Communication Technology,ICT
010216G,ESTEEM SYSTEMS LTD============,OP/I088816,3,700.00,ACQUISITIONS,04/02/16,,Information and Communication Technology,ICT
010216G,ESTEEM SYSTEMS LTD============,OP/I088816,4,700.00,ACQUISITIONS,04/02/16,,Information and Communication Technology,ICT
010216G,ESTEEM SYSTEMS LTD============,OP/I088816,5,"1,400.00",ACQUISITIONS,04/02/16,,Information and Communication Technology,ICT
010216G,ESTEEM SYSTEMS LTD============,OP/I088816,6,"4,200.00",ACQUISITIONS,04/02/16,,Information and Communication Technology,ICT
010216G,ESTEEM SYSTEMS LTD============,OP/I088816,7,"4,200.00",ACQUISITIONS,04/02/16,,Information and Communication Technology,ICT
800074748,*THOMAS KNEALE & CO LTD,TK113052,1,124.90,COMMUNITY RELATIONS,04/02/16,"1,672.17",Community Safety Delivery,Furniture
800074748,*THOMAS KNEALE & CO LTD,TK113052,2,3.47,CLOTHING,04/02/16,,Operations Fire Stations,Furniture
800074748,*THOMAS KNEALE & CO LTD,TK113052,3,1.48,CLOTHING,04/02/16,,Operations Fire Stations,Furniture
800074748,*THOMAS KNEALE & CO LTD,TK113052,4,10.89,CLOTHING,04/02/16,,Operations Fire Stations,Furniture
800074748,*THOMAS KNEALE & CO LTD,TK113052,5,0.99,CLOTHING,04/02/16,,Operations Fire Stations,Furniture
800074748,*THOMAS KNEALE & CO LTD,TK113052,6,3.47,CLOTHING,04/02/16,,Operations Fire Stations,Furniture
800074748,*THOMAS KNEALE & CO LTD,TK113052,7,1.48,CLOTHING,04/02/16,,Operations Fire Stations,Furniture
800074748,*THOMAS KNEALE & CO LTD,TK113052,8,10.89,CLOTHING,04/02/16,,Operations Fire Stations,Furniture
800074748,*THOMAS KNEALE & CO LTD,TK113052,9,3.47,CLOTHING,04/02/16,,Operations Fire Stations,Furniture
800074748,*THOMAS KNEALE & CO LTD,TK113052,10,1.48,CLOTHING,04/02/16,,Operations Fire Stations,Furniture
800074748,*THOMAS KNEALE & CO LTD,TK113052,11,20.72,CLOTHING,04/02/16,,Operations Fire Stations,Furniture
800074748,*THOMAS KNEALE & CO LTD,TK113052,12,3.47,CLOTHING,04/02/16,,Operations Fire Stations,Furniture
800074748,*THOMAS KNEALE & CO LTD,TK113052,13,1.48,CLOTHING,04/02/16,,Operations Fire Stations,Furniture
800074748,*THOMAS KNEALE & CO LTD,TK113052,14,10.89,CLOTHING,04/02/16,,Operations Fire Stations,Furniture
800074748,*THOMAS KNEALE & CO LTD,TK113052,15,10.89,CLOTHING,04/02/16,,Operations Fire Stations,Furniture
800074748,*THOMAS KNEALE & CO LTD,TK113052,16,6.94,CLOTHING,04/02/16,,Operations Fire Stations,Furniture
800074748,*THOMAS KNEALE & CO LTD,TK113052,17,2.96,CLOTHING,04/02/16,,Operations Fire Stations,Furniture
800074748,*THOMAS KNEALE & CO LTD,TK113052,18,10.89,CLOTHING,04/02/16,,Operations Fire Stations,Furniture
800074748,*THOMAS KNEALE & CO LTD,TK113052,19,10.89,CLOTHING,04/02/16,,Operations Fire Stations,Furniture
800074748,*THOMAS KNEALE & CO LTD,TK113052,20,1.48,CLOTHING,04/02/16,,Operations Fire Stations,Furniture
800074748,*THOMAS KNEALE & CO LTD,TK113052,21,10.89,CLOTHING,04/02/16,,Operations Fire Stations,Furniture
800074748,*THOMAS KNEALE & CO LTD,TK113052,22,0.99,CLOTHING,04/02/16,,Operations Fire Stations,Furniture
800074748,*THOMAS KNEALE & CO LTD,TK113052,23,1.48,CLOTHING,04/02/16,,Operations Fire Stations,Furniture
800074748,*THOMAS KNEALE & CO LTD,TK113052,24,10.89,CLOTHING,04/02/16,,Operations Fire Stations,Furniture
800074748,*THOMAS KNEALE & CO LTD,TK113052,25,10.89,CLOTHING,04/02/16,,Operations Fire Stations,Furniture
800074748,*THOMAS KNEALE & CO LTD,TK113052,26,3.47,CLOTHING,04/02/16,,Operations Fire Stations,Furniture
800074748,*THOMAS KNEALE & CO LTD,TK113052,27,1.48,CLOTHING,04/02/16,,Operations Fire Stations,Furniture
800074748,*THOMAS KNEALE & CO LTD,TK113052,28,10.89,CLOTHING,04/02/16,,Operations Fire Stations,Furniture
800074748,*THOMAS KNEALE & CO LTD,TK113052,29,0.99,CLOTHING,04/02/16,,Operations Fire Stations,Furniture
800074748,*THOMAS KNEALE & CO LTD,TK113052,30,3.47,CLOTHING,04/02/16,,Operations Fire Stations,Furniture
800074748,*THOMAS KNEALE & CO LTD,TK113052,31,10.89,CLOTHING,04/02/16,,Operations Fire Stations,Furniture
800074748,*THOMAS KNEALE & CO LTD,TK113052,32,6.94,CLOTHING,04/02/16,,Operations Fire Stations,Furniture
800074748,*THOMAS KNEALE & CO LTD,TK113052,33,2.96,CLOTHING,04/02/16,,Operations Fire Stations,Furniture
800074748,*THOMAS KNEALE & CO LTD,TK113052,34,6.94,CLOTHING,04/02/16,,Operations Fire Stations,Furniture
800074748,*THOMAS KNEALE & CO LTD,TK113052,35,10.89,CLOTHING,04/02/16,,Operations Fire Stations,Furniture
800074748,*THOMAS KNEALE & CO LTD,TK113052,36,3.47,CLOTHING,04/02/16,,Operations Fire Stations,Furniture
800074748,*THOMAS KNEALE & CO LTD,TK113052,37,10.89,CLOTHING,04/02/16,,Operations Fire Stations,Furniture
800074748,*THOMAS KNEALE & CO LTD,TK113052,38,10.89,CLOTHING,04/02/16,,Operations Fire Stations,Furniture
800074748,*THOMAS KNEALE & CO LTD,TK113052,39,6.94,CLOTHING,04/02/16,,Operations Fire Stations,Furniture
800074748,*THOMAS KNEALE & CO LTD,TK113052,40,10.89,CLOTHING,04/02/16,,Operations Fire Stations,Furniture
800074748,*THOMAS KNEALE & CO LTD,TK113052,41,0.99,CLOTHING,04/02/16,,Operations Fire Stations,Furniture
800074748,*THOMAS KNEALE & CO LTD,TK113052,42,10.89,CLOTHING,04/02/16,,Operations Fire Stations,Furniture
800074748,*THOMAS KNEALE & CO LTD,TK113052,43,0.99,CLOTHING,04/02/16,,Operations Fire Stations,Furniture
800074748,*THOMAS KNEALE & CO LTD,TK113052,44,4.98,OFFICE FURNITURE,04/02/16,,Operations Fire Stations,Furniture
800074748,*THOMAS KNEALE & CO LTD,TK113052,45,10.89,CLOTHING,04/02/16,,Operations Fire Stations,Furniture
800074748,*THOMAS KNEALE & CO LTD,TK113052,46,2.59,OFFICE FURNITURE,04/02/16,,Operations Fire Stations,Furniture
800074748,*THOMAS KNEALE & CO LTD,TK113052,47,67.95,OFFICE FURNITURE,04/02/16,,Operations Fire Stations,Furniture
800074748,*THOMAS KNEALE & CO LTD,TK113052,48,2.59,OFFICE FURNITURE,04/02/16,,Operations Fire Stations,Furniture
800074748,*THOMAS KNEALE & CO LTD,TK113052,49,10.89,CLOTHING,04/02/16,,Operations Fire Stations,Furniture
800074748,*THOMAS KNEALE & CO LTD,TK113052,50,10.89,CLOTHING,04/02/16,,Operations Fire Stations,Furniture
800074748,*THOMAS KNEALE & CO LTD,TK113052,51,3.47,CLOTHING,04/02/16,,Operations Fire Stations,Furniture
800074748,*THOMAS KNEALE & CO LTD,TK113052,52,6.94,CLOTHING,04/02/16,,Operations Fire Stations,Furniture
800074748,*THOMAS KNEALE & CO LTD,TK113052,53,2.96,CLOTHING,04/02/16,,Operations Fire Stations,Furniture
800074748,*THOMAS KNEALE & CO LTD,TK113052,54,3.47,CLOTHING,04/02/16,,Operations Fire Stations,Furniture
800074748,*THOMAS KNEALE & CO LTD,TK113052,55,10.89,CLOTHING,04/02/16,,Operations Fire Stations,Furniture
800074748,*THOMAS KNEALE & CO LTD,TK113052,56,10.89,CLOTHING,04/02/16,,Operations Fire Stations,Furniture
800074748,*THOMAS KNEALE & CO LTD,TK113052,57,5.18,CLOTHING,04/02/16,,Operations Fire Stations,Furniture
800074748,*THOMAS KNEALE & CO LTD,TK113052,58,10.89,CLOTHING,04/02/16,,Operations Fire Stations,Furniture
800074748,*THOMAS KNEALE & CO LTD,TK113052,59,10.89,CLOTHING,04/02/16,,Operations Fire Stations,Furniture
800074748,*THOMAS KNEALE & CO LTD,TK113052,60,3.47,CLOTHING,04/02/16,,Operations Fire Stations,Furniture
800074748,*THOMAS KNEALE & CO LTD,TK113052,61,1.48,CLOTHING,04/02/16,,Operations Fire Stations,Furniture
800074748,*THOMAS KNEALE & CO LTD,TK113052,62,10.89,CLOTHING,04/02/16,,Operations Fire Stations,Furniture
800074748,*THOMAS KNEALE & CO LTD,TK113052,63,10.89,CLOTHING,04/02/16,,Operations Fire Stations,Furniture
800074748,*THOMAS KNEALE & CO LTD,TK113052,64,2.96,CLOTHING,04/02/16,,Operations Fire Stations,Furniture
800074748,*THOMAS KNEALE & CO LTD,TK113052,65,10.89,CLOTHING,04/02/16,,Operations Fire Stations,Furniture
800074748,*THOMAS KNEALE & CO LTD,TK113052,66,0.99,CLOTHING,04/02/16,,Operations Fire Stations,Furniture
800074748,*THOMAS KNEALE & CO LTD,TK113052,67,6.94,CLOTHING,04/02/16,,Operations Fire Stations,Furniture
800074748,*THOMAS KNEALE & CO LTD,TK113052,68,2.96,CLOTHING,04/02/16,,Operations Fire Stations,Furniture
800074748,*THOMAS KNEALE & CO LTD,TK113052,69,10.89,CLOTHING,04/02/16,,Operations Fire Stations,Furniture
800074748,*THOMAS KNEALE & CO LTD,TK113052,70,1.48,CLOTHING,04/02/16,,Operations Fire Stations,Furniture
800074748,*THOMAS KNEALE & CO LTD,TK113052,71,3.47,CLOTHING,04/02/16,,Operations Fire Stations,Furniture
800074748,*THOMAS KNEALE & CO LTD,TK113052,72,10.89,CLOTHING,04/02/16,,Operations Fire Stations,Furniture
800074748,*THOMAS KNEALE & CO LTD,TK113052,73,10.89,CLOTHING,04/02/16,,Operations Fire Stations,Furniture
800074748,*THOMAS KNEALE & CO LTD,TK113052,74,6.94,CLOTHING,04/02/16,,Operations Fire Stations,Furniture
800074748,*THOMAS KNEALE & CO LTD,TK113052,75,2.96,CLOTHING,04/02/16,,Operations Fire Stations,Furniture
800074748,*THOMAS KNEALE & CO LTD,TK113052,76,3.47,CLOTHING,04/02/16,,Operations Fire Stations,Furniture
800074748,*THOMAS KNEALE & CO LTD,TK113052,77,1.48,CLOTHING,04/02/16,,Operations Fire Stations,Furniture
800074748,*THOMAS KNEALE & CO LTD,TK113052,78,3.47,CLOTHING,04/02/16,,Operations Fire Stations,Furniture
800074748,*THOMAS KNEALE & CO LTD,TK113052,79,10.89,CLOTHING,04/02/16,,Operations Fire Stations,Furniture
800074748,*THOMAS KNEALE & CO LTD,TK113052,80,6.94,CLOTHING,04/02/16,,Operations Fire Stations,Furniture
800074748,*THOMAS KNEALE & CO LTD,TK113052,81,10.89,CLOTHING,04/02/16,,Operations Fire Stations,Furniture
800074748,*THOMAS KNEALE & CO LTD,TK113052,82,2.96,CLOTHING,04/02/16,,Operations Fire Stations,Furniture
800074748,*THOMAS KNEALE & CO LTD,TK113052,83,4.98,OFFICE FURNITURE,04/02/16,,Operations Fire Stations,Furniture
800074748,*THOMAS KNEALE & CO LTD,TK113052,84,3.47,CLOTHING,04/02/16,,Operations Fire Stations,Furniture
800074748,*THOMAS KNEALE & CO LTD,TK113052,85,1.48,CLOTHING,04/02/16,,Operations Fire Stations,Furniture
800074748,*THOMAS KNEALE & CO LTD,TK113052,86,10.89,CLOTHING,04/02/16,,Operations Fire Stations,Furniture
800074748,*THOMAS KNEALE & CO LTD,TK113052,87,10.89,CLOTHING,04/02/16,,Operations Fire Stations,Furniture
800074748,*THOMAS KNEALE & CO LTD,TK113052,88,10.89,CLOTHING,04/02/16,,Operations Fire Stations,Furniture
800074748,*THOMAS KNEALE & CO LTD,TK113052,89,0.99,CLOTHING,04/02/16,,Operations Fire Stations,Furniture
800074748,*THOMAS KNEALE & CO LTD,TK113052,90,3.47,CLOTHING,04/02/16,,Operations Fire Stations,Furniture
800074748,*THOMAS KNEALE & CO LTD,TK113052,91,1.48,CLOTHING,04/02/16,,Operations Fire Stations,Furniture
800074748,*THOMAS KNEALE & CO LTD,TK113052,92,3.47,CLOTHING,04/02/16,,Operations Fire Stations,Furniture
800074748,*THOMAS KNEALE & CO LTD,TK113052,93,1.48,CLOTHING,04/02/16,,Operations Fire Stations,Furniture
800074748,*THOMAS KNEALE & CO LTD,TK113052,94,10.89,CLOTHING,04/02/16,,CBRN RRT,Furniture
800074748,*THOMAS KNEALE & CO LTD,TK113052,95,0.99,CLOTHING,04/02/16,,CBRN RRT,Furniture
800074748,*THOMAS KNEALE & CO LTD,TK113052,96,10.89,CLOTHING,04/02/16,,CBRN RRT,Furniture
800074748,*THOMAS KNEALE & CO LTD,TK113052,97,6.94,CLOTHING,04/02/16,,Operations Fire Stations,Furniture
800074748,*THOMAS KNEALE & CO LTD,TK113052,98,2.96,CLOTHING,04/02/16,,Operations Fire Stations,Furniture
800074748,*THOMAS KNEALE & CO LTD,TK113052,99,5.18,OFFICE FURNITURE,04/02/16,,Operations Fire Stations,Furniture
800074748,*THOMAS KNEALE & CO LTD,TK113052,100,14.20,OFFICE FURNITURE,04/02/16,,Operations Fire Stations,Furniture
800074748,*THOMAS KNEALE & CO LTD,TK113052,101,5.68,OFFICE FURNITURE,04/02/16,,Operations Fire Stations,Furniture
800074748,*THOMAS KNEALE & CO LTD,TK113052,102,10.89,CLOTHING,04/02/16,,Operations Fire Stations,Furniture
800074748,*THOMAS KNEALE & CO LTD,TK113052,103,6.94,CLOTHING,04/02/16,,Operations Fire Stations,Furniture
800074748,*THOMAS KNEALE & CO LTD,TK113052,104,10.89,CLOTHING,04/02/16,,Operations Fire Stations,Furniture
800074748,*THOMAS KNEALE & CO LTD,TK113052,105,3.47,CLOTHING,04/02/16,,Operations Fire Stations,Furniture
800074748,*THOMAS KNEALE & CO LTD,TK113052,106,4.98,OFFICE FURNITURE,04/02/16,,Operations Fire Stations,Furniture
800074748,*THOMAS KNEALE & CO LTD,TK113052,107,5.18,OFFICE FURNITURE,04/02/16,,Operations Fire Stations,Furniture
800074748,*THOMAS KNEALE & CO LTD,TK113052,108,11.36,OFFICE FURNITURE,04/02/16,,Operations Fire Stations,Furniture
800074748,*THOMAS KNEALE & CO LTD,TK113052,109,10.89,CLOTHING,04/02/16,,Operations Fire Stations,Furniture
800074748,*THOMAS KNEALE & CO LTD,TK113052,110,3.47,CLOTHING,04/02/16,,Operations Fire Stations,Furniture
800074748,*THOMAS KNEALE & CO LTD,TK113052,111,1.48,CLOTHING,04/02/16,,Operations Fire Stations,Furniture
800074748,*THOMAS KNEALE & CO LTD,TK113052,112,10.89,CLOTHING,04/02/16,,Operations Fire Stations,Furniture
800074748,*THOMAS KNEALE & CO LTD,TK113052,113,2.84,OFFICE FURNITURE,04/02/16,,Operations Fire Stations,Furniture
800074748,*THOMAS KNEALE & CO LTD,TK113052,114,3.47,CLOTHING,04/02/16,,Operations Fire Stations,Furniture
800074748,*THOMAS KNEALE & CO LTD,TK113052,115,1.48,CLOTHING,04/02/16,,Operations Fire Stations,Furniture
800074748,*THOMAS KNEALE & CO LTD,TK113052,116,3.47,CLOTHING,04/02/16,,Operations Fire Stations,Furniture
800074748,*THOMAS KNEALE & CO LTD,TK113052,117,10.89,CLOTHING,04/02/16,,Operations Fire Stations,Furniture
800074748,*THOMAS KNEALE & CO LTD,TK113052,118,10.89,CLOTHING,04/02/16,,Operations Fire Stations,Furniture
800074748,*THOMAS KNEALE & CO LTD,TK113052,119,53.98,OFFICE FURNITURE,04/02/16,,Operations Fire Stations,Furniture
800074748,*THOMAS KNEALE & CO LTD,TK113052,120,10.89,CLOTHING,04/02/16,,Operations Fire Stations,Furniture
800074748,*THOMAS KNEALE & CO LTD,TK113052,121,1.48,CLOTHING,04/02/16,,Operations Fire Stations,Furniture
800074748,*THOMAS KNEALE & CO LTD,TK113052,122,3.47,CLOTHING,04/02/16,,Operations Fire Stations,Furniture
800074748,*THOMAS KNEALE & CO LTD,TK113052,123,10.89,CLOTHING,04/02/16,,Operations Fire Stations,Furniture
800074748,*THOMAS KNEALE & CO LTD,TK113052,124,3.47,CLOTHING,04/02/16,,Operations Fire Stations,Furniture
800074748,*THOMAS KNEALE & CO LTD,TK113052,125,2.96,CLOTHING,04/02/16,,Operations Fire Stations,Furniture
800074748,*THOMAS KNEALE & CO LTD,TK113052,126,10.89,CLOTHING,04/02/16,,Operations Fire Stations,Furniture
800074748,*THOMAS KNEALE & CO LTD,TK113052,127,10.89,CLOTHING,04/02/16,,Operations Fire Stations,Furniture
800074748,*THOMAS KNEALE & CO LTD,TK113052,128,0.99,CLOTHING,04/02/16,,Operations Fire Stations,Furniture
800074748,*THOMAS KNEALE & CO LTD,TK113052,129,10.89,CLOTHING,04/02/16,,Operations Fire Stations,Furniture
800074748,*THOMAS KNEALE & CO LTD,TK113052,130,10.89,CLOTHING,04/02/16,,Operations Fire Stations,Furniture
800074748,*THOMAS KNEALE & CO LTD,TK113052,131,6.94,CLOTHING,04/02/16,,Operations Fire Stations,Furniture
800074748,*THOMAS KNEALE & CO LTD,TK113052,132,2.96,CLOTHING,04/02/16,,Operations Fire Stations,Furniture
800074748,*THOMAS KNEALE & CO LTD,TK113052,133,10.89,CLOTHING,04/02/16,,Operations Fire Stations,Furniture
800074748,*THOMAS KNEALE & CO LTD,TK113052,134,1.48,CLOTHING,04/02/16,,Operations Fire Stations,Furniture
800074748,*THOMAS KNEALE & CO LTD,TK113052,135,3.47,CLOTHING,04/02/16,,Operations Fire Stations,Furniture
800074748,*THOMAS KNEALE & CO LTD,TK113052,136,34.08,OFFICE FURNITURE,04/02/16,,Operations Fire Stations,Furniture
800074748,*THOMAS KNEALE & CO LTD,TK113052,137,7.77,OFFICE FURNITURE,04/02/16,,Operations Fire Stations,Furniture
800074748,*THOMAS KNEALE & CO LTD,TK113052,138,215.92,OFFICE FURNITURE,04/02/16,,Operations Fire Stations,Furniture
800074748,*THOMAS KNEALE & CO LTD,TK113052,139,10.89,CLOTHING,04/02/16,,Operations Fire Stations,Furniture
800074748,*THOMAS KNEALE & CO LTD,TK113052,140,6.94,CLOTHING,04/02/16,,Operations Fire Stations,Furniture
800074748,*THOMAS KNEALE & CO LTD,TK113052,141,10.89,CLOTHING,04/02/16,,Operations Fire Stations,Furniture
800074748,*THOMAS KNEALE & CO LTD,TK113052,142,0.99,CLOTHING,04/02/16,,Operations Fire Stations,Furniture
800074748,*THOMAS KNEALE & CO LTD,TK113052,143,3.47,CLOTHING,04/02/16,,Operations Fire Stations,Furniture
800074748,*THOMAS KNEALE & CO LTD,TK113052,144,1.48,CLOTHING,04/02/16,,Operations Fire Stations,Furniture
800074748,*THOMAS KNEALE & CO LTD,TK113052,145,10.89,CLOTHING,04/02/16,,Operations Fire Stations,Furniture
800074748,*THOMAS KNEALE & CO LTD,TK113052,146,3.47,CLOTHING,04/02/16,,Operations Fire Stations,Furniture
800074748,*THOMAS KNEALE & CO LTD,TK113052,147,1.48,CLOTHING,04/02/16,,Operations Fire Stations,Furniture
800074748,*THOMAS KNEALE & CO LTD,TK113052,148,10.89,CLOTHING,04/02/16,,Operations Fire Stations,Furniture
800074748,*THOMAS KNEALE & CO LTD,TK113052,149,1.48,CLOTHING,04/02/16,,Operations Fire Stations,Furniture
800074748,*THOMAS KNEALE & CO LTD,TK113052,150,3.47,CLOTHING,04/02/16,,Operations Fire Stations,Furniture
800074748,*THOMAS KNEALE & CO LTD,TK113052,151,6.94,CLOTHING,04/02/16,,Operations Fire Stations,Furniture
800074748,*THOMAS KNEALE & CO LTD,TK113052,152,10.89,CLOTHING,04/02/16,,Operations Fire Stations,Furniture
800074748,*THOMAS KNEALE & CO LTD,TK113052,153,0.99,CLOTHING,04/02/16,,Operations Fire Stations,Furniture
800074748,*THOMAS KNEALE & CO LTD,TK113052,154,6.94,CLOTHING,04/02/16,,Operations Fire Stations,Furniture
800074748,*THOMAS KNEALE & CO LTD,TK113052,155,2.96,CLOTHING,04/02/16,,Operations Fire Stations,Furniture
800074748,*THOMAS KNEALE & CO LTD,TK113052,156,1.48,CLOTHING,04/02/16,,Operations Fire Stations,Furniture
800074748,*THOMAS KNEALE & CO LTD,TK113052,157,3.47,CLOTHING,04/02/16,,Operations Fire Stations,Furniture
800074748,*THOMAS KNEALE & CO LTD,TK113052,158,10.89,CLOTHING,04/02/16,,Operations Fire Stations,Furniture
800074748,*THOMAS KNEALE & CO LTD,TK113052,159,10.89,CLOTHING,04/02/16,,Operations Fire Stations,Furniture
800074748,*THOMAS KNEALE & CO LTD,TK113052,160,3.47,CLOTHING,04/02/16,,Operations Fire Stations,Furniture
800074748,*THOMAS KNEALE & CO LTD,TK113052,161,1.48,CLOTHING,04/02/16,,Operations Fire Stations,Furniture
800074748,*THOMAS KNEALE & CO LTD,TK113052,162,2.84,OFFICE FURNITURE,04/02/16,,Operations Fire Stations,Furniture
800074748,*THOMAS KNEALE & CO LTD,TK113052,163,10.89,CLOTHING,04/02/16,,Operations Fire Stations,Furniture
800074748,*THOMAS KNEALE & CO LTD,TK113052,164,3.47,CLOTHING,04/02/16,,Operations Fire Stations,Furniture
800074748,*THOMAS KNEALE & CO LTD,TK113052,165,3.47,CLOTHING,04/02/16,,Operations Fire Stations,Furniture
800074748,*THOMAS KNEALE & CO LTD,TK113052,166,1.48,CLOTHING,04/02/16,,Operations Fire Stations,Furniture
800074748,*THOMAS KNEALE & CO LTD,TK113052,167,10.89,CLOTHING,04/02/16,,Operations Fire Stations,Furniture
800074748,*THOMAS KNEALE & CO LTD,TK113052,168,6.94,CLOTHING,04/02/16,,Operations Fire Stations,Furniture
800074748,*THOMAS KNEALE & CO LTD,TK113052,169,10.89,CLOTHING,04/02/16,,Operations Fire Stations,Furniture
800074748,*THOMAS KNEALE & CO LTD,TK113052,170,0.99,CLOTHING,04/02/16,,Operations Fire Stations,Furniture
800074748,*THOMAS KNEALE & CO LTD,TK113052,171,3.47,CLOTHING,04/02/16,,Operations Fire Stations,Furniture
800074748,*THOMAS KNEALE & CO LTD,TK113052,172,1.48,CLOTHING,04/02/16,,Operations Fire Stations,Furniture
800074748,*THOMAS KNEALE & CO LTD,TK113052,173,10.89,CLOTHING,04/02/16,,Operations Fire Stations,Furniture
800074748,*THOMAS KNEALE & CO LTD,TK113052,174,1.48,CLOTHING,04/02/16,,Operations Fire Stations,Furniture
800074748,*THOMAS KNEALE & CO LTD,TK113052,175,10.89,CLOTHING,04/02/16,,Operations Fire Stations,Furniture
800074748,*THOMAS KNEALE & CO LTD,TK113052,176,10.89,CLOTHING,04/02/16,,Operations Fire Stations,Furniture
800074748,*THOMAS KNEALE & CO LTD,TK113052,177,0.99,CLOTHING,04/02/16,,Operations Fire Stations,Furniture
800074748,*THOMAS KNEALE & CO LTD,TK113052,178,2.96,CLOTHING,04/02/16,,Operations Fire Stations,Furniture
800074748,*THOMAS KNEALE & CO LTD,TK113052,179,10.89,CLOTHING,04/02/16,,Operations Fire Stations,Furniture
800074748,*THOMAS KNEALE & CO LTD,TK113052,180,1.48,CLOTHING,04/02/16,,Operations Fire Stations,Furniture
800074748,*THOMAS KNEALE & CO LTD,TK113052,181,9.96,OFFICE FURNITURE,04/02/16,,Operations Fire Stations,Furniture
800074748,*THOMAS KNEALE & CO LTD,TK113052,182,10.89,CLOTHING,04/02/16,,Operations Fire Stations,Furniture
800074748,*THOMAS KNEALE & CO LTD,TK113052,183,10.89,CLOTHING,04/02/16,,CBRN RRT,Furniture
800074748,*THOMAS KNEALE & CO LTD,TK113052,184,3.47,CLOTHING,04/02/16,,Operations Fire Stations,Furniture
800074748,*THOMAS KNEALE & CO LTD,TK113052,185,10.89,CLOTHING,04/02/16,,Operations Fire Stations,Furniture
800074748,*THOMAS KNEALE & CO LTD,TK113052,186,10.89,CLOTHING,04/02/16,,Operations Fire Stations,Furniture
800074748,*THOMAS KNEALE & CO LTD,TK113052,187,1.48,CLOTHING,04/02/16,,Operations Fire Stations,Furniture
800074748,*THOMAS KNEALE & CO LTD,TK113052,188,3.47,CLOTHING,04/02/16,,Operations Fire Stations,Furniture
800074748,*THOMAS KNEALE & CO LTD,TK113052,189,10.89,CLOTHING,04/02/16,,Operations Fire Stations,Furniture
800074748,*THOMAS KNEALE & CO LTD,TK113052,190,10.89,CLOTHING,04/02/16,,Operations Fire Stations,Furniture
800074748,*THOMAS KNEALE & CO LTD,TK113052,191,0.99,CLOTHING,04/02/16,,Operations Fire Stations,Furniture
800074748,*THOMAS KNEALE & CO LTD,TK113052,192,1.48,CLOTHING,04/02/16,,Operations Fire Stations,Furniture
800074748,*THOMAS KNEALE & CO LTD,TK113052,193,3.47,CLOTHING,04/02/16,,Operations Fire Stations,Furniture
030216G,VCG KESTREL LIMITED===========,0000002749,1,"1,708.00",PRINTING,08/02/16,"1,708.00",Communications,Facilities & Management S
020216F,VCG KESTREL LIMITED===========,0000002833,1,"4,281.00",PRINTING,08/02/16,"4,281.00",LFB 150th Anniversary,Facilities & Management S
020216F,MOOLANDS LTD,00000545,1,"2,586.00",STRATEGIC (NON CYCLICAL),08/02/16,"2,586.00",Technical and Service Support,"Works - Construction, R&M"
030216G,*HUNTER APPAREL SOLUTIONS LTD,066761,1,7.64,CLOTHING,08/02/16,"2,390.80",Operations Fire Stations,Clothing
030216G,*HUNTER APPAREL SOLUTIONS LTD,066761,2,7.64,CLOTHING,08/02/16,,Operations Fire Stations,Clothing
030216G,*HUNTER APPAREL SOLUTIONS LTD,066761,3,19.08,CLOTHING,08/02/16,,Operations Fire Stations,Clothing
030216G,*HUNTER APPAREL SOLUTIONS LTD,066761,4,12.72,CLOTHING,08/02/16,,Operations Fire Stations,Clothing
030216G,*HUNTER APPAREL SOLUTIONS LTD,066761,5,15.28,CLOTHING,08/02/16,,Operations Fire Stations,Clothing
030216G,*HUNTER APPAREL SOLUTIONS LTD,066761,6,7.64,CLOTHING,08/02/16,,Operations Fire Stations,Clothing
030216G,*HUNTER APPAREL SOLUTIONS LTD,066761,7,19.08,CLOTHING,08/02/16,,Operations Fire Stations,Clothing
030216G,*HUNTER APPAREL SOLUTIONS LTD,066761,8,7.64,CLOTHING,08/02/16,,Operations Fire Stations,Clothing
030216G,*HUNTER APPAREL SOLUTIONS LTD,066761,9,15.28,CLOTHING,08/02/16,,Operations Fire Stations,Clothing
030216G,*HUNTER APPAREL SOLUTIONS LTD,066761,10,15.28,CLOTHING,08/02/16,,Operations Fire Stations,Clothing
030216G,*HUNTER APPAREL SOLUTIONS LTD,066761,11,12.72,CLOTHING,08/02/16,,Operations Fire Stations,Clothing
030216G,*HUNTER APPAREL SOLUTIONS LTD,066761,12,15.28,CLOTHING,08/02/16,,Operations Fire Stations,Clothing
030216G,*HUNTER APPAREL SOLUTIONS LTD,066761,13,25.44,CLOTHING,08/02/16,,Firefighter Trainees,Clothing
030216G,*HUNTER APPAREL SOLUTIONS LTD,066761,14,22.92,CLOTHING,08/02/16,,Firefighter Trainees,Clothing
030216G,*HUNTER APPAREL SOLUTIONS LTD,066761,15,25.44,CLOTHING,08/02/16,,Firefighter Trainees,Clothing
030216G,*HUNTER APPAREL SOLUTIONS LTD,066761,16,22.92,CLOTHING,08/02/16,,Firefighter Trainees,Clothing
030216G,*HUNTER APPAREL SOLUTIONS LTD,066761,17,25.44,CLOTHING,08/02/16,,Firefighter Trainees,Clothing
030216G,*HUNTER APPAREL SOLUTIONS LTD,066761,18,22.92,CLOTHING,08/02/16,,Firefighter Trainees,Clothing
030216G,*HUNTER APPAREL SOLUTIONS LTD,066761,19,12.72,CLOTHING,08/02/16,,Operations Fire Stations,Clothing
030216G,*HUNTER APPAREL SOLUTIONS LTD,066761,20,15.28,CLOTHING,08/02/16,,Operations Fire Stations,Clothing
030216G,*HUNTER APPAREL SOLUTIONS LTD,066761,21,12.72,CLOTHING,08/02/16,,Operations Fire Stations,Clothing
030216G,*HUNTER APPAREL SOLUTIONS LTD,066761,22,15.28,CLOTHING,08/02/16,,Operations Fire Stations,Clothing
030216G,*HUNTER APPAREL SOLUTIONS LTD,066761,23,7.64,CLOTHING,08/02/16,,Operations Fire Stations,Clothing
030216G,*HUNTER APPAREL SOLUTIONS LTD,066761,24,12.72,CLOTHING,08/02/16,,Operations Fire Stations,Clothing
030216G,*HUNTER APPAREL SOLUTIONS LTD,066761,25,17.55,CLOTHING,08/02/16,,Operations Fire Stations,Clothing
030216G,*HUNTER APPAREL SOLUTIONS LTD,066761,26,13.80,CLOTHING,08/02/16,,Operations Fire Stations,Clothing
030216G,*HUNTER APPAREL SOLUTIONS LTD,066761,27,25.44,CLOTHING,08/02/16,,Operations Fire Stations,Clothing
030216G,*HUNTER APPAREL SOLUTIONS LTD,066761,28,22.92,CLOTHING,08/02/16,,Operations Fire Stations,Clothing
030216G,*HUNTER APPAREL SOLUTIONS LTD,066761,29,25.44,CLOTHING,08/02/16,,Firefighter Trainees,Clothing
030216G,*HUNTER APPAREL SOLUTIONS LTD,066761,30,22.92,CLOTHING,08/02/16,,Firefighter Trainees,Clothing
030216G,*HUNTER APPAREL SOLUTIONS LTD,066761,31,12.72,CLOTHING,08/02/16,,Operations Fire Stations,Clothing
030216G,*HUNTER APPAREL SOLUTIONS LTD,066761,32,15.28,CLOTHING,08/02/16,,Operations Fire Stations,Clothing
030216G,*HUNTER APPAREL SOLUTIONS LTD,066761,33,7.64,CLOTHING,08/02/16,,Operations Fire Stations,Clothing
030216G,*HUNTER APPAREL SOLUTIONS LTD,066761,34,19.08,CLOTHING,08/02/16,,Operations Fire Stations,Clothing
030216G,*HUNTER APPAREL SOLUTIONS LTD,066761,35,19.08,CLOTHING,08/02/16,,CBRN RRT,Clothing
030216G,*HUNTER APPAREL SOLUTIONS LTD,066761,36,22.92,CLOTHING,08/02/16,,CBRN RRT,Clothing
030216G,*HUNTER APPAREL SOLUTIONS LTD,066761,37,15.28,CLOTHING,08/02/16,,Operations Fire Stations,Clothing
030216G,*HUNTER APPAREL SOLUTIONS LTD,066761,38,12.72,CLOTHING,08/02/16,,Operations Fire Stations,Clothing
030216G,*HUNTER APPAREL SOLUTIONS LTD,066761,39,12.72,CLOTHING,08/02/16,,Operations Fire Stations,Clothing
030216G,*HUNTER APPAREL SOLUTIONS LTD,066761,40,15.28,CLOTHING,08/02/16,,Operations Fire Stations,Clothing
030216G,*HUNTER APPAREL SOLUTIONS LTD,066761,41,23.40,CLOTHING,08/02/16,,Operations Non Fire Stations,Clothing
030216G,*HUNTER APPAREL SOLUTIONS LTD,066761,42,12.72,CLOTHING,08/02/16,,Operations Fire Stations,Clothing
030216G,*HUNTER APPAREL SOLUTIONS LTD,066761,43,15.28,CLOTHING,08/02/16,,Operations Fire Stations,Clothing
030216G,*HUNTER APPAREL SOLUTIONS LTD,066761,44,12.72,CLOTHING,08/02/16,,Operations Fire Stations,Clothing
030216G,*HUNTER APPAREL SOLUTIONS LTD,066761,45,15.28,CLOTHING,08/02/16,,Operations Fire Stations,Clothing
030216G,*HUNTER APPAREL SOLUTIONS LTD,066761,46,12.72,CLOTHING,08/02/16,,Operations Fire Stations,Clothing
030216G,*HUNTER APPAREL SOLUTIONS LTD,066761,47,15.28,CLOTHING,08/02/16,,Operations Fire Stations,Clothing
030216G,*HUNTER APPAREL SOLUTIONS LTD,066761,48,25.44,CLOTHING,08/02/16,,Operations Fire Stations,Clothing
030216G,*HUNTER APPAREL SOLUTIONS LTD,066761,49,19.08,CLOTHING,08/02/16,,Operations Fire Stations,Clothing
030216G,*HUNTER APPAREL SOLUTIONS LTD,066761,50,7.64,CLOTHING,08/02/16,,Operations Fire Stations,Clothing
030216G,*HUNTER APPAREL SOLUTIONS LTD,066761,51,12.72,CLOTHING,08/02/16,,Operations Fire Stations,Clothing
030216G,*HUNTER APPAREL SOLUTIONS LTD,066761,52,7.64,CLOTHING,08/02/16,,Operations Fire Stations,Clothing
030216G,*HUNTER APPAREL SOLUTIONS LTD,066761,53,12.72,CLOTHING,08/02/16,,Operations Fire Stations,Clothing
030216G,*HUNTER APPAREL SOLUTIONS LTD,066761,54,12.72,CLOTHING,08/02/16,,Operations Fire Stations,Clothing
030216G,*HUNTER APPAREL SOLUTIONS LTD,066761,55,15.28,CLOTHING,08/02/16,,Operations Fire Stations,Clothing
030216G,*HUNTER APPAREL SOLUTIONS LTD,066761,56,7.64,CLOTHING,08/02/16,,Operations Fire Stations,Clothing
030216G,*HUNTER APPAREL SOLUTIONS LTD,066761,57,12.72,CLOTHING,08/02/16,,Operations Fire Stations,Clothing
030216G,*HUNTER APPAREL SOLUTIONS LTD,066761,58,15.28,CLOTHING,08/02/16,,Operations Fire Stations,Clothing
030216G,*HUNTER APPAREL SOLUTIONS LTD,066761,59,25.44,CLOTHING,08/02/16,,Firefighter Trainees,Clothing
030216G,*HUNTER APPAREL SOLUTIONS LTD,066761,60,22.92,CLOTHING,08/02/16,,Firefighter Trainees,Clothing
030216G,*HUNTER APPAREL SOLUTIONS LTD,066761,61,7.64,CLOTHING,08/02/16,,Operations Fire Stations,Clothing
030216G,*HUNTER APPAREL SOLUTIONS LTD,066761,62,12.72,CLOTHING,08/02/16,,Operations Fire Stations,Clothing
030216G,*HUNTER APPAREL SOLUTIONS LTD,066761,63,15.28,CLOTHING,08/02/16,,Operations Fire Stations,Clothing
030216G,*HUNTER APPAREL SOLUTIONS LTD,066761,64,25.44,CLOTHING,08/02/16,,Firefighter Trainees,Clothing
030216G,*HUNTER APPAREL SOLUTIONS LTD,066761,65,22.92,CLOTHING,08/02/16,,Firefighter Trainees,Clothing
030216G,*HUNTER APPAREL SOLUTIONS LTD,066761,66,25.44,CLOTHING,08/02/16,,Firefighter Trainees,Clothing
030216G,*HUNTER APPAREL SOLUTIONS LTD,066761,67,22.92,CLOTHING,08/02/16,,Firefighter Trainees,Clothing
030216G,*HUNTER APPAREL SOLUTIONS LTD,066761,68,7.64,CLOTHING,08/02/16,,Operations Fire Stations,Clothing
030216G,*HUNTER APPAREL SOLUTIONS LTD,066761,69,12.72,CLOTHING,08/02/16,,Operations Fire Stations,Clothing
030216G,*HUNTER APPAREL SOLUTIONS LTD,066761,70,13.80,CLOTHING,08/02/16,,Operations Fire Stations,Clothing
030216G,*HUNTER APPAREL SOLUTIONS LTD,066761,71,7.64,CLOTHING,08/02/16,,Operations Fire Stations,Clothing
030216G,*HUNTER APPAREL SOLUTIONS LTD,066761,72,12.72,CLOTHING,08/02/16,,Operations Fire Stations,Clothing
030216G,*HUNTER APPAREL SOLUTIONS LTD,066761,73,7.64,CLOTHING,08/02/16,,Operations Fire Stations,Clothing
030216G,*HUNTER APPAREL SOLUTIONS LTD,066761,74,12.72,CLOTHING,08/02/16,,Operations Fire Stations,Clothing
030216G,*HUNTER APPAREL SOLUTIONS LTD,066761,75,7.64,CLOTHING,08/02/16,,Operations Fire Stations,Clothing
030216G,*HUNTER APPAREL SOLUTIONS LTD,066761,76,19.08,CLOTHING,08/02/16,,Operations Fire Stations,Clothing
030216G,*HUNTER APPAREL SOLUTIONS LTD,066761,77,25.44,CLOTHING,08/02/16,,Firefighter Trainees,Clothing
030216G,*HUNTER APPAREL SOLUTIONS LTD,066761,78,22.92,CLOTHING,08/02/16,,Firefighter Trainees,Clothing
030216G,*HUNTER APPAREL SOLUTIONS LTD,066761,79,25.44,CLOTHING,08/02/16,,Firefighter Trainees,Clothing
030216G,*HUNTER APPAREL SOLUTIONS LTD,066761,80,22.92,CLOTHING,08/02/16,,Firefighter Trainees,Clothing
030216G,*HUNTER APPAREL SOLUTIONS LTD,066761,81,12.72,CLOTHING,08/02/16,,Operations Fire Stations,Clothing
030216G,*HUNTER APPAREL SOLUTIONS LTD,066761,82,7.64,CLOTHING,08/02/16,,Operations Fire Stations,Clothing
030216G,*HUNTER APPAREL SOLUTIONS LTD,066761,83,12.72,CLOTHING,08/02/16,,Operations Fire Stations,Clothing
030216G,*HUNTER APPAREL SOLUTIONS LTD,066761,84,7.64,CLOTHING,08/02/16,,Operations Fire Stations,Clothing
030216G,*HUNTER APPAREL SOLUTIONS LTD,066761,85,12.72,CLOTHING,08/02/16,,Operations Fire Stations,Clothing
030216G,*HUNTER APPAREL SOLUTIONS LTD,066761,86,25.44,CLOTHING,08/02/16,,Firefighter Trainees,Clothing
030216G,*HUNTER APPAREL SOLUTIONS LTD,066761,87,22.92,CLOTHING,08/02/16,,Firefighter Trainees,Clothing
030216G,*HUNTER APPAREL SOLUTIONS LTD,066761,88,7.64,CLOTHING,08/02/16,,Operations Fire Stations,Clothing
030216G,*HUNTER APPAREL SOLUTIONS LTD,066761,89,19.08,CLOTHING,08/02/16,,Operations Fire Stations,Clothing
030216G,*HUNTER APPAREL SOLUTIONS LTD,066761,90,12.72,CLOTHING,08/02/16,,Operations Fire Stations,Clothing
030216G,*HUNTER APPAREL SOLUTIONS LTD,066761,91,15.28,CLOTHING,08/02/16,,Operations Fire Stations,Clothing
030216G,*HUNTER APPAREL SOLUTIONS LTD,066761,92,22.92,CLOTHING,08/02/16,,Operations Fire Stations,Clothing
030216G,*HUNTER APPAREL SOLUTIONS LTD,066761,93,7.64,CLOTHING,08/02/16,,Operations Fire Stations,Clothing
030216G,*HUNTER APPAREL SOLUTIONS LTD,066761,94,7.64,CLOTHING,08/02/16,,Operations Fire Stations,Clothing
030216G,*HUNTER APPAREL SOLUTIONS LTD,066761,95,19.08,CLOTHING,08/02/16,,Operations Fire Stations,Clothing
030216G,*HUNTER APPAREL SOLUTIONS LTD,066761,96,7.64,CLOTHING,08/02/16,,Operations Fire Stations,Clothing
030216G,*HUNTER APPAREL SOLUTIONS LTD,066761,97,19.08,CLOTHING,08/02/16,,Operations Fire Stations,Clothing
030216G,*HUNTER APPAREL SOLUTIONS LTD,066761,98,25.44,CLOTHING,08/02/16,,Firefighter Trainees,Clothing
030216G,*HUNTER APPAREL SOLUTIONS LTD,066761,99,22.92,CLOTHING,08/02/16,,Firefighter Trainees,Clothing
030216G,*HUNTER APPAREL SOLUTIONS LTD,066761,100,12.72,CLOTHING,08/02/16,,Operations Fire Stations,Clothing
030216G,*HUNTER APPAREL SOLUTIONS LTD,066761,101,15.28,CLOTHING,08/02/16,,Operations Fire Stations,Clothing
030216G,*HUNTER APPAREL SOLUTIONS LTD,066761,102,25.44,CLOTHING,08/02/16,,Firefighter Trainees,Clothing
030216G,*HUNTER APPAREL SOLUTIONS LTD,066761,103,22.92,CLOTHING,08/02/16,,Firefighter Trainees,Clothing
030216G,*HUNTER APPAREL SOLUTIONS LTD,066761,104,25.44,CLOTHING,08/02/16,,Operations Fire Stations,Clothing
030216G,*HUNTER APPAREL SOLUTIONS LTD,066761,105,7.64,CLOTHING,08/02/16,,Operations Fire Stations,Clothing
030216G,*HUNTER APPAREL SOLUTIONS LTD,066761,106,19.08,CLOTHING,08/02/16,,Operations Fire Stations,Clothing
030216G,*HUNTER APPAREL SOLUTIONS LTD,066761,107,7.64,CLOTHING,08/02/16,,Operations Fire Stations,Clothing
030216G,*HUNTER APPAREL SOLUTIONS LTD,066761,108,7.64,CLOTHING,08/02/16,,Operations Fire Stations,Clothing
030216G,*HUNTER APPAREL SOLUTIONS LTD,066761,109,19.08,CLOTHING,08/02/16,,Operations Fire Stations,Clothing
030216G,*HUNTER APPAREL SOLUTIONS LTD,066761,110,7.64,CLOTHING,08/02/16,,Operations Fire Stations,Clothing
030216G,*HUNTER APPAREL SOLUTIONS LTD,066761,111,7.64,CLOTHING,08/02/16,,Operations Fire Stations,Clothing
030216G,*HUNTER APPAREL SOLUTIONS LTD,066761,112,19.08,CLOTHING,08/02/16,,Operations Fire Stations,Clothing
030216G,*HUNTER APPAREL SOLUTIONS LTD,066761,113,7.64,CLOTHING,08/02/16,,Operations Fire Stations,Clothing
030216G,*HUNTER APPAREL SOLUTIONS LTD,066761,114,6.36,CLOTHING,08/02/16,,Operations Fire Stations,Clothing
030216G,*HUNTER APPAREL SOLUTIONS LTD,066761,115,7.64,CLOTHING,08/02/16,,Operations Fire Stations,Clothing
030216G,*HUNTER APPAREL SOLUTIONS LTD,066761,116,19.08,CLOTHING,08/02/16,,Operations Fire Stations,Clothing
030216G,*HUNTER APPAREL SOLUTIONS LTD,066761,117,6.90,CLOTHING,08/02/16,,Operations Fire Stations,Clothing
030216G,*HUNTER APPAREL SOLUTIONS LTD,066761,118,17.55,CLOTHING,08/02/16,,Operations Fire Stations,Clothing
030216G,*HUNTER APPAREL SOLUTIONS LTD,066761,119,7.64,CLOTHING,08/02/16,,Operations Fire Stations,Clothing
030216G,*HUNTER APPAREL SOLUTIONS LTD,066761,120,19.08,CLOTHING,08/02/16,,Operations Fire Stations,Clothing
030216G,*HUNTER APPAREL SOLUTIONS LTD,066761,121,19.08,CLOTHING,08/02/16,,Operations Fire Stations,Clothing
030216G,*HUNTER APPAREL SOLUTIONS LTD,066761,122,7.64,CLOTHING,08/02/16,,Operations Fire Stations,Clothing
030216G,*HUNTER APPAREL SOLUTIONS LTD,066761,123,7.64,CLOTHING,08/02/16,,Operations Fire Stations,Clothing
030216G,*HUNTER APPAREL SOLUTIONS LTD,066761,124,7.64,CLOTHING,08/02/16,,Operations Fire Stations,Clothing
030216G,*HUNTER APPAREL SOLUTIONS LTD,066761,125,19.08,CLOTHING,08/02/16,,Operations Fire Stations,Clothing
030216G,*HUNTER APPAREL SOLUTIONS LTD,066761,126,7.64,CLOTHING,08/02/16,,Operations Fire Stations,Clothing
030216G,*HUNTER APPAREL SOLUTIONS LTD,066761,127,19.08,CLOTHING,08/02/16,,Operations Fire Stations,Clothing
030216G,*HUNTER APPAREL SOLUTIONS LTD,066761,128,7.64,CLOTHING,08/02/16,,Operations Fire Stations,Clothing
030216G,*HUNTER APPAREL SOLUTIONS LTD,066761,129,19.08,CLOTHING,08/02/16,,Operations Fire Stations,Clothing
030216G,*HUNTER APPAREL SOLUTIONS LTD,066761,130,7.64,CLOTHING,08/02/16,,Operations Fire Stations,Clothing
030216G,*HUNTER APPAREL SOLUTIONS LTD,066761,131,7.64,CLOTHING,08/02/16,,Operations Fire Stations,Clothing
030216G,*HUNTER APPAREL SOLUTIONS LTD,066761,132,19.08,CLOTHING,08/02/16,,Operations Fire Stations,Clothing
030216G,*HUNTER APPAREL SOLUTIONS LTD,066761,133,7.64,CLOTHING,08/02/16,,Operations Fire Stations,Clothing
030216G,*HUNTER APPAREL SOLUTIONS LTD,066761,134,19.08,CLOTHING,08/02/16,,Operations Fire Stations,Clothing
030216G,*HUNTER APPAREL SOLUTIONS LTD,066761,135,7.64,CLOTHING,08/02/16,,Operations Fire Stations,Clothing
030216G,*HUNTER APPAREL SOLUTIONS LTD,066761,136,19.08,CLOTHING,08/02/16,,Operations Fire Stations,Clothing
030216G,*HUNTER APPAREL SOLUTIONS LTD,066761,137,7.64,CLOTHING,08/02/16,,Operations Fire Stations,Clothing
030216G,*HUNTER APPAREL SOLUTIONS LTD,066761,138,19.08,CLOTHING,08/02/16,,Operations Fire Stations,Clothing
030216G,*HUNTER APPAREL SOLUTIONS LTD,066761,139,19.08,CLOTHING,08/02/16,,Operations Fire Stations,Clothing
030216G,*HUNTER APPAREL SOLUTIONS LTD,066761,140,7.64,CLOTHING,08/02/16,,Operations Fire Stations,Clothing
030216G,*HUNTER APPAREL SOLUTIONS LTD,066761,141,6.36,CLOTHING,08/02/16,,Operations Fire Stations,Clothing
030216G,*HUNTER APPAREL SOLUTIONS LTD,066761,142,7.64,CLOTHING,08/02/16,,Operations Fire Stations,Clothing
030216G,*HUNTER APPAREL SOLUTIONS LTD,066761,143,19.08,CLOTHING,08/02/16,,Operations Fire Stations,Clothing
030216G,*HUNTER APPAREL SOLUTIONS LTD,066761,144,19.08,CLOTHING,08/02/16,,Operations Fire Stations,Clothing
030216G,*HUNTER APPAREL SOLUTIONS LTD,066761,145,7.64,CLOTHING,08/02/16,,Operations Fire Stations,Clothing
030216G,*HUNTER APPAREL SOLUTIONS LTD,066761,146,7.64,CLOTHING,08/02/16,,Operations Fire Stations,Clothing
030216G,*HUNTER APPAREL SOLUTIONS LTD,066761,147,19.08,CLOTHING,08/02/16,,Operations Fire Stations,Clothing
030216G,*HUNTER APPAREL SOLUTIONS LTD,066761,148,19.08,CLOTHING,08/02/16,,Operations Fire Stations,Clothing
030216G,*HUNTER APPAREL SOLUTIONS LTD,066761,149,7.64,CLOTHING,08/02/16,,Operations Fire Stations,Clothing
030216G,*HUNTER APPAREL SOLUTIONS LTD,066761,150,6.90,CLOTHING,08/02/16,,Operations Fire Stations,Clothing
030216G,*HUNTER APPAREL SOLUTIONS LTD,066761,151,11.70,CLOTHING,08/02/16,,Operations Fire Stations,Clothing
030216G,*HUNTER APPAREL SOLUTIONS LTD,066761,152,7.64,CLOTHING,08/02/16,,Operations Fire Stations,Clothing
030216G,*HUNTER APPAREL SOLUTIONS LTD,066761,153,19.08,CLOTHING,08/02/16,,Operations Fire Stations,Clothing
030216G,*HUNTER APPAREL SOLUTIONS LTD,066761,154,19.08,CLOTHING,08/02/16,,Operations Fire Stations,Clothing
030216G,*HUNTER APPAREL SOLUTIONS LTD,066761,155,7.64,CLOTHING,08/02/16,,Operations Fire Stations,Clothing
030216G,*HUNTER APPAREL SOLUTIONS LTD,066761,156,22.92,CLOTHING,08/02/16,,Operations Fire Stations,Clothing
030216G,*HUNTER APPAREL SOLUTIONS LTD,066761,157,25.44,CLOTHING,08/02/16,,Operations Fire Stations,Clothing
030216G,*HUNTER APPAREL SOLUTIONS LTD,066761,158,22.92,CLOTHING,08/02/16,,Operations Fire Stations,Clothing
030216G,*HUNTER APPAREL SOLUTIONS LTD,066761,159,7.64,CLOTHING,08/02/16,,Operations Fire Stations,Clothing
030216G,*HUNTER APPAREL SOLUTIONS LTD,066764,1,12.72,CLOTHING,08/02/16,534.33,Operations Fire Stations,Clothing
030216G,*HUNTER APPAREL SOLUTIONS LTD,066764,2,15.28,CLOTHING,08/02/16,,Operations Fire Stations,Clothing
030216G,*HUNTER APPAREL SOLUTIONS LTD,066764,3,19.08,CLOTHING,08/02/16,,Operations Fire Stations,Clothing
030216G,*HUNTER APPAREL SOLUTIONS LTD,066764,4,7.64,CLOTHING,08/02/16,,Operations Fire Stations,Clothing
030216G,*HUNTER APPAREL SOLUTIONS LTD,066764,5,19.08,CLOTHING,08/02/16,,Operations Fire Stations,Clothing
030216G,*HUNTER APPAREL SOLUTIONS LTD,066764,6,7.64,CLOTHING,08/02/16,,Operations Fire Stations,Clothing
030216G,*HUNTER APPAREL SOLUTIONS LTD,066764,7,7.64,CLOTHING,08/02/16,,Operations Fire Stations,Clothing
030216G,*HUNTER APPAREL SOLUTIONS LTD,066764,8,19.08,CLOTHING,08/02/16,,Operations Fire Stations,Clothing
030216G,*HUNTER APPAREL SOLUTIONS LTD,066764,9,22.92,CLOTHING,08/02/16,,Operations Fire Stations,Clothing
030216G,*HUNTER APPAREL SOLUTIONS LTD,066764,10,19.08,CLOTHING,08/02/16,,Operations Fire Stations,Clothing
030216G,*HUNTER APPAREL SOLUTIONS LTD,066764,11,7.64,CLOTHING,08/02/16,,Operations Fire Stations,Clothing
030216G,*HUNTER APPAREL SOLUTIONS LTD,066764,12,7.64,CLOTHING,08/02/16,,Operations Fire Stations,Clothing
030216G,*HUNTER APPAREL SOLUTIONS LTD,066764,13,19.08,CLOTHING,08/02/16,,Operations Fire Stations,Clothing
030216G,*HUNTER APPAREL SOLUTIONS LTD,066764,14,19.08,CLOTHING,08/02/16,,Operations Fire Stations,Clothing
030216G,*HUNTER APPAREL SOLUTIONS LTD,066764,15,25.44,CLOTHING,08/02/16,,Operations Fire Stations,Clothing
030216G,*HUNTER APPAREL SOLUTIONS LTD,066764,16,7.64,CLOTHING,08/02/16,,Operations Fire Stations,Clothing
030216G,*HUNTER APPAREL SOLUTIONS LTD,066764,17,7.64,CLOTHING,08/02/16,,Operations Fire Stations,Clothing
030216G,*HUNTER APPAREL SOLUTIONS LTD,066764,18,7.64,CLOTHING,08/02/16,,Operations Fire Stations,Clothing
030216G,*HUNTER APPAREL SOLUTIONS LTD,066764,19,13.80,CLOTHING,08/02/16,,Operations Non Fire Stations,Clothing
030216G,*HUNTER APPAREL SOLUTIONS LTD,066764,20,13.80,CLOTHING,08/02/16,,Operations Non Fire Stations,Clothing
030216G,*HUNTER APPAREL SOLUTIONS LTD,066764,21,17.55,CLOTHING,08/02/16,,Operations Fire Stations,Clothing
030216G,*HUNTER APPAREL SOLUTIONS LTD,066764,22,6.90,CLOTHING,08/02/16,,Operations Fire Stations,Clothing
030216G,*HUNTER APPAREL SOLUTIONS LTD,066764,23,15.28,CLOTHING,08/02/16,,Operations Fire Stations,Clothing
030216G,*HUNTER APPAREL SOLUTIONS LTD,066764,24,15.28,CLOTHING,08/02/16,,Operations Fire Stations,Clothing
030216G,*HUNTER APPAREL SOLUTIONS LTD,066764,25,7.64,CLOTHING,08/02/16,,Operations Fire Stations,Clothing
030216G,*HUNTER APPAREL SOLUTIONS LTD,066764,26,25.44,CLOTHING,08/02/16,,Operations Fire Stations,Clothing
030216G,*HUNTER APPAREL SOLUTIONS LTD,066764,27,7.64,CLOTHING,08/02/16,,Operations Fire Stations,Clothing
030216G,*HUNTER APPAREL SOLUTIONS LTD,066764,28,6.36,CLOTHING,08/02/16,,Operations Fire Stations,Clothing
030216G,*HUNTER APPAREL SOLUTIONS LTD,066764,29,7.64,CLOTHING,08/02/16,,Operations Fire Stations,Clothing
030216G,*HUNTER APPAREL SOLUTIONS LTD,066764,30,19.08,CLOTHING,08/02/16,,Operations Fire Stations,Clothing
030216G,*HUNTER APPAREL SOLUTIONS LTD,066764,31,22.92,CLOTHING,08/02/16,,Operations Fire Stations,Clothing
030216G,*HUNTER APPAREL SOLUTIONS LTD,066764,32,19.08,CLOTHING,08/02/16,,Operations Fire Stations,Clothing
030216G,*HUNTER APPAREL SOLUTIONS LTD,066764,33,19.08,CLOTHING,08/02/16,,Operations Fire Stations,Clothing
030216G,*HUNTER APPAREL SOLUTIONS LTD,066764,34,19.08,CLOTHING,08/02/16,,Operations Fire Stations,Clothing
030216G,*HUNTER APPAREL SOLUTIONS LTD,066764,35,19.08,CLOTHING,08/02/16,,Operations Fire Stations,Clothing
030216G,*HUNTER APPAREL SOLUTIONS LTD,066764,36,19.08,CLOTHING,08/02/16,,Operations Fire Stations,Clothing
030216G,*HUNTER APPAREL SOLUTIONS LTD,066764,37,7.64,CLOTHING,08/02/16,,Operations Fire Stations,Clothing
030216G,*HUNTER APPAREL SOLUTIONS LTD,066786,1,25.44,CLOTHING,08/02/16,571.80,Firefighter Trainees,Clothing
030216G,*HUNTER APPAREL SOLUTIONS LTD,066786,2,22.92,CLOTHING,08/02/16,,Firefighter Trainees,Clothing
030216G,*HUNTER APPAREL SOLUTIONS LTD,066786,3,25.44,CLOTHING,08/02/16,,Firefighter Trainees,Clothing
030216G,*HUNTER APPAREL SOLUTIONS LTD,066786,4,22.92,CLOTHING,08/02/16,,Firefighter Trainees,Clothing
030216G,*HUNTER APPAREL SOLUTIONS LTD,066786,5,25.44,CLOTHING,08/02/16,,Firefighter Trainees,Clothing
030216G,*HUNTER APPAREL SOLUTIONS LTD,066786,6,22.92,CLOTHING,08/02/16,,Firefighter Trainees,Clothing
030216G,*HUNTER APPAREL SOLUTIONS LTD,066786,7,25.44,CLOTHING,08/02/16,,Firefighter Trainees,Clothing
030216G,*HUNTER APPAREL SOLUTIONS LTD,066786,8,22.92,CLOTHING,08/02/16,,Firefighter Trainees,Clothing
030216G,*HUNTER APPAREL SOLUTIONS LTD,066786,9,23.40,CLOTHING,08/02/16,,Firefighter Trainees,Clothing
030216G,*HUNTER APPAREL SOLUTIONS LTD,066786,10,20.70,CLOTHING,08/02/16,,Firefighter Trainees,Clothing
030216G,*HUNTER APPAREL SOLUTIONS LTD,066786,11,25.44,CLOTHING,08/02/16,,Firefighter Trainees,Clothing
030216G,*HUNTER APPAREL SOLUTIONS LTD,066786,12,22.92,CLOTHING,08/02/16,,Firefighter Trainees,Clothing
030216G,*HUNTER APPAREL SOLUTIONS LTD,066786,13,25.44,CLOTHING,08/02/16,,Firefighter Trainees,Clothing
030216G,*HUNTER APPAREL SOLUTIONS LTD,066786,14,22.92,CLOTHING,08/02/16,,Firefighter Trainees,Clothing
030216G,*HUNTER APPAREL SOLUTIONS LTD,066786,15,25.44,CLOTHING,08/02/16,,Firefighter Trainees,Clothing
030216G,*HUNTER APPAREL SOLUTIONS LTD,066786,16,22.92,CLOTHING,08/02/16,,Firefighter Trainees,Clothing
030216G,*HUNTER APPAREL SOLUTIONS LTD,066786,17,25.44,CLOTHING,08/02/16,,Firefighter Trainees,Clothing
030216G,*HUNTER APPAREL SOLUTIONS LTD,066786,18,22.92,CLOTHING,08/02/16,,Firefighter Trainees,Clothing
030216G,*HUNTER APPAREL SOLUTIONS LTD,066786,19,23.40,CLOTHING,08/02/16,,Firefighter Trainees,Clothing
030216G,*HUNTER APPAREL SOLUTIONS LTD,066786,20,20.70,CLOTHING,08/02/16,,Firefighter Trainees,Clothing
030216G,*HUNTER APPAREL SOLUTIONS LTD,066786,21,25.44,CLOTHING,08/02/16,,Firefighter Trainees,Clothing
030216G,*HUNTER APPAREL SOLUTIONS LTD,066786,22,22.92,CLOTHING,08/02/16,,Firefighter Trainees,Clothing
030216G,*HUNTER APPAREL SOLUTIONS LTD,066786,23,25.44,CLOTHING,08/02/16,,Firefighter Trainees,Clothing
030216G,*HUNTER APPAREL SOLUTIONS LTD,066786,24,22.92,CLOTHING,08/02/16,,Firefighter Trainees,Clothing
030216G,*HUNTER APPAREL SOLUTIONS LTD,066795,1,220.29,UNIFORMS - POMS,08/02/16,556.89,Procurement,Clothing
030216G,*HUNTER APPAREL SOLUTIONS LTD,066795,2,336.60,UNIFORMS - POMS,08/02/16,,Procurement,Clothing
030216G,*HUNTER APPAREL SOLUTIONS LTD,066811,1,213.18,UNIFORMS - POMS,08/02/16,774.18,Procurement,Clothing
030216G,*HUNTER APPAREL SOLUTIONS LTD,066811,2,112.20,UNIFORMS - POMS,08/02/16,,Procurement,Clothing
030216G,*HUNTER APPAREL SOLUTIONS LTD,066811,3,336.60,UNIFORMS - POMS,08/02/16,,Procurement,Clothing
030216G,*HUNTER APPAREL SOLUTIONS LTD,066811,4,112.20,UNIFORMS - POMS,08/02/16,,Procurement,Clothing
270116C,HAYS SPECIALIST RECRUITMENT,1006177039,1,801.85,FRS STAFF AGENCY,08/02/16,801.85,Procurement,Human Resources
270116C,HAYS SPECIALIST RECRUITMENT,1006177236,1,801.85,FRS STAFF AGENCY,08/02/16,801.85,Procurement,Human Resources
020216F,CARILLION COMMUNICATIONS LTD==,1013504,1,506.00,TACTICAL DAY TO DAY,08/02/16,506.00,Technical And Service Support,"Works - Construction, R&M"
020216F,PRENAX LIMITED,10667760,1,736.24,BOOKS & JOURNALS,08/02/16,736.24,Information Management,Financial Services
800075083,*JAMES HUNTER (OUTFITTERS) LTD,108490,1,368.80,CLOTHING,08/02/16,368.80,Corporate Management Team,Clothing
800075084,*JAMES HUNTER (OUTFITTERS) LTD,108491,1,354.69,CLOTHING,08/02/16,354.69,Corporate Management Team,Clothing
800075089,*JAMES HUNTER (OUTFITTERS) LTD,108496,1,362.23,CLOTHING,08/02/16,362.23,Operations Fire Stations,Clothing
800075226,*JAMES HUNTER (OUTFITTERS) LTD,108529,1,293.13,CLOTHING,08/02/16,293.13,Operations Fire Stations,Clothing
280116G,INFOR (UNITED KINGDOM) LIMITED,11601253-GB04G,1,"3,840.00",MAINTENANCE & SUPPORT,08/02/16,"3,840.00",Information and Communication Technology,ICT
020216F,GB3 LIMITED,12040,1,"22,500.00",MAINTENANCE & SUPPORT,08/02/16,"22,500.00",London Coordination Centre,ICT
020216F,VISTA LANDSCAPE MANAGEMENT LTD,121568,1,95.83,GROUNDS MAINTENANCE,08/02/16,"2,232.46",Technical And Service Support,"Works - Construction, R&M"
020216F,VISTA LANDSCAPE MANAGEMENT LTD,121568,2,23.00,GROUNDS MAINTENANCE,08/02/16,,Technical And Service Support,"Works - Construction, R&M"
020216F,VISTA LANDSCAPE MANAGEMENT LTD,121568,3,22.12,GROUNDS MAINTENANCE,08/02/16,,Technical And Service Support,"Works - Construction, R&M"
020216F,VISTA LANDSCAPE MANAGEMENT LTD,121568,4,24.94,GROUNDS MAINTENANCE,08/02/16,,Technical And Service Support,"Works - Construction, R&M"
020216F,VISTA LANDSCAPE MANAGEMENT LTD,121568,5,75.00,GROUNDS MAINTENANCE,08/02/16,,Technical And Service Support,"Works - Construction, R&M"
020216F,VISTA LANDSCAPE MANAGEMENT LTD,121568,6,17.25,GROUNDS MAINTENANCE,08/02/16,,Technical And Service Support,"Works - Construction, R&M"
020216F,VISTA LANDSCAPE MANAGEMENT LTD,121568,7,25.77,GROUNDS MAINTENANCE,08/02/16,,Technical And Service Support,"Works - Construction, R&M"
020216F,VISTA LANDSCAPE MANAGEMENT LTD,121568,8,17.25,GROUNDS MAINTENANCE,08/02/16,,Technical And Service Support,"Works - Construction, R&M"
020216F,VISTA LANDSCAPE MANAGEMENT LTD,121568,9,46.00,GROUNDS MAINTENANCE,08/02/16,,Technical And Service Support,"Works - Construction, R&M"
020216F,VISTA LANDSCAPE MANAGEMENT LTD,121568,10,11.50,GROUNDS MAINTENANCE,08/02/16,,Technical And Service Support,"Works - Construction, R&M"
020216F,VISTA LANDSCAPE MANAGEMENT LTD,121568,11,109.25,GROUNDS MAINTENANCE,08/02/16,,Technical And Service Support,"Works - Construction, R&M"
020216F,VISTA LANDSCAPE MANAGEMENT LTD,121568,12,11.50,GROUNDS MAINTENANCE,08/02/16,,Technical And Service Support,"Works - Construction, R&M"
020216F,VISTA LANDSCAPE MANAGEMENT LTD,121568,13,82.52,GROUNDS MAINTENANCE,08/02/16,,Technical And Service Support,"Works - Construction, R&M"
020216F,VISTA LANDSCAPE MANAGEMENT LTD,121568,14,22.05,GROUNDS MAINTENANCE,08/02/16,,Technical And Service Support,"Works - Construction, R&M"
020216F,VISTA LANDSCAPE MANAGEMENT LTD,121568,15,17.25,GROUNDS MAINTENANCE,08/02/16,,Technical And Service Support,"Works - Construction, R&M"
020216F,VISTA LANDSCAPE MANAGEMENT LTD,121568,16,127.05,GROUNDS MAINTENANCE,08/02/16,,Technical And Service Support,"Works - Construction, R&M"
020216F,VISTA LANDSCAPE MANAGEMENT LTD,121568,17,11.50,GROUNDS MAINTENANCE,08/02/16,,Technical And Service Support,"Works - Construction, R&M"
020216F,VISTA LANDSCAPE MANAGEMENT LTD,121568,18,17.25,GROUNDS MAINTENANCE,08/02/16,,Technical And Service Support,"Works - Construction, R&M"
020216F,VISTA LANDSCAPE MANAGEMENT LTD,121568,19,11.50,GROUNDS MAINTENANCE,08/02/16,,Technical And Service Support,"Works - Construction, R&M"
020216F,VISTA LANDSCAPE MANAGEMENT LTD,121568,20,17.25,GROUNDS MAINTENANCE,08/02/16,,Technical And Service Support,"Works - Construction, R&M"
020216F,VISTA LANDSCAPE MANAGEMENT LTD,121568,21,22.36,GROUNDS MAINTENANCE,08/02/16,,Technical And Service Support,"Works - Construction, R&M"
020216F,VISTA LANDSCAPE MANAGEMENT LTD,121568,22,11.50,GROUNDS MAINTENANCE,08/02/16,,Technical And Service Support,"Works - Construction, R&M"
020216F,VISTA LANDSCAPE MANAGEMENT LTD,121568,23,11.50,GROUNDS MAINTENANCE,08/02/16,,Technical And Service Support,"Works - Construction, R&M"
020216F,VISTA LANDSCAPE MANAGEMENT LTD,121568,24,79.85,GROUNDS MAINTENANCE,08/02/16,,Technical And Service Support,"Works - Construction, R&M"
020216F,VISTA LANDSCAPE MANAGEMENT LTD,121568,25,83.96,GROUNDS MAINTENANCE,08/02/16,,Technical And Service Support,"Works - Construction, R&M"
020216F,VISTA LANDSCAPE MANAGEMENT LTD,121568,26,17.25,GROUNDS MAINTENANCE,08/02/16,,Technical And Service Support,"Works - Construction, R&M"
020216F,VISTA LANDSCAPE MANAGEMENT LTD,121568,27,256.21,GROUNDS MAINTENANCE,08/02/16,,Technical And Service Support,"Works - Construction, R&M"
020216F,VISTA LANDSCAPE MANAGEMENT LTD,121568,28,17.26,GROUNDS MAINTENANCE,08/02/16,,Technical And Service Support,"Works - Construction, R&M"
020216F,VISTA LANDSCAPE MANAGEMENT LTD,121568,29,63.14,GROUNDS MAINTENANCE,08/02/16,,Technical And Service Support,"Works - Construction, R&M"
020216F,VISTA LANDSCAPE MANAGEMENT LTD,121568,30,11.50,GROUNDS MAINTENANCE,08/02/16,,Technical And Service Support,"Works - Construction, R&M"
020216F,VISTA LANDSCAPE MANAGEMENT LTD,121568,31,11.50,GROUNDS MAINTENANCE,08/02/16,,Technical And Service Support,"Works - Construction, R&M"
020216F,VISTA LANDSCAPE MANAGEMENT LTD,121568,32,16.63,GROUNDS MAINTENANCE,08/02/16,,Technical And Service Support,"Works - Construction, R&M"
020216F,VISTA LANDSCAPE MANAGEMENT LTD,121568,33,73.18,GROUNDS MAINTENANCE,08/02/16,,Technical And Service Support,"Works - Construction, R&M"
020216F,VISTA LANDSCAPE MANAGEMENT LTD,121568,34,118.23,GROUNDS MAINTENANCE,08/02/16,,Technical And Service Support,"Works - Construction, R&M"
020216F,VISTA LANDSCAPE MANAGEMENT LTD,121568,35,555.00,GROUNDS MAINTENANCE,08/02/16,,Technical And Service Support,"Works - Construction, R&M"
020216F,VISTA LANDSCAPE MANAGEMENT LTD,121568,36,20.83,GROUNDS MAINTENANCE,08/02/16,,Technical And Service Support,"Works - Construction, R&M"
020216F,VISTA LANDSCAPE MANAGEMENT LTD,121568,37,64.28,GROUNDS MAINTENANCE,08/02/16,,Technical And Service Support,"Works - Construction, R&M"
020216F,VISTA LANDSCAPE MANAGEMENT LTD,121568,38,12.50,GROUNDS MAINTENANCE,08/02/16,,Technical And Service Support,"Works - Construction, R&M"
200116G,4C EUROPE UK LTD,1344,1,"15,400.00",STATIONERY CONSUMABLES,08/02/16,"15,400.00",Exercise Unified Response,ICT
200116G,4C EUROPE UK LTD,1345,1,"1,425.00",STATIONERY CONSUMABLES,08/02/16,"1,425.00",Exercise Unified Response,ICT
020216F,DIAMOND BUILD PLC=============,14174,1,"1,113.23",DEVELOPMENT  EXPENSES-CONTRACT,08/02/16,"1,113.23",Technical and Service Support,"Works - Construction, R&M"
020216F,KIER BUILDING SERV ENGINEERS==,15060624,1,"33,402.62",TACTICAL DAY TO DAY,08/02/16,"70,134.01",Technical And Service Support,"Works - Construction, R&M"
020216F,KIER BUILDING SERV ENGINEERS==,15060624,2,567.26,TACTICAL DAY TO DAY,08/02/16,,Technical And Service Support,"Works - Construction, R&M"
020216F,KIER BUILDING SERV ENGINEERS==,15060624,3,"1,796.69",TACTICAL DAY TO DAY,08/02/16,,Technical And Service Support,"Works - Construction, R&M"
020216F,KIER BUILDING SERV ENGINEERS==,15060624,4,"2,268.24",TACTICAL DAY TO DAY,08/02/16,,Technical And Service Support,"Works - Construction, R&M"
020216F,KIER BUILDING SERV ENGINEERS==,15060624,5,"24,739.02",STRATEGIC (CYCLICAL),08/02/16,,Technical And Service Support,"Works - Construction, R&M"
020216F,KIER BUILDING SERV ENGINEERS==,15060624,6,849.13,STRATEGIC (CYCLICAL),08/02/16,,Technical And Service Support,"Works - Construction, R&M"
020216F,KIER BUILDING SERV ENGINEERS==,15060624,7,"5,941.19",STRATEGIC (CYCLICAL),08/02/16,,Technical And Service Support,"Works - Construction, R&M"
020216F,KIER BUILDING SERV ENGINEERS==,15060624,8,569.86,STRATEGIC (CYCLICAL),08/02/16,,Technical And Service Support,"Works - Construction, R&M"
020216F,GP CONTRACTS==================,15418,1,"1,600.00",STRATEGIC (NON CYCLICAL),08/02/16,"1,600.00",Technical and Service Support,Furniture
020216F,RESPIREX======================,154455,1,"6,750.00",GENERAL,08/02/16,"6,750.00",Gas Tight Suits,Clothing
010216G,BUREAU VERITAS HS&E LTD=======,16000633,1,"97,510.95",SCIENTIFIC SERVICES,08/02/16,"97,510.95",Procurement,Environmental Services
020216F,HARRIS INSTALLATION SERVICES,19018,1,"3,158.20",REMOVALS,08/02/16,"3,158.20",Technical And Service Support,Facilities & Management S
020216F,CHAIN GANG,21184,1,365.53,POSTAL SERVICES,08/02/16,365.53,Information Management,Mail Services
020216F,GRADIENT CONSULTANTS LLP======,2508,1,105.00,ASBESTOS,08/02/16,950.00,Technical and Service Support,"Works - Construction, R&M"
020216F,GRADIENT CONSULTANTS LLP======,2508,2,105.00,ASBESTOS,08/02/16,,Technical and Service Support,"Works - Construction, R&M"
020216F,GRADIENT CONSULTANTS LLP======,2508,3,105.00,ASBESTOS,08/02/16,,Technical and Service Support,"Works - Construction, R&M"
020216F,GRADIENT CONSULTANTS LLP======,2508,4,105.00,ASBESTOS,08/02/16,,Technical and Service Support,"Works - Construction, R&M"
020216F,GRADIENT CONSULTANTS LLP======,2508,5,105.00,ASBESTOS,08/02/16,,Technical and Service Support,"Works - Construction, R&M"
020216F,GRADIENT CONSULTANTS LLP======,2508,6,105.00,ASBESTOS,08/02/16,,Technical and Service Support,"Works - Construction, R&M"
020216F,GRADIENT CONSULTANTS LLP======,2508,7,105.00,ASBESTOS,08/02/16,,Technical and Service Support,"Works - Construction, R&M"
020216F,GRADIENT CONSULTANTS LLP======,2508,8,55.00,ASBESTOS,08/02/16,,Technical and Service Support,"Works - Construction, R&M"
020216F,GRADIENT CONSULTANTS LLP======,2508,9,105.00,ASBESTOS,08/02/16,,Technical and Service Support,"Works - Construction, R&M"
020216F,GRADIENT CONSULTANTS LLP======,2508,10,55.00,ASBESTOS,08/02/16,,Technical and Service Support,"Works - Construction, R&M"
020216F,GRADIENT CONSULTANTS LLP======,2516,1,350.00,ASBESTOS,08/02/16,"2,910.00",Technical and Service Support,"Works - Construction, R&M"
020216F,GRADIENT CONSULTANTS LLP======,2516,2,350.00,ASBESTOS,08/02/16,,Technical and Service Support,"Works - Construction, R&M"
020216F,GRADIENT CONSULTANTS LLP======,2516,3,350.00,ASBESTOS,08/02/16,,Technical and Service Support,"Works - Construction, R&M"
020216F,GRADIENT CONSULTANTS LLP======,2516,4,55.00,ASBESTOS,08/02/16,,Technical and Service Support,"Works - Construction, R&M"
020216F,GRADIENT CONSULTANTS LLP======,2516,5,350.00,ASBESTOS,08/02/16,,Technical And Service Support,"Works - Construction, R&M"
020216F,GRADIENT CONSULTANTS LLP======,2516,6,350.00,ASBESTOS,08/02/16,,Technical and Service Support,"Works - Construction, R&M"
020216F,GRADIENT CONSULTANTS LLP======,2516,7,350.00,ASBESTOS,08/02/16,,Technical and Service Support,"Works - Construction, R&M"
020216F,GRADIENT CONSULTANTS LLP======,2516,8,350.00,ASBESTOS,08/02/16,,Technical and Service Support,"Works - Construction, R&M"
020216F,GRADIENT CONSULTANTS LLP======,2516,9,55.00,ASBESTOS,08/02/16,,Technical and Service Support,"Works - Construction, R&M"
020216F,GRADIENT CONSULTANTS LLP======,2516,10,350.00,ASBESTOS,08/02/16,,Technical and Service Support,"Works - Construction, R&M"
210116G,SELECT SERVICE TELECOMMUNICATI,27555,1,50.00,TELECOMMUNICATIONS,08/02/16,311.00,Information and Communication Technology,Utilities
210116G,SELECT SERVICE TELECOMMUNICATI,27555,2,225.00,TELECOMMUNICATIONS,08/02/16,,Information and Communication Technology,Utilities
210116G,SELECT SERVICE TELECOMMUNICATI,27555,3,25.00,TELECOMMUNICATIONS,08/02/16,,Information and Communication Technology,Utilities
210116G,SELECT SERVICE TELECOMMUNICATI,27555,4,11.00,TELECOMMUNICATIONS,08/02/16,,Information and Communication Technology,Utilities
020216F,DRAEGER SAFETY UK LIMITED=====,2910040204,1,"5,988.00",PROTECTIVE EQUIPT - PARTS,08/02/16,"8,173.92",Technical and Service Support,Fire & Rescue
020216F,DRAEGER SAFETY UK LIMITED=====,2910040204,2,"1,878.72",PROTECTIVE EQUIPT - PARTS,08/02/16,,Technical and Service Support,Fire & Rescue
020216F,DRAEGER SAFETY UK LIMITED=====,2910040204,3,307.20,PROTECTIVE EQUIPT - PARTS,08/02/16,,Technical and Service Support,Fire & Rescue
020216F,DRAEGER SAFETY UK LIMITED=====,2910040587,1,693.50,PROTECTIVE EQUIPT - PARTS,08/02/16,693.50,Technical and Service Support,Fire & Rescue
260116G,REDTRONIC LTD=================,30666,1,200.00,LEASE CAR CHARGES,08/02/16,295.00,Procurement,Fire & Rescue
260116G,REDTRONIC LTD=================,30666,2,95.00,LEASE CAR CHARGES,08/02/16,,Procurement,Fire & Rescue
020216F,B NOKES CONTRACTS LTD,3114,1,"3,594.50",STRATEGIC (NON CYCLICAL),08/02/16,"3,594.50",Technical and Service Support,"Works - Construction, R&M"
020216F,B NOKES CONTRACTS LTD,3115,1,"6,225.00",STRATEGIC (NON CYCLICAL),08/02/16,"6,225.00",Technical and Service Support,"Works - Construction, R&M"
020216F,B NOKES CONTRACTS LTD,3116,1,"5,454.75",STRATEGIC (NON CYCLICAL),08/02/16,"5,454.75",Technical and Service Support,"Works - Construction, R&M"
800075190,BANNER BUSINESS SUPPLIES LTD,31168570,1,127.20,STATIONERY CONSUMABLES,08/02/16,362.90,Technical And Service Support,Stationery
800075190,BANNER BUSINESS SUPPLIES LTD,31168570,2,150.80,STATIONERY CONSUMABLES,08/02/16,,Technical And Service Support,Stationery
800075190,BANNER BUSINESS SUPPLIES LTD,31168570,3,52.00,STATIONERY CONSUMABLES,08/02/16,,Technical And Service Support,Stationery
800075190,BANNER BUSINESS SUPPLIES LTD,31168570,4,20.80,STATIONERY CONSUMABLES,08/02/16,,Technical And Service Support,Stationery
800075190,BANNER BUSINESS SUPPLIES LTD,31168570,5,12.10,REFRESHMENTS,08/02/16,,Technical And Service Support,Stationery
020216F,B NOKES CONTRACTS LTD,3117,1,"3,418.75",STRATEGIC (NON CYCLICAL),08/02/16,"3,418.75",Technical and Service Support,"Works - Construction, R&M"
020216F,B NOKES CONTRACTS LTD,3118,1,840.00,REFUSE COLLECTION,08/02/16,840.00,Technical And Service Support,"Works - Construction, R&M"
020216F,B NOKES CONTRACTS LTD,3119,1,420.00,REFUSE COLLECTION,08/02/16,420.00,Technical And Service Support,"Works - Construction, R&M"
020216F,B NOKES CONTRACTS LTD,3120,1,147.66,STRATEGIC (NON CYCLICAL),08/02/16,"4,430.00",Technical and Service Support,"Works - Construction, R&M"
020216F,B NOKES CONTRACTS LTD,3120,2,147.66,STRATEGIC (NON CYCLICAL),08/02/16,,Technical and Service Support,"Works - Construction, R&M"
020216F,B NOKES CONTRACTS LTD,3120,3,147.66,STRATEGIC (NON CYCLICAL),08/02/16,,Technical and Service Support,"Works - Construction, R&M"
020216F,B NOKES CONTRACTS LTD,3120,4,147.66,STRATEGIC (NON CYCLICAL),08/02/16,,Technical and Service Support,"Works - Construction, R&M"
020216F,B NOKES CONTRACTS LTD,3120,5,147.66,STRATEGIC (NON CYCLICAL),08/02/16,,Technical and Service Support,"Works - Construction, R&M"
020216F,B NOKES CONTRACTS LTD,3120,6,147.66,STRATEGIC (NON CYCLICAL),08/02/16,,Technical and Service Support,"Works - Construction, R&M"
020216F,B NOKES CONTRACTS LTD,3120,7,147.66,STRATEGIC (NON CYCLICAL),08/02/16,,Technical and Service Support,"Works - Construction, R&M"
020216F,B NOKES CONTRACTS LTD,3120,8,147.66,STRATEGIC (NON CYCLICAL),08/02/16,,Technical and Service Support,"Works - Construction, R&M"
020216F,B NOKES CONTRACTS LTD,3120,9,147.66,STRATEGIC (NON CYCLICAL),08/02/16,,Technical and Service Support,"Works - Construction, R&M"
020216F,B NOKES CONTRACTS LTD,3120,10,147.66,STRATEGIC (NON CYCLICAL),08/02/16,,Technical and Service Support,"Works - Construction, R&M"
020216F,B NOKES CONTRACTS LTD,3120,11,147.66,STRATEGIC (NON CYCLICAL),08/02/16,,Technical and Service Support,"Works - Construction, R&M"
020216F,B NOKES CONTRACTS LTD,3120,12,147.66,STRATEGIC (NON CYCLICAL),08/02/16,,Technical and Service Support,"Works - Construction, R&M"
020216F,B NOKES CONTRACTS LTD,3120,13,147.66,STRATEGIC (NON CYCLICAL),08/02/16,,Technical and Service Support,"Works - Construction, R&M"
020216F,B NOKES CONTRACTS LTD,3120,14,147.66,STRATEGIC (NON CYCLICAL),08/02/16,,Technical and Service Support,"Works - Construction, R&M"
020216F,B NOKES CONTRACTS LTD,3120,15,147.66,STRATEGIC (NON CYCLICAL),08/02/16,,Technical and Service Support,"Works - Construction, R&M"
020216F,B NOKES CONTRACTS LTD,3120,16,147.66,STRATEGIC (NON CYCLICAL),08/02/16,,Technical and Service Support,"Works - Construction, R&M"
020216F,B NOKES CONTRACTS LTD,3120,17,147.66,STRATEGIC (NON CYCLICAL),08/02/16,,Technical and Service Support,"Works - Construction, R&M"
020216F,B NOKES CONTRACTS LTD,3120,18,147.66,STRATEGIC (NON CYCLICAL),08/02/16,,Technical and Service Support,"Works - Construction, R&M"
020216F,B NOKES CONTRACTS LTD,3120,19,147.66,STRATEGIC (NON CYCLICAL),08/02/16,,Technical and Service Support,"Works - Construction, R&M"
020216F,B NOKES CONTRACTS LTD,3120,20,147.66,STRATEGIC (NON CYCLICAL),08/02/16,,Technical and Service Support,"Works - Construction, R&M"
020216F,B NOKES CONTRACTS LTD,3120,21,147.66,STRATEGIC (NON CYCLICAL),08/02/16,,Technical and Service Support,"Works - Construction, R&M"
020216F,B NOKES CONTRACTS LTD,3120,22,147.66,STRATEGIC (NON CYCLICAL),08/02/16,,Technical and Service Support,"Works - Construction, R&M"
020216F,B NOKES CONTRACTS LTD,3120,23,147.66,STRATEGIC (NON CYCLICAL),08/02/16,,Technical and Service Support,"Works - Construction, R&M"
020216F,B NOKES CONTRACTS LTD,3120,24,147.66,STRATEGIC (NON CYCLICAL),08/02/16,,Technical and Service Support,"Works - Construction, R&M"
020216F,B NOKES CONTRACTS LTD,3120,25,147.66,STRATEGIC (NON CYCLICAL),08/02/16,,Technical and Service Support,"Works - Construction, R&M"
020216F,B NOKES CONTRACTS LTD,3120,26,147.66,STRATEGIC (NON CYCLICAL),08/02/16,,Technical and Service Support,"Works - Construction, R&M"
020216F,B NOKES CONTRACTS LTD,3120,27,147.66,STRATEGIC (NON CYCLICAL),08/02/16,,Technical and Service Support,"Works - Construction, R&M"
020216F,B NOKES CONTRACTS LTD,3120,28,147.66,STRATEGIC (NON CYCLICAL),08/02/16,,Technical and Service Support,"Works - Construction, R&M"
020216F,B NOKES CONTRACTS LTD,3120,29,147.66,STRATEGIC (NON CYCLICAL),08/02/16,,Technical and Service Support,"Works - Construction, R&M"
020216F,B NOKES CONTRACTS LTD,3120,30,147.86,STRATEGIC (NON CYCLICAL),08/02/16,,Technical and Service Support,"Works - Construction, R&M"
020216F,B NOKES CONTRACTS LTD,3121,1,390.00,STRATEGIC (NON CYCLICAL),08/02/16,"9,750.00",Technical and Service Support,"Works - Construction, R&M"
020216F,B NOKES CONTRACTS LTD,3121,2,390.00,STRATEGIC (NON CYCLICAL),08/02/16,,Technical and Service Support,"Works - Construction, R&M"
020216F,B NOKES CONTRACTS LTD,3121,3,390.00,STRATEGIC (NON CYCLICAL),08/02/16,,Technical and Service Support,"Works - Construction, R&M"
020216F,B NOKES CONTRACTS LTD,3121,4,390.00,STRATEGIC (NON CYCLICAL),08/02/16,,Technical and Service Support,"Works - Construction, R&M"
020216F,B NOKES CONTRACTS LTD,3121,5,390.00,STRATEGIC (NON CYCLICAL),08/02/16,,Technical and Service Support,"Works - Construction, R&M"
020216F,B NOKES CONTRACTS LTD,3121,6,390.00,STRATEGIC (NON CYCLICAL),08/02/16,,Technical and Service Support,"Works - Construction, R&M"
020216F,B NOKES CONTRACTS LTD,3121,7,390.00,STRATEGIC (NON CYCLICAL),08/02/16,,Technical and Service Support,"Works - Construction, R&M"
020216F,B NOKES CONTRACTS LTD,3121,8,390.00,STRATEGIC (NON CYCLICAL),08/02/16,,Technical and Service Support,"Works - Construction, R&M"
020216F,B NOKES CONTRACTS LTD,3121,9,390.00,STRATEGIC (NON CYCLICAL),08/02/16,,Technical and Service Support,"Works - Construction, R&M"
020216F,B NOKES CONTRACTS LTD,3121,10,390.00,STRATEGIC (NON CYCLICAL),08/02/16,,Technical and Service Support,"Works - Construction, R&M"
020216F,B NOKES CONTRACTS LTD,3121,11,390.00,STRATEGIC (NON CYCLICAL),08/02/16,,Technical and Service Support,"Works - Construction, R&M"
020216F,B NOKES CONTRACTS LTD,3121,12,390.00,STRATEGIC (NON CYCLICAL),08/02/16,,Technical and Service Support,"Works - Construction, R&M"
020216F,B NOKES CONTRACTS LTD,3121,13,390.00,STRATEGIC (NON CYCLICAL),08/02/16,,Technical and Service Support,"Works - Construction, R&M"
020216F,B NOKES CONTRACTS LTD,3121,14,390.00,STRATEGIC (NON CYCLICAL),08/02/16,,Technical and Service Support,"Works - Construction, R&M"
020216F,B NOKES CONTRACTS LTD,3121,15,390.00,STRATEGIC (NON CYCLICAL),08/02/16,,Technical and Service Support,"Works - Construction, R&M"
020216F,B NOKES CONTRACTS LTD,3121,16,390.00,STRATEGIC (NON CYCLICAL),08/02/16,,Technical and Service Support,"Works - Construction, R&M"
020216F,B NOKES CONTRACTS LTD,3121,17,390.00,STRATEGIC (NON CYCLICAL),08/02/16,,Technical and Service Support,"Works - Construction, R&M"
020216F,B NOKES CONTRACTS LTD,3121,18,390.00,STRATEGIC (NON CYCLICAL),08/02/16,,Technical and Service Support,"Works - Construction, R&M"
020216F,B NOKES CONTRACTS LTD,3121,19,390.00,STRATEGIC (NON CYCLICAL),08/02/16,,Technical and Service Support,"Works - Construction, R&M"
020216F,B NOKES CONTRACTS LTD,3121,20,390.00,STRATEGIC (NON CYCLICAL),08/02/16,,Technical and Service Support,"Works - Construction, R&M"
020216F,B NOKES CONTRACTS LTD,3121,21,390.00,STRATEGIC (NON CYCLICAL),08/02/16,,Technical and Service Support,"Works - Construction, R&M"
020216F,B NOKES CONTRACTS LTD,3121,22,390.00,STRATEGIC (NON CYCLICAL),08/02/16,,Technical and Service Support,"Works - Construction, R&M"
020216F,B NOKES CONTRACTS LTD,3121,23,390.00,STRATEGIC (NON CYCLICAL),08/02/16,,Technical and Service Support,"Works - Construction, R&M"
020216F,B NOKES CONTRACTS LTD,3121,24,390.00,STRATEGIC (NON CYCLICAL),08/02/16,,Technical and Service Support,"Works - Construction, R&M"
020216F,B NOKES CONTRACTS LTD,3121,25,390.00,STRATEGIC (NON CYCLICAL),08/02/16,,Technical and Service Support,"Works - Construction, R&M"
020216F,B NOKES CONTRACTS LTD,3122,1,"1,294.00",STRATEGIC (NON CYCLICAL),08/02/16,"1,294.00",Technical and Service Support,"Works - Construction, R&M"
020216F,B NOKES CONTRACTS LTD,3123,1,"3,021.00",STRATEGIC (NON CYCLICAL),08/02/16,"3,021.00",Technical and Service Support,"Works - Construction, R&M"
020216F,B NOKES CONTRACTS LTD,3124,1,"1,167.50",STRATEGIC (NON CYCLICAL),08/02/16,"1,167.50",Technical and Service Support,"Works - Construction, R&M"
020216F,B NOKES CONTRACTS LTD,3125,1,880.00,STRATEGIC (NON CYCLICAL),08/02/16,880.00,Technical and Service Support,"Works - Construction, R&M"
020216F,B NOKES CONTRACTS LTD,3131,1,"2,403.30",DEVELOPMENT  EXPENSES-CONTRACT,08/02/16,"2,403.30",Technical and Service Support,"Works - Construction, R&M"
020216F,R H SUPPLIES LIMITED==========,32424,1,"2,235.00",RADIO,08/02/16,"2,235.00",Information and Communication Technology,ICT
280116G,HUNTERS CONTRACTS LIMITED,353042,1,518.00,OFFICE FURNITURE,08/02/16,518.00,Operations Non Fire Stations,Furniture
030216G,LONDON BOROUGH OF MERTON,36583193,1,"1,000.00",GENERAL,08/02/16,"1,000.00",Community Safety Delivery,Statutory Bodies
020216F,MCGRATH BROS (WASTE CONTROL) L,391014,1,326.92,REFUSE COLLECTION,08/02/16,"18,644.73",Technical And Service Support,Environmental Services
020216F,MCGRATH BROS (WASTE CONTROL) L,391014,2,143.55,REFUSE COLLECTION,08/02/16,,Technical And Service Support,Environmental Services
020216F,MCGRATH BROS (WASTE CONTROL) L,391014,3,251.32,REFUSE COLLECTION,08/02/16,,Technical And Service Support,Environmental Services
020216F,MCGRATH BROS (WASTE CONTROL) L,391014,4,97.46,REFUSE COLLECTION,08/02/16,,Technical And Service Support,Environmental Services
020216F,MCGRATH BROS (WASTE CONTROL) L,391014,5,143.55,REFUSE COLLECTION,08/02/16,,Technical And Service Support,Environmental Services
020216F,MCGRATH BROS (WASTE CONTROL) L,391014,6,105.75,REFUSE COLLECTION,08/02/16,,Technical And Service Support,Environmental Services
020216F,MCGRATH BROS (WASTE CONTROL) L,391014,7,30.24,REFUSE COLLECTION,08/02/16,,Operations Fire Stations (closed),Environmental Services
020216F,MCGRATH BROS (WASTE CONTROL) L,391014,8,164.58,REFUSE COLLECTION,08/02/16,,Technical And Service Support,Environmental Services
020216F,MCGRATH BROS (WASTE CONTROL) L,391014,9,123.13,REFUSE COLLECTION,08/02/16,,Technical And Service Support,Environmental Services
020216F,MCGRATH BROS (WASTE CONTROL) L,391014,10,105.75,REFUSE COLLECTION,08/02/16,,Technical And Service Support,Environmental Services
020216F,MCGRATH BROS (WASTE CONTROL) L,391014,11,101.18,REFUSE COLLECTION,08/02/16,,Technical And Service Support,Environmental Services
020216F,MCGRATH BROS (WASTE CONTROL) L,391014,12,149.46,REFUSE COLLECTION,08/02/16,,Technical And Service Support,Environmental Services
020216F,MCGRATH BROS (WASTE CONTROL) L,391014,13,291.38,REFUSE COLLECTION,08/02/16,,Technical And Service Support,Environmental Services
020216F,MCGRATH BROS (WASTE CONTROL) L,391014,14,172.26,REFUSE COLLECTION,08/02/16,,Technical And Service Support,Environmental Services
020216F,MCGRATH BROS (WASTE CONTROL) L,391014,15,323.08,REFUSE COLLECTION,08/02/16,,Technical And Service Support,Environmental Services
020216F,MCGRATH BROS (WASTE CONTROL) L,391014,16,97.46,REFUSE COLLECTION,08/02/16,,Technical And Service Support,Environmental Services
020216F,MCGRATH BROS (WASTE CONTROL) L,391014,17,343.50,REFUSE COLLECTION,08/02/16,,Technical And Service Support,Environmental Services
020216F,MCGRATH BROS (WASTE CONTROL) L,391014,18,37.80,REFUSE COLLECTION,08/02/16,,Technical And Service Support,Environmental Services
020216F,MCGRATH BROS (WASTE CONTROL) L,391014,19,426.40,REFUSE COLLECTION,08/02/16,,Technical And Service Support,Environmental Services
020216F,MCGRATH BROS (WASTE CONTROL) L,391014,20,105.75,REFUSE COLLECTION,08/02/16,,Technical And Service Support,Environmental Services
020216F,MCGRATH BROS (WASTE CONTROL) L,391014,21,105.75,REFUSE COLLECTION,08/02/16,,Technical And Service Support,Environmental Services
020216F,MCGRATH BROS (WASTE CONTROL) L,391014,22,123.13,REFUSE COLLECTION,08/02/16,,Technical And Service Support,Environmental Services
020216F,MCGRATH BROS (WASTE CONTROL) L,391014,23,105.75,REFUSE COLLECTION,08/02/16,,Technical And Service Support,Environmental Services
020216F,MCGRATH BROS (WASTE CONTROL) L,391014,24,323.08,REFUSE COLLECTION,08/02/16,,Technical And Service Support,Environmental Services
020216F,MCGRATH BROS (WASTE CONTROL) L,391014,25,240.18,REFUSE COLLECTION,08/02/16,,Technical And Service Support,Environmental Services
020216F,MCGRATH BROS (WASTE CONTROL) L,391014,26,105.75,REFUSE COLLECTION,08/02/16,,Technical And Service Support,Environmental Services
020216F,MCGRATH BROS (WASTE CONTROL) L,391014,27,135.26,REFUSE COLLECTION,08/02/16,,Technical And Service Support,Environmental Services
020216F,MCGRATH BROS (WASTE CONTROL) L,391014,28,343.50,REFUSE COLLECTION,08/02/16,,Technical And Service Support,Environmental Services
020216F,MCGRATH BROS (WASTE CONTROL) L,391014,29,135.26,REFUSE COLLECTION,08/02/16,,Technical And Service Support,Environmental Services
020216F,MCGRATH BROS (WASTE CONTROL) L,391014,30,143.55,REFUSE COLLECTION,08/02/16,,Technical And Service Support,Environmental Services
020216F,MCGRATH BROS (WASTE CONTROL) L,391014,31,168.42,REFUSE COLLECTION,08/02/16,,Technical And Service Support,Environmental Services
020216F,MCGRATH BROS (WASTE CONTROL) L,391014,32,143.55,REFUSE COLLECTION,08/02/16,,Technical And Service Support,Environmental Services
020216F,MCGRATH BROS (WASTE CONTROL) L,391014,33,185.00,REFUSE COLLECTION,08/02/16,,Technical And Service Support,Environmental Services
020216F,MCGRATH BROS (WASTE CONTROL) L,391014,34,147.20,REFUSE COLLECTION,08/02/16,,Technical And Service Support,Environmental Services
020216F,MCGRATH BROS (WASTE CONTROL) L,391014,35,105.75,REFUSE COLLECTION,08/02/16,,Technical And Service Support,Environmental Services
020216F,MCGRATH BROS (WASTE CONTROL) L,391014,36,260.60,REFUSE COLLECTION,08/02/16,,Technical And Service Support,Environmental Services
020216F,MCGRATH BROS (WASTE CONTROL) L,391014,37,260.60,REFUSE COLLECTION,08/02/16,,Technical And Service Support,Environmental Services
020216F,MCGRATH BROS (WASTE CONTROL) L,391014,38,143.55,REFUSE COLLECTION,08/02/16,,Technical And Service Support,Environmental Services
020216F,MCGRATH BROS (WASTE CONTROL) L,391014,39,105.75,REFUSE COLLECTION,08/02/16,,Technical And Service Support,Environmental Services
020216F,MCGRATH BROS (WASTE CONTROL) L,391014,40,97.46,REFUSE COLLECTION,08/02/16,,Technical And Service Support,Environmental Services
020216F,MCGRATH BROS (WASTE CONTROL) L,391014,41,343.50,REFUSE COLLECTION,08/02/16,,Technical And Service Support,Environmental Services
020216F,MCGRATH BROS (WASTE CONTROL) L,391014,42,260.60,REFUSE COLLECTION,08/02/16,,Technical And Service Support,Environmental Services
020216F,MCGRATH BROS (WASTE CONTROL) L,391014,43,135.26,REFUSE COLLECTION,08/02/16,,Technical And Service Support,Environmental Services
020216F,MCGRATH BROS (WASTE CONTROL) L,391014,44,97.46,REFUSE COLLECTION,08/02/16,,Technical And Service Support,Environmental Services
020216F,MCGRATH BROS (WASTE CONTROL) L,391014,45,105.75,REFUSE COLLECTION,08/02/16,,Technical And Service Support,Environmental Services
020216F,MCGRATH BROS (WASTE CONTROL) L,391014,46,135.26,REFUSE COLLECTION,08/02/16,,Technical And Service Support,Environmental Services
020216F,MCGRATH BROS (WASTE CONTROL) L,391014,47,326.92,REFUSE COLLECTION,08/02/16,,Technical And Service Support,Environmental Services
020216F,MCGRATH BROS (WASTE CONTROL) L,391014,48,97.46,REFUSE COLLECTION,08/02/16,,Technical And Service Support,Environmental Services
020216F,MCGRATH BROS (WASTE CONTROL) L,391014,49,105.75,REFUSE COLLECTION,08/02/16,,Technical And Service Support,Environmental Services
020216F,MCGRATH BROS (WASTE CONTROL) L,391014,50,123.13,REFUSE COLLECTION,08/02/16,,Technical And Service Support,Environmental Services
020216F,MCGRATH BROS (WASTE CONTROL) L,391014,51,147.20,REFUSE COLLECTION,08/02/16,,Technical And Service Support,Environmental Services
020216F,MCGRATH BROS (WASTE CONTROL) L,391014,52,185.00,REFUSE COLLECTION,08/02/16,,Technical And Service Support,Environmental Services
020216F,MCGRATH BROS (WASTE CONTROL) L,391014,53,92.89,REFUSE COLLECTION,08/02/16,,Technical And Service Support,Environmental Services
020216F,MCGRATH BROS (WASTE CONTROL) L,391014,54,311.80,REFUSE COLLECTION,08/02/16,,Technical And Service Support,Environmental Services
020216F,MCGRATH BROS (WASTE CONTROL) L,391014,55,143.55,REFUSE COLLECTION,08/02/16,,Technical And Service Support,Environmental Services
020216F,MCGRATH BROS (WASTE CONTROL) L,391014,56,97.46,REFUSE COLLECTION,08/02/16,,Technical And Service Support,Environmental Services
020216F,MCGRATH BROS (WASTE CONTROL) L,391014,57,323.08,REFUSE COLLECTION,08/02/16,,Technical And Service Support,Environmental Services
020216F,MCGRATH BROS (WASTE CONTROL) L,391014,58,105.75,REFUSE COLLECTION,08/02/16,,Technical And Service Support,Environmental Services
020216F,MCGRATH BROS (WASTE CONTROL) L,391014,59,343.50,REFUSE COLLECTION,08/02/16,,Technical And Service Support,Environmental Services
020216F,MCGRATH BROS (WASTE CONTROL) L,391014,60,105.75,REFUSE COLLECTION,08/02/16,,Technical And Service Support,Environmental Services
020216F,MCGRATH BROS (WASTE CONTROL) L,391014,61,143.55,REFUSE COLLECTION,08/02/16,,Technical And Service Support,Environmental Services
020216F,MCGRATH BROS (WASTE CONTROL) L,391014,62,135.26,REFUSE COLLECTION,08/02/16,,Technical And Service Support,Environmental Services
020216F,MCGRATH BROS (WASTE CONTROL) L,391014,63,143.55,REFUSE COLLECTION,08/02/16,,Technical And Service Support,Environmental Services
020216F,MCGRATH BROS (WASTE CONTROL) L,391014,64,123.13,REFUSE COLLECTION,08/02/16,,Technical And Service Support,Environmental Services
020216F,MCGRATH BROS (WASTE CONTROL) L,391014,65,344.28,REFUSE COLLECTION,08/02/16,,Technical And Service Support,Environmental Services
020216F,MCGRATH BROS (WASTE CONTROL) L,391014,66,97.46,REFUSE COLLECTION,08/02/16,,Technical And Service Support,Environmental Services
020216F,MCGRATH BROS (WASTE CONTROL) L,391014,67,143.55,REFUSE COLLECTION,08/02/16,,Technical And Service Support,Environmental Services
020216F,MCGRATH BROS (WASTE CONTROL) L,391014,68,143.55,REFUSE COLLECTION,08/02/16,,Technical And Service Support,Environmental Services
020216F,MCGRATH BROS (WASTE CONTROL) L,391014,69,147.20,REFUSE COLLECTION,08/02/16,,Technical And Service Support,Environmental Services
020216F,MCGRATH BROS (WASTE CONTROL) L,391014,70,105.75,REFUSE COLLECTION,08/02/16,,Technical And Service Support,Environmental Services
020216F,MCGRATH BROS (WASTE CONTROL) L,391014,71,97.46,REFUSE COLLECTION,08/02/16,,Technical And Service Support,Environmental Services
020216F,MCGRATH BROS (WASTE CONTROL) L,391014,72,105.75,REFUSE COLLECTION,08/02/16,,Technical And Service Support,Environmental Services
020216F,MCGRATH BROS (WASTE CONTROL) L,391014,73,323.08,REFUSE COLLECTION,08/02/16,,Technical And Service Support,Environmental Services
020216F,MCGRATH BROS (WASTE CONTROL) L,391014,74,160.13,REFUSE COLLECTION,08/02/16,,Technical And Service Support,Environmental Services
020216F,MCGRATH BROS (WASTE CONTROL) L,391014,75,147.20,REFUSE COLLECTION,08/02/16,,Technical And Service Support,Environmental Services
020216F,MCGRATH BROS (WASTE CONTROL) L,391014,76,143.55,REFUSE COLLECTION,08/02/16,,Technical And Service Support,Environmental Services
020216F,MCGRATH BROS (WASTE CONTROL) L,391014,77,97.46,REFUSE COLLECTION,08/02/16,,Technical And Service Support,Environmental Services
020216F,MCGRATH BROS (WASTE CONTROL) L,391014,78,248.40,REFUSE COLLECTION,08/02/16,,Technical And Service Support,Environmental Services
020216F,MCGRATH BROS (WASTE CONTROL) L,391014,79,105.75,REFUSE COLLECTION,08/02/16,,Technical And Service Support,Environmental Services
020216F,MCGRATH BROS (WASTE CONTROL) L,391014,80,97.46,REFUSE COLLECTION,08/02/16,,Technical And Service Support,Environmental Services
020216F,MCGRATH BROS (WASTE CONTROL) L,391014,81,323.08,REFUSE COLLECTION,08/02/16,,Technical And Service Support,Environmental Services
020216F,MCGRATH BROS (WASTE CONTROL) L,391014,82,105.75,REFUSE COLLECTION,08/02/16,,Technical And Service Support,Environmental Services
020216F,MCGRATH BROS (WASTE CONTROL) L,391014,83,143.55,REFUSE COLLECTION,08/02/16,,Technical And Service Support,Environmental Services
020216F,MCGRATH BROS (WASTE CONTROL) L,391014,84,143.55,REFUSE COLLECTION,08/02/16,,Technical And Service Support,Environmental Services
020216F,MCGRATH BROS (WASTE CONTROL) L,391014,85,323.08,REFUSE COLLECTION,08/02/16,,Technical And Service Support,Environmental Services
020216F,MCGRATH BROS (WASTE CONTROL) L,391014,86,143.55,REFUSE COLLECTION,08/02/16,,Technical And Service Support,Environmental Services
020216F,MCGRATH BROS (WASTE CONTROL) L,391014,87,"1,760.66",REFUSE COLLECTION,08/02/16,,Technical And Service Support,Environmental Services
020216F,MCGRATH BROS (WASTE CONTROL) L,391014,88,105.75,REFUSE COLLECTION,08/02/16,,Technical And Service Support,Environmental Services
020216F,MCGRATH BROS (WASTE CONTROL) L,391014,89,123.13,REFUSE COLLECTION,08/02/16,,Technical And Service Support,Environmental Services
020216F,MCGRATH BROS (WASTE CONTROL) L,391014,90,143.55,REFUSE COLLECTION,08/02/16,,Technical And Service Support,Environmental Services
020216F,MCGRATH BROS (WASTE CONTROL) L,391014,91,353.42,REFUSE COLLECTION,08/02/16,,Technical And Service Support,Environmental Services
020216F,MCGRATH BROS (WASTE CONTROL) L,391014,92,97.46,REFUSE COLLECTION,08/02/16,,Technical And Service Support,Environmental Services
020216F,MCGRATH BROS (WASTE CONTROL) L,391014,93,130.62,REFUSE COLLECTION,08/02/16,,Technical And Service Support,Environmental Services
020216F,MCGRATH BROS (WASTE CONTROL) L,391014,94,123.13,REFUSE COLLECTION,08/02/16,,Technical And Service Support,Environmental Services
020216F,MCGRATH BROS (WASTE CONTROL) L,391014,95,30.24,REFUSE COLLECTION,08/02/16,,Technical And Service Support,Environmental Services
020216F,MCGRATH BROS (WASTE CONTROL) L,391014,96,143.55,REFUSE COLLECTION,08/02/16,,Technical And Service Support,Environmental Services
020216F,MCGRATH BROS (WASTE CONTROL) L,391014,97,135.26,REFUSE COLLECTION,08/02/16,,Technical And Service Support,Environmental Services
020216F,MCGRATH BROS (WASTE CONTROL) L,391014,98,147.20,REFUSE COLLECTION,08/02/16,,Technical And Service Support,Environmental Services
020216F,MCGRATH BROS (WASTE CONTROL) L,391014,99,105.75,REFUSE COLLECTION,08/02/16,,Technical And Service Support,Environmental Services
020216F,MCGRATH BROS (WASTE CONTROL) L,391014,100,105.75,REFUSE COLLECTION,08/02/16,,Technical And Service Support,Environmental Services
020216F,MCGRATH BROS (WASTE CONTROL) L,391014,101,105.75,REFUSE COLLECTION,08/02/16,,Technical And Service Support,Environmental Services
020216F,MCGRATH BROS (WASTE CONTROL) L,391014,102,143.55,REFUSE COLLECTION,08/02/16,,Technical And Service Support,Environmental Services
020216F,MCGRATH BROS (WASTE CONTROL) L,391014,103,147.20,REFUSE COLLECTION,08/02/16,,Technical And Service Support,Environmental Services
020216F,EVOLUTION ENVIRONMENTAL LTD,4161,1,265.00,ASBESTOS,08/02/16,705.00,Technical and Service Support,"Works - Construction, R&M"
020216F,EVOLUTION ENVIRONMENTAL LTD,4161,2,440.00,ASBESTOS,08/02/16,,Technical and Service Support,"Works - Construction, R&M"
020216F,EVOLUTION ENVIRONMENTAL LTD,4180,1,185.00,ASBESTOS,08/02/16,370.00,Technical and Service Support,"Works - Construction, R&M"
020216F,EVOLUTION ENVIRONMENTAL LTD,4180,2,185.00,ASBESTOS,08/02/16,,Technical and Service Support,"Works - Construction, R&M"
200116G,UNDERSTANDING RECRUITMENT,4628,1,"5,880.00",CONSULTANTS,08/02/16,"5,880.00",Information and Communication Technology,Human Resources
020216F,PRESSURE COOLERS LTD,595125,1,8.25,CATERING FIXTURES,08/02/16,"1,164.00",Technical And Service Support,Facilities & Management S
020216F,PRESSURE COOLERS LTD,595125,2,8.25,CATERING FIXTURES,08/02/16,,Technical And Service Support,Facilities & Management S
020216F,PRESSURE COOLERS LTD,595125,3,8.25,CATERING FIXTURES,08/02/16,,Technical And Service Support,Facilities & Management S
020216F,PRESSURE COOLERS LTD,595125,4,8.25,CATERING FIXTURES,08/02/16,,Technical And Service Support,Facilities & Management S
020216F,PRESSURE COOLERS LTD,595125,5,8.00,CATERING FIXTURES,08/02/16,,Technical And Service Support,Facilities & Management S
020216F,PRESSURE COOLERS LTD,595125,6,8.25,CATERING FIXTURES,08/02/16,,Technical And Service Support,Facilities & Management S
020216F,PRESSURE COOLERS LTD,595125,7,8.00,CATERING FIXTURES,08/02/16,,Technical And Service Support,Facilities & Management S
020216F,PRESSURE COOLERS LTD,595125,8,8.25,CATERING FIXTURES,08/02/16,,Technical And Service Support,Facilities & Management S
020216F,PRESSURE COOLERS LTD,595125,9,8.25,CATERING FIXTURES,08/02/16,,Technical And Service Support,Facilities & Management S
020216F,PRESSURE COOLERS LTD,595125,10,8.25,CATERING FIXTURES,08/02/16,,Technical And Service Support,Facilities & Management S
020216F,PRESSURE COOLERS LTD,595125,11,8.25,CATERING EQUIPMENT,08/02/16,,Technical And Service Support,Facilities & Management S
020216F,PRESSURE COOLERS LTD,595125,12,8.25,CATERING FIXTURES,08/02/16,,Technical And Service Support,Facilities & Management S
